{"text_format":"1","workbook":"xlsx","n_sheets":7,"sheets":["Instructions","Pesticide Plan (Vegetable 1)","Pesticide Plan (Vegetable 2)","Pesticide Plan (Vegetable 3)","Adjuvant Help Guide","Chemical List (Vegetables)","Crop List"],"not_rendered":{"charts":0,"images":7,"macros":1,"external_links":1,"defined_names":22,"comments":0,"pivot_tables":0},"unopened":[],"bounds":{"document_bytes":16777216,"sheet_cells":100000,"rows_first":2000,"rows_last":500,"rows_between":2000,"halvings":0,"cell_chars":16384,"cell_head_chars":4096},"cells_cut":0,"cells_raw":0,"read":"whole","date_system":"1900"}

{"sheet":"Instructions","index":0,"n_rows":26,"n_cols":8,"rows_kept":26,"cut":false,"hidden":false,"merged":[[20,4,21,17],[0,0,2,17],[17,4,17,17],[13,4,13,17],[14,4,14,17],[12,4,12,17],[6,0,6,17],[5,0,5,17],[3,0,3,17],[11,2,11,17],[4,0,4,17],[15,4,15,17],[19,4,19,17],[18,4,18,17],[16,4,16,17]]}
["Pesticide Cost Comparison Decision Tool (Vegetables)"]
[]
[]
["Template by: Jon LaPorte, Farm Business Management Educator"]
["Michigan State University Extension"]
["120 N. Broadway, Suite 116, Cassopolis, MI 49031"]
["Phone: (269) 445-4356          Email: laportej@msu.edu"]
[]
[]
["1)","Each TAB represents a different expense area for the given farm operation.  Click on a TAB to enter specific expense (or income) information."]
[null,"These include:"]
[null,null,"Pesticide Cost Comparison Decision Tool"]
[null,null,"Pesticide Plan (per crop)","-","Choose the Herbicide/Adjuvant being used in the drop-down menu.  "]
[null,null,null,null,"Insecticides & Fungicides are also included further down this page."]
[null,null,null,null,"Rate/Acre and price paid per package (i.e. $$/Gallon) need to be input manually."]
[null,null,null,null,"NOTE: Includes a quick guide to Sites-of-Action or Active Ingredients used by the farm's pesticide program for evaluating resistance management."]
[null,null,null,null,"PRINTABLE FORMAT: List your Farm Name, Field Tract, Farm Number, and Plan Year to save in farm records"]
[null,null,"Adjuvant Help Guide","-","Adjuvant rates are based on gallons of water/acre.  The help guide will assist in calculating the rate/acre needed for the Pesticide Plan tabs."]
[null,null,null,null,"Adjuvant Products: This tab includes an area to add additional adjuvants for use in the Pesticide Plan tabs."]
[null,null,null,null,"NOTE: Includes link to various resources, including the Midwest Vegetable Production Guide"]
[null,null,"Chemical List Tab","-","The list of chemicals provided in this tool are based on the Midwest Vegetable Production Guide.  Additional entry spaces are available to include other chemicals not listed (i.e. generics, pre-mixes, etc.)"]
[]
[]
["2)","Only items that are colored in BLUE should be altered in each TAB.  Changing the value of an item not marked BLUE can cause the formulas in the spreadsheet to stop working."]
[]
[null,null,null,null,null,null,null,"`"]

{"sheet":"Pesticide Plan (Vegetable 1)","index":1,"n_rows":93,"n_cols":38,"rows_kept":93,"cut":false,"hidden":false,"merged":[[0,0,0,1],[0,2,0,18],[22,2,22,9],[1,2,1,18],[2,2,2,18],[21,2,21,18],[3,11,3,18],[22,11,22,18],[83,30,84,37],[83,11,84,18],[51,21,51,28],[3,2,3,9],[51,30,51,37],[50,2,50,18],[51,11,51,18],[40,11,41,18],[21,21,21,37],[22,21,22,28],[22,30,22,37],[40,30,41,37],[50,21,50,37],[67,11,67,18],[67,2,67,9],[51,2,51,9],[67,21,67,28],[67,30,67,37],[0,21,0,37],[1,21,1,37],[2,21,2,37],[3,21,3,28],[3,30,3,37]]}
["Drop Down Menu --->",null,"Select Crop",null,null,null,null,null,null,null,null,null,null,null,null,null,null,null,null,null,null,{"$f":"C1","v":"Select Crop"}]
[null,null,"Comparison Plan #1",null,null,null,null,null,null,null,null,null,null,null,null,null,null,null,null,null,null,"Comparison Plan #2"]
[null,null,"Burndown/Pre-Plant/Early Post Emergence Herbicides",null,null,null,null,null,null,null,null,null,null,null,null,null,null,null,null,null,null,"Burndown/Pre-Plant/Early Post Emergence Herbicides"]
[null,null,"1st Application of Burndown/Pre-Plant/Early Post Emergencen Herbicides",null,null,null,null,null,null,null,null,"2nd Application of Burndown/Pre-Plant/Early Post Emergence Herbicides",null,null,null,null,null,null,null,null,null,"1st Application of Burndown/Pre-Plant/Early Post Emergencen Herbicides",null,null,null,null,null,null,null,null,"2nd Application of Burndown/Pre-Plant/Early Post Emergence Herbicides"]
[null,null,"Brand","Site of Action","Purchase Units","Package Price (Gals, Lbs, etc.)","Units/Pkg","Rate/Acre","Rate Units","Cost",null,"Brand","Site of Action","Purchase Units","Package Price (Gals, Lbs, etc.)","Units/Pkg","Rate/Acre","Rate Units","Cost",null,null,"Brand","Site of Action","Purchase Units","Package Price (Gals, Lbs, etc.)","Units/Pkg","Rate/Acre","Rate Units","Cost",null,"Brand","Site of Action","Purchase Units","Package Price (Gals, Lbs, etc.)","Units/Pkg","Rate/Acre","Rate Units","Cost"]
[null,null,"Herbicides (drop down menu)",null,null,"(Enter Below)",null,"(Enter Below)",null,null,null,"Herbicides (drop down menu)",null,null,"(Enter Below)",null,"(Enter Below)",null,null,null,null,"Herbicides (drop down menu)",null,null,"(Enter Below)",null,"(Enter Below)",null,null,null,"Herbicides (drop down menu)",null,null,"(Enter Below)",null,"(Enter Below)"]
[null,null,"None",{"$f":"VLOOKUP($C7,PreChemicals,6,FALSE)","v":0},{"$f":"VLOOKUP($C7,PreChemicals,4,FALSE)","v":"None"},0,{"$f":"VLOOKUP(C7,PreChemicals,3,FALSE)","v":1},0,{"$f":"VLOOKUP(C7,PreChemicals,2,FALSE)","v":0},{"$f":"H7/G7*F7","v":0},null,"None",{"$f":"VLOOKUP($L7,PreChemicals,6,FALSE)","v":0},{"$f":"VLOOKUP($L7,PreChemicals,4,FALSE)","v":"None"},0,{"$f":"VLOOKUP(L7,PreChemicals,3,FALSE)","v":1},0,{"$f":"VLOOKUP(L7,PreChemicals,2,FALSE)","v":0},{"$f":"Q7/P7*O7","v":0},null,null,"None",{"$f":"VLOOKUP($C7,PreChemicals,6,FALSE)","v":0},{"$f":"VLOOKUP($C7,PreChemicals,4,FALSE)","v":"None"},0,{"$f":"VLOOKUP(V7,PreChemicals,3,FALSE)","v":1},0,{"$f":"VLOOKUP(V7,PreChemicals,2,FALSE)","v":0},{"$f":"AA7/Z7*Y7","v":0},null,"None",0,0,0,{"$f":"VLOOKUP(AE7,PreChemicals,3,FALSE)","v":1},0,{"$f":"VLOOKUP(AE7,PreChemicals,2,FALSE)","v":0},{"$f":"AJ7/AI7*AH7","v":0}]
[null,null,"None",{"$f":"VLOOKUP($C8,PreChemicals,6,FALSE)","v":0},{"$f":"VLOOKUP($C8,PreChemicals,4,FALSE)","v":"None"},0,{"$f":"VLOOKUP(C8,PreChemicals,3,FALSE)","v":1},0,{"$f":"VLOOKUP(C8,PreChemicals,2,FALSE)","v":0},{"$f":"H8/G8*F8","v":0},null,"None",{"$f":"VLOOKUP($L8,PreChemicals,6,FALSE)","v":0},{"$f":"VLOOKUP($L8,PreChemicals,4,FALSE)","v":"None"},0,{"$f":"VLOOKUP(L8,PreChemicals,3,FALSE)","v":1},0,{"$f":"VLOOKUP(L8,PreChemicals,2,FALSE)","v":0},{"$f":"Q8/P8*O8","v":0},null,null,"None",{"$f":"VLOOKUP($C8,PreChemicals,6,FALSE)","v":0},{"$f":"VLOOKUP($C8,PreChemicals,4,FALSE)","v":"None"},0,{"$f":"VLOOKUP(V8,PreChemicals,3,FALSE)","v":1},0,{"$f":"VLOOKUP(V8,PreChemicals,2,FALSE)","v":0},{"$f":"AA8/Z8*Y8","v":0},null,"None",0,0,0,{"$f":"VLOOKUP(AE8,PreChemicals,3,FALSE)","v":1},0,{"$f":"VLOOKUP(AE8,PreChemicals,2,FALSE)","v":0},{"$f":"AJ8/AI8*AH8","v":0}]
[null,null,"None",{"$f":"VLOOKUP($C9,PreChemicals,6,FALSE)","v":0},{"$f":"VLOOKUP($C9,PreChemicals,4,FALSE)","v":"None"},0,{"$f":"VLOOKUP(C9,PreChemicals,3,FALSE)","v":1},0,{"$f":"VLOOKUP(C9,PreChemicals,2,FALSE)","v":0},0,null,"None",{"$f":"VLOOKUP($L9,PreChemicals,6,FALSE)","v":0},{"$f":"VLOOKUP($L9,PreChemicals,4,FALSE)","v":"None"},0,{"$f":"VLOOKUP(L9,PreChemicals,3,FALSE)","v":1},0,{"$f":"VLOOKUP(L9,PreChemicals,2,FALSE)","v":0},0,null,null,"None",{"$f":"VLOOKUP($C9,PreChemicals,6,FALSE)","v":0},{"$f":"VLOOKUP($C9,PreChemicals,4,FALSE)","v":"None"},0,{"$f":"VLOOKUP(V9,PreChemicals,3,FALSE)","v":1},0,{"$f":"VLOOKUP(V9,PreChemicals,2,FALSE)","v":0},0,null,"None",0,0,0,{"$f":"VLOOKUP(AE9,PreChemicals,3,FALSE)","v":1},0,{"$f":"VLOOKUP(AE9,PreChemicals,2,FALSE)","v":0},0]
[null,null,"None",{"$f":"VLOOKUP($C10,PreChemicals,6,FALSE)","v":0},{"$f":"VLOOKUP($C10,PreChemicals,4,FALSE)","v":"None"},0,{"$f":"VLOOKUP(C10,PreChemicals,3,FALSE)","v":1},0,{"$f":"VLOOKUP(C10,PreChemicals,2,FALSE)","v":0},0,null,"None",{"$f":"VLOOKUP($L10,PreChemicals,6,FALSE)","v":0},{"$f":"VLOOKUP($L10,PreChemicals,4,FALSE)","v":"None"},0,{"$f":"VLOOKUP(L10,PreChemicals,3,FALSE)","v":1},0,{"$f":"VLOOKUP(L10,PreChemicals,2,FALSE)","v":0},0,null,null,"None",{"$f":"VLOOKUP($C10,PreChemicals,6,FALSE)","v":0},{"$f":"VLOOKUP($C10,PreChemicals,4,FALSE)","v":"None"},0,{"$f":"VLOOKUP(V10,PreChemicals,3,FALSE)","v":1},0,{"$f":"VLOOKUP(V10,PreChemicals,2,FALSE)","v":0},0,null,"None",0,0,0,{"$f":"VLOOKUP(AE10,PreChemicals,3,FALSE)","v":1},0,{"$f":"VLOOKUP(AE10,PreChemicals,2,FALSE)","v":0},0]
[null,null,"None",{"$f":"VLOOKUP($C11,PreChemicals,6,FALSE)","v":0},{"$f":"VLOOKUP($C11,PreChemicals,4,FALSE)","v":"None"},0,{"$f":"VLOOKUP(C11,PreChemicals,3,FALSE)","v":1},0,{"$f":"VLOOKUP(C11,PreChemicals,2,FALSE)","v":0},0,null,"None",{"$f":"VLOOKUP($L11,PreChemicals,6,FALSE)","v":0},{"$f":"VLOOKUP($L11,PreChemicals,4,FALSE)","v":"None"},0,{"$f":"VLOOKUP(L11,PreChemicals,3,FALSE)","v":1},0,{"$f":"VLOOKUP(L11,PreChemicals,2,FALSE)","v":0},0,null,null,"None",{"$f":"VLOOKUP($C11,PreChemicals,6,FALSE)","v":0},{"$f":"VLOOKUP($C11,PreChemicals,4,FALSE)","v":"None"},0,{"$f":"VLOOKUP(V11,PreChemicals,3,FALSE)","v":1},0,{"$f":"VLOOKUP(V11,PreChemicals,2,FALSE)","v":0},0,null,"None",0,0,0,{"$f":"VLOOKUP(AE11,PreChemicals,3,FALSE)","v":1},0,{"$f":"VLOOKUP(AE11,PreChemicals,2,FALSE)","v":0},0]
[]
[null,null,"Adjuvants (drop down menu)",null,null,"(Enter Below)",null,"(Enter Below)",null,null,null,"Adjuvants (drop down menu)",null,null,"(Enter Below)",null,"(Enter Below)",null,null,null,null,"Adjuvants (drop down menu)",null,null,"(Enter Below)",null,"(Enter Below)",null,null,null,"Adjuvants (drop down menu)",null,null,"(Enter Below)",null,"(Enter Below)"]
[null,null,"None",null,{"$f":"VLOOKUP($C14,Adjuvants,4,FALSE)","v":"None"},0,{"$f":"VLOOKUP(C14,Adjuvants,3,FALSE)","v":1},0,{"$f":"VLOOKUP(C14,Adjuvants,2,FALSE)","v":0},{"$f":"H14/G14*F14","v":0},null,"None",null,{"$f":"VLOOKUP($L14,Adjuvants,4,FALSE)","v":"None"},0,{"$f":"VLOOKUP(L14,Adjuvants,3,FALSE)","v":1},0,{"$f":"VLOOKUP(L14,Adjuvants,2,FALSE)","v":0},{"$f":"Q14/P14*O14","v":0},null,null,"None",null,{"$f":"VLOOKUP($C14,Adjuvants,4,FALSE)","v":"None"},0,{"$f":"VLOOKUP(V14,Adjuvants,3,FALSE)","v":1},0,{"$f":"VLOOKUP(V14,Adjuvants,2,FALSE)","v":0},{"$f":"AA14/Z14*Y14","v":0},null,"None",null,{"$f":"VLOOKUP($L14,Adjuvants,4,FALSE)","v":"None"},0,{"$f":"VLOOKUP(AE14,Adjuvants,3,FALSE)","v":1},0,{"$f":"VLOOKUP(AE14,Adjuvants,2,FALSE)","v":0},{"$f":"AJ14/AI14*AH14","v":0}]
[null,null,"None",null,{"$f":"VLOOKUP($C15,Adjuvants,4,FALSE)","v":"None"},0,{"$f":"VLOOKUP(C15,Adjuvants,3,FALSE)","v":1},0,{"$f":"VLOOKUP(C15,Adjuvants,2,FALSE)","v":0},{"$f":"H15/G15*F15","v":0},null,"None",null,{"$f":"VLOOKUP($L15,Adjuvants,4,FALSE)","v":"None"},0,{"$f":"VLOOKUP(L15,Adjuvants,3,FALSE)","v":1},0,{"$f":"VLOOKUP(L15,Adjuvants,2,FALSE)","v":0},{"$f":"Q15/P15*O15","v":0},null,null,"None",null,{"$f":"VLOOKUP($C15,Adjuvants,4,FALSE)","v":"None"},0,{"$f":"VLOOKUP(V15,Adjuvants,3,FALSE)","v":1},0,{"$f":"VLOOKUP(V15,Adjuvants,2,FALSE)","v":0},{"$f":"AA15/Z15*Y15","v":0},null,"None",null,{"$f":"VLOOKUP($L15,Adjuvants,4,FALSE)","v":"None"},0,{"$f":"VLOOKUP(AE15,Adjuvants,3,FALSE)","v":1},0,{"$f":"VLOOKUP(AE15,Adjuvants,2,FALSE)","v":0},{"$f":"AJ15/AI15*AH15","v":0}]
[null,null,"None",null,{"$f":"VLOOKUP($C16,Adjuvants,4,FALSE)","v":"None"},0,{"$f":"VLOOKUP(C16,Adjuvants,3,FALSE)","v":1},0,{"$f":"VLOOKUP(C16,Adjuvants,2,FALSE)","v":0},0,null,"None",null,{"$f":"VLOOKUP($L16,Adjuvants,4,FALSE)","v":"None"},0,{"$f":"VLOOKUP(L16,Adjuvants,3,FALSE)","v":1},0,{"$f":"VLOOKUP(L16,Adjuvants,2,FALSE)","v":0},0,null,null,"None",null,{"$f":"VLOOKUP($C16,Adjuvants,4,FALSE)","v":"None"},0,{"$f":"VLOOKUP(V16,Adjuvants,3,FALSE)","v":1},0,{"$f":"VLOOKUP(V16,Adjuvants,2,FALSE)","v":0},0,null,"None",null,{"$f":"VLOOKUP($L16,Adjuvants,4,FALSE)","v":"None"},0,{"$f":"VLOOKUP(AE16,Adjuvants,3,FALSE)","v":1},0,{"$f":"VLOOKUP(AE16,Adjuvants,2,FALSE)","v":0},0]
[null,null,"None",null,{"$f":"VLOOKUP($C17,Adjuvants,4,FALSE)","v":"None"},0,{"$f":"VLOOKUP(C17,Adjuvants,3,FALSE)","v":1},0,{"$f":"VLOOKUP(C17,Adjuvants,2,FALSE)","v":0},0,null,"None",null,{"$f":"VLOOKUP($L17,Adjuvants,4,FALSE)","v":"None"},0,{"$f":"VLOOKUP(L17,Adjuvants,3,FALSE)","v":1},0,{"$f":"VLOOKUP(L17,Adjuvants,2,FALSE)","v":0},0,null,null,"None",null,{"$f":"VLOOKUP($C17,Adjuvants,4,FALSE)","v":"None"},0,{"$f":"VLOOKUP(V17,Adjuvants,3,FALSE)","v":1},0,{"$f":"VLOOKUP(V17,Adjuvants,2,FALSE)","v":0},0,null,"None",null,{"$f":"VLOOKUP($L17,Adjuvants,4,FALSE)","v":"None"},0,{"$f":"VLOOKUP(AE17,Adjuvants,3,FALSE)","v":1},0,{"$f":"VLOOKUP(AE17,Adjuvants,2,FALSE)","v":0},0]
[null,null,"None",null,{"$f":"VLOOKUP($C18,Adjuvants,4,FALSE)","v":"None"},0,{"$f":"VLOOKUP(C18,Adjuvants,3,FALSE)","v":1},0,{"$f":"VLOOKUP(C18,Adjuvants,2,FALSE)","v":0},0,null,"None",null,{"$f":"VLOOKUP($L18,Adjuvants,4,FALSE)","v":"None"},0,{"$f":"VLOOKUP(L18,Adjuvants,3,FALSE)","v":1},0,{"$f":"VLOOKUP(L18,Adjuvants,2,FALSE)","v":0},0,null,null,"None",null,{"$f":"VLOOKUP($C18,Adjuvants,4,FALSE)","v":"None"},0,{"$f":"VLOOKUP(V18,Adjuvants,3,FALSE)","v":1},0,{"$f":"VLOOKUP(V18,Adjuvants,2,FALSE)","v":0},0,null,"None",null,{"$f":"VLOOKUP($L18,Adjuvants,4,FALSE)","v":"None"},0,{"$f":"VLOOKUP(AE18,Adjuvants,3,FALSE)","v":1},0,{"$f":"VLOOKUP(AE18,Adjuvants,2,FALSE)","v":0},0]
[]
[null,null,"1st Application Pre-plan/Pre-Emergence Herbicide Cost/Acre",null,null,null,null,null,null,{"$f":"SUM(J7:J18)","v":0},null,"2nd Application Pre-plan/Pre-Emergence Herbicide Cost/Acre",null,null,null,null,null,null,{"$f":"SUM(S7:S18)","v":0},null,null,"1st Application Pre-plan/Pre-Emergence Herbicide Cost/Acre",null,null,null,null,null,null,{"$f":"SUM(AC7:AC18)","v":0},null,"2nd Application Pre-plan/Pre-Emergence Herbicide Cost/Acre",null,null,null,null,null,null,{"$f":"SUM(AL7:AL18)","v":0}]
[]
[null,null,"Post-Emergence Herbicides",null,null,null,null,null,null,null,null,null,null,null,null,null,null,null,null,null,null,"Post-Emergence Herbicides"]
[null,null,"1st Application of Post-Emergence Herbicides",null,null,null,null,null,null,null,null,"2nd Application of Post-Emergence Herbicides",null,null,null,null,null,null,null,null,null,"1st Application of Post-Emergence Herbicides",null,null,null,null,null,null,null,null,"2nd Application of Post-Emergence Herbicides"]
[null,null,"Brand","Site of Action","Purchase Units","Package Price (Gals, Lbs, etc.)","Units/Pkg","Rate/Acre","Rate Units","Cost",null,"Brand","Site of Action","Purchase Units","Package Price (Gals, Lbs, etc.)","Units/Pkg","Rate/Acre","Rate Units","Cost",null,null,"Brand","Site of Action","Purchase Units","Package Price (Gals, Lbs, etc.)","Units/Pkg","Rate/Acre","Rate Units","Cost",null,"Brand","Site of Action","Purchase Units","Package Price (Gals, Lbs, etc.)","Units/Pkg","Rate/Acre","Rate Units","Cost"]
[null,null,"Herbicides (drop down menu)",null,null,"(Enter Below)",null,"(Enter Below)",null,null,null,"Herbicides (drop down menu)",null,null,"(Enter Below)",null,"(Enter Below)",null,null,null,null,"Herbicides (drop down menu)",null,null,"(Enter Below)",null,"(Enter Below)",null,null,null,"Herbicides (drop down menu)",null,null,"(Enter Below)",null,"(Enter Below)"]
[null,null,"None",{"$f":"VLOOKUP($C26,PostChemicals,6,FALSE)","v":0},{"$f":"VLOOKUP($C26,PostChemicals,4,FALSE)","v":"None"},0,{"$f":"VLOOKUP(C26,PostChemicals,3,FALSE)","v":1},0,{"$f":"VLOOKUP(C26,PostChemicals,2,FALSE)","v":0},{"$f":"H26/G26*F26","v":0},null,"None",{"$f":"VLOOKUP($L26,PostChemicals,6,FALSE)","v":0},{"$f":"VLOOKUP($L26,PostChemicals,4,FALSE)","v":"None"},0,{"$f":"VLOOKUP(L26,PostChemicals,3,FALSE)","v":1},0,{"$f":"VLOOKUP(L26,PostChemicals,2,FALSE)","v":0},{"$f":"Q26/P26*O26","v":0},null,null,"None",{"$f":"VLOOKUP($C26,PostChemicals,6,FALSE)","v":0},{"$f":"VLOOKUP($C26,PostChemicals,4,FALSE)","v":"None"},0,{"$f":"VLOOKUP(V26,PostChemicals,3,FALSE)","v":1},0,{"$f":"VLOOKUP(V26,PostChemicals,2,FALSE)","v":0},{"$f":"AA26/Z26*Y26","v":0},null,"None",{"$f":"VLOOKUP($L26,PostChemicals,6,FALSE)","v":0},{"$f":"VLOOKUP($L26,PostChemicals,4,FALSE)","v":"None"},0,{"$f":"VLOOKUP(AE26,PostChemicals,3,FALSE)","v":1},0,{"$f":"VLOOKUP(AE26,PostChemicals,2,FALSE)","v":0},{"$f":"AJ26/AI26*AH26","v":0}]
[null,null,"None",{"$f":"VLOOKUP($C27,PostChemicals,6,FALSE)","v":0},{"$f":"VLOOKUP($C27,PostChemicals,4,FALSE)","v":"None"},0,{"$f":"VLOOKUP(C27,PostChemicals,3,FALSE)","v":1},0,{"$f":"VLOOKUP(C27,PostChemicals,2,FALSE)","v":0},{"$f":"H27/G27*F27","v":0},null,"None",{"$f":"VLOOKUP($L27,PostChemicals,6,FALSE)","v":0},{"$f":"VLOOKUP($L27,PostChemicals,4,FALSE)","v":"None"},0,{"$f":"VLOOKUP(L27,PostChemicals,3,FALSE)","v":1},0,{"$f":"VLOOKUP(L27,PostChemicals,2,FALSE)","v":0},{"$f":"Q27/P27*O27","v":0},null,null,"None",{"$f":"VLOOKUP($C27,PostChemicals,6,FALSE)","v":0},{"$f":"VLOOKUP($C27,PostChemicals,4,FALSE)","v":"None"},0,{"$f":"VLOOKUP(V27,PostChemicals,3,FALSE)","v":1},0,{"$f":"VLOOKUP(V27,PostChemicals,2,FALSE)","v":0},{"$f":"AA27/Z27*Y27","v":0},null,"None",{"$f":"VLOOKUP($L27,PostChemicals,6,FALSE)","v":0},{"$f":"VLOOKUP($L27,PostChemicals,4,FALSE)","v":"None"},0,{"$f":"VLOOKUP(AE27,PostChemicals,3,FALSE)","v":1},0,{"$f":"VLOOKUP(AE27,PostChemicals,2,FALSE)","v":0},{"$f":"AJ27/AI27*AH27","v":0}]
[null,null,"None",{"$f":"VLOOKUP($C28,PostChemicals,6,FALSE)","v":0},{"$f":"VLOOKUP($C28,PostChemicals,4,FALSE)","v":"None"},0,{"$f":"VLOOKUP(C28,PostChemicals,3,FALSE)","v":1},0,{"$f":"VLOOKUP(C28,PostChemicals,2,FALSE)","v":0},0,null,"None",{"$f":"VLOOKUP($L28,PostChemicals,6,FALSE)","v":0},{"$f":"VLOOKUP($L28,PostChemicals,4,FALSE)","v":"None"},0,{"$f":"VLOOKUP(L28,PostChemicals,3,FALSE)","v":1},0,{"$f":"VLOOKUP(L28,PostChemicals,2,FALSE)","v":0},0,null,null,"None",{"$f":"VLOOKUP($C28,PostChemicals,6,FALSE)","v":0},{"$f":"VLOOKUP($C28,PostChemicals,4,FALSE)","v":"None"},0,{"$f":"VLOOKUP(V28,PostChemicals,3,FALSE)","v":1},0,{"$f":"VLOOKUP(V28,PostChemicals,2,FALSE)","v":0},0,null,"None",{"$f":"VLOOKUP($L28,PostChemicals,6,FALSE)","v":0},{"$f":"VLOOKUP($L28,PostChemicals,4,FALSE)","v":"None"},0,{"$f":"VLOOKUP(AE28,PostChemicals,3,FALSE)","v":1},0,{"$f":"VLOOKUP(AE28,PostChemicals,2,FALSE)","v":0},0]
[null,null,"None",{"$f":"VLOOKUP($C29,PostChemicals,6,FALSE)","v":0},{"$f":"VLOOKUP($C29,PostChemicals,4,FALSE)","v":"None"},0,{"$f":"VLOOKUP(C29,PostChemicals,3,FALSE)","v":1},0,{"$f":"VLOOKUP(C29,PostChemicals,2,FALSE)","v":0},0,null,"None",{"$f":"VLOOKUP($L29,PostChemicals,6,FALSE)","v":0},{"$f":"VLOOKUP($L29,PostChemicals,4,FALSE)","v":"None"},0,{"$f":"VLOOKUP(L29,PostChemicals,3,FALSE)","v":1},0,{"$f":"VLOOKUP(L29,PostChemicals,2,FALSE)","v":0},0,null,null,"None",{"$f":"VLOOKUP($C29,PostChemicals,6,FALSE)","v":0},{"$f":"VLOOKUP($C29,PostChemicals,4,FALSE)","v":"None"},0,{"$f":"VLOOKUP(V29,PostChemicals,3,FALSE)","v":1},0,{"$f":"VLOOKUP(V29,PostChemicals,2,FALSE)","v":0},0,null,"None",{"$f":"VLOOKUP($L29,PostChemicals,6,FALSE)","v":0},{"$f":"VLOOKUP($L29,PostChemicals,4,FALSE)","v":"None"},0,{"$f":"VLOOKUP(AE29,PostChemicals,3,FALSE)","v":1},0,{"$f":"VLOOKUP(AE29,PostChemicals,2,FALSE)","v":0},0]
[null,null,"None",{"$f":"VLOOKUP($C30,PostChemicals,6,FALSE)","v":0},{"$f":"VLOOKUP($C30,PostChemicals,4,FALSE)","v":"None"},0,{"$f":"VLOOKUP(C30,PostChemicals,3,FALSE)","v":1},0,{"$f":"VLOOKUP(C30,PostChemicals,2,FALSE)","v":0},0,null,"None",{"$f":"VLOOKUP($L30,PostChemicals,6,FALSE)","v":0},{"$f":"VLOOKUP($L30,PostChemicals,4,FALSE)","v":"None"},0,{"$f":"VLOOKUP(L30,PostChemicals,3,FALSE)","v":1},0,{"$f":"VLOOKUP(L30,PostChemicals,2,FALSE)","v":0},0,null,null,"None",{"$f":"VLOOKUP($C30,PostChemicals,6,FALSE)","v":0},{"$f":"VLOOKUP($C30,PostChemicals,4,FALSE)","v":"None"},0,{"$f":"VLOOKUP(V30,PostChemicals,3,FALSE)","v":1},0,{"$f":"VLOOKUP(V30,PostChemicals,2,FALSE)","v":0},0,null,"None",{"$f":"VLOOKUP($L30,PostChemicals,6,FALSE)","v":0},{"$f":"VLOOKUP($L30,PostChemicals,4,FALSE)","v":"None"},0,{"$f":"VLOOKUP(AE30,PostChemicals,3,FALSE)","v":1},0,{"$f":"VLOOKUP(AE30,PostChemicals,2,FALSE)","v":0},0]
[]
[null,null,"Adjuvants (drop down menu)",null,null,"(Enter Below)",null,"(Enter Below)",null,null,null,"Adjuvants (drop down menu)",null,null,"(Enter Below)",null,"(Enter Below)",null,null,null,null,"Adjuvants (drop down menu)",null,null,"(Enter Below)",null,"(Enter Below)",null,null,null,"Adjuvants (drop down menu)",null,null,"(Enter Below)",null,"(Enter Below)"]
[null,null,"None",null,{"$f":"VLOOKUP($C33,Adjuvants,4,FALSE)","v":"None"},0,{"$f":"VLOOKUP(C33,Adjuvants,3,FALSE)","v":1},0,{"$f":"VLOOKUP(C33,Adjuvants,2,FALSE)","v":0},{"$f":"H33/G33*F33","v":0},null,"None",null,{"$f":"VLOOKUP($L33,Adjuvants,4,FALSE)","v":"None"},0,{"$f":"VLOOKUP(L33,Adjuvants,3,FALSE)","v":1},0,{"$f":"VLOOKUP(L33,Adjuvants,2,FALSE)","v":0},{"$f":"Q33/P33*O33","v":0},null,null,"None",null,{"$f":"VLOOKUP($C33,Adjuvants,4,FALSE)","v":"None"},0,{"$f":"VLOOKUP(V33,Adjuvants,3,FALSE)","v":1},0,{"$f":"VLOOKUP(V33,Adjuvants,2,FALSE)","v":0},{"$f":"AA33/Z33*Y33","v":0},null,"None",null,{"$f":"VLOOKUP($L33,Adjuvants,4,FALSE)","v":"None"},0,{"$f":"VLOOKUP(AE33,Adjuvants,3,FALSE)","v":1},0,{"$f":"VLOOKUP(AE33,Adjuvants,2,FALSE)","v":0},{"$f":"AJ33/AI33*AH33","v":0}]
[null,null,"None",null,{"$f":"VLOOKUP($C34,Adjuvants,4,FALSE)","v":"None"},0,{"$f":"VLOOKUP(C34,Adjuvants,3,FALSE)","v":1},0,{"$f":"VLOOKUP(C34,Adjuvants,2,FALSE)","v":0},{"$f":"H34/G34*F34","v":0},null,"None",null,{"$f":"VLOOKUP($L34,Adjuvants,4,FALSE)","v":"None"},0,{"$f":"VLOOKUP(L34,Adjuvants,3,FALSE)","v":1},0,{"$f":"VLOOKUP(L34,Adjuvants,2,FALSE)","v":0},{"$f":"Q34/P34*O34","v":0},null,null,"None",null,{"$f":"VLOOKUP($C34,Adjuvants,4,FALSE)","v":"None"},0,{"$f":"VLOOKUP(V34,Adjuvants,3,FALSE)","v":1},0,{"$f":"VLOOKUP(V34,Adjuvants,2,FALSE)","v":0},{"$f":"AA34/Z34*Y34","v":0},null,"None",null,{"$f":"VLOOKUP($L34,Adjuvants,4,FALSE)","v":"None"},0,{"$f":"VLOOKUP(AE34,Adjuvants,3,FALSE)","v":1},0,{"$f":"VLOOKUP(AE34,Adjuvants,2,FALSE)","v":0},{"$f":"AJ34/AI34*AH34","v":0}]
[null,null,"None",null,{"$f":"VLOOKUP($C35,Adjuvants,4,FALSE)","v":"None"},0,{"$f":"VLOOKUP(C35,Adjuvants,3,FALSE)","v":1},0,{"$f":"VLOOKUP(C35,Adjuvants,2,FALSE)","v":0},0,null,"None",null,{"$f":"VLOOKUP($L35,Adjuvants,4,FALSE)","v":"None"},0,{"$f":"VLOOKUP(L35,Adjuvants,3,FALSE)","v":1},0,{"$f":"VLOOKUP(L35,Adjuvants,2,FALSE)","v":0},0,null,null,"None",null,{"$f":"VLOOKUP($C35,Adjuvants,4,FALSE)","v":"None"},0,{"$f":"VLOOKUP(V35,Adjuvants,3,FALSE)","v":1},0,{"$f":"VLOOKUP(V35,Adjuvants,2,FALSE)","v":0},0,null,"None",null,{"$f":"VLOOKUP($L35,Adjuvants,4,FALSE)","v":"None"},0,{"$f":"VLOOKUP(AE35,Adjuvants,3,FALSE)","v":1},0,{"$f":"VLOOKUP(AE35,Adjuvants,2,FALSE)","v":0},0]
[null,null,"None",null,{"$f":"VLOOKUP($C36,Adjuvants,4,FALSE)","v":"None"},0,{"$f":"VLOOKUP(C36,Adjuvants,3,FALSE)","v":1},0,{"$f":"VLOOKUP(C36,Adjuvants,2,FALSE)","v":0},0,null,"None",null,{"$f":"VLOOKUP($L36,Adjuvants,4,FALSE)","v":"None"},0,{"$f":"VLOOKUP(L36,Adjuvants,3,FALSE)","v":1},0,{"$f":"VLOOKUP(L36,Adjuvants,2,FALSE)","v":0},0,null,null,"None",null,{"$f":"VLOOKUP($C36,Adjuvants,4,FALSE)","v":"None"},0,{"$f":"VLOOKUP(V36,Adjuvants,3,FALSE)","v":1},0,{"$f":"VLOOKUP(V36,Adjuvants,2,FALSE)","v":0},0,null,"None",null,{"$f":"VLOOKUP($L36,Adjuvants,4,FALSE)","v":"None"},0,{"$f":"VLOOKUP(AE36,Adjuvants,3,FALSE)","v":1},0,{"$f":"VLOOKUP(AE36,Adjuvants,2,FALSE)","v":0},0]
[null,null,"None",null,{"$f":"VLOOKUP($C37,Adjuvants,4,FALSE)","v":"None"},0,{"$f":"VLOOKUP(C37,Adjuvants,3,FALSE)","v":1},0,{"$f":"VLOOKUP(C37,Adjuvants,2,FALSE)","v":0},0,null,"None",null,{"$f":"VLOOKUP($L37,Adjuvants,4,FALSE)","v":"None"},0,{"$f":"VLOOKUP(L37,Adjuvants,3,FALSE)","v":1},0,{"$f":"VLOOKUP(L37,Adjuvants,2,FALSE)","v":0},0,null,null,"None",null,{"$f":"VLOOKUP($C37,Adjuvants,4,FALSE)","v":"None"},0,{"$f":"VLOOKUP(V37,Adjuvants,3,FALSE)","v":1},0,{"$f":"VLOOKUP(V37,Adjuvants,2,FALSE)","v":0},0,null,"None",null,{"$f":"VLOOKUP($L37,Adjuvants,4,FALSE)","v":"None"},0,{"$f":"VLOOKUP(AE37,Adjuvants,3,FALSE)","v":1},0,{"$f":"VLOOKUP(AE37,Adjuvants,2,FALSE)","v":0},0]
[]
[null,null,"1st Application of Post-Emergence Herbicides Cost/Acre",null,null,null,null,null,null,{"$f":"SUM(J26:J37)","v":0},null,"2nd Application of Post-Emergence Herbicides Cost/Acre",null,null,null,null,null,null,{"$f":"SUM(S26:S37)","v":0},null,null,"1st Application of Post-Emergence Herbicides Cost/Acre",null,null,null,null,null,null,{"$f":"SUM(AC26:AC37)","v":0},null,"2nd Application of Post-Emergence Herbicides Cost/Acre",null,null,null,null,null,null,{"$f":"SUM(AL26:AL37)","v":0}]
[]
[null,null,null,null,null,null,null,null,null,null,null,"Summary Cost/Acre (Herbicides Only)",null,null,null,null,null,null,null,null,null,null,null,null,null,null,null,null,null,null,"Summary Cost/Acre (Herbicides Only)"]
[null,null,"Plan Year",null,null,null,null,null,null,null,null,null,null,null,null,null,null,null,null,null,null,{"$f":"C42","v":"Plan Year"}]
[null,null,"Farm Name",null,null,null,null,null,null,null,null,null,null,null,null,null,null,null,null,null,null,{"$f":"C43","v":"Farm Name"}]
[null,null,"Farm Tract",null,null,null,null,null,null,null,null,"Pre-plant/Pre-emergence/Burndown Total Cost/Acre",null,null,null,null,null,null,{"$f":"J20+S20","v":0},null,null,{"$f":"C44","v":"Farm Tract"},null,null,null,null,null,null,null,null,"Pre-plant/Pre-emergence/Burndown Total Cost/Acre",null,null,null,null,null,null,{"$f":"AC20+AL20","v":0}]
[null,null,"Farm Number",null,null,null,null,null,null,null,null,null,null,null,null,null,null,null,null,null,null,"Farm Number"]
[null,null,null,null,null,null,null,null,null,null,null,"Post-emergence Total Cost/Acre",null,null,null,null,null,null,{"$f":"J39+S39","v":0},null,null,null,null,null,null,null,null,null,null,null,"Post-emergence Total Cost/Acre",null,null,null,null,null,null,{"$f":"AC39+AL39","v":0}]
[]
[null,null,null,null,null,null,null,null,null,null,null,"Total Herbicide Cost/Acre",null,null,null,null,null,null,{"$f":"S39+J39+S20+J20","v":0},null,null,null,null,null,null,null,null,null,null,null,"Total Herbicide Cost/Acre",null,null,null,null,null,null,{"$f":"AL39+AC39+AL20+AC20","v":0}]
[]
[]
[null,null,"Fungicide & Insecticide Chemicals",null,null,null,null,null,null,null,null,null,null,null,null,null,null,null,null,null,null,"Fungicide & Insecticide Chemicals"]
[null,null,"1st Application of Fungicides",null,null,null,null,null,null,null,null,"2nd Application of Fungicides",null,null,null,null,null,null,null,null,null,"None",null,null,null,null,null,null,null,null,"2nd Application of Fungicides"]
[null,null,"Brand","Active Ingredient(s)","Purchase Units","Package Price (Gals, Lbs, etc.)","Units/Pkg","Rate/Acre","Rate Units","Cost",null,"Brand","Active Ingredient(s)","Purchase Units","Package Price (Gals, Lbs, etc.)","Units/Pkg","Rate/Acre","Rate Units","Cost",null,null,"Brand","Active Ingredient(s)","Purchase Units","Package Price (Gals, Lbs, etc.)","Units/Pkg","Rate/Acre","Rate Units","Cost",null,"Brand","Active Ingredient(s)","Purchase Units","Package Price (Gals, Lbs, etc.)","Units/Pkg","Rate/Acre","Rate Units","Cost"]
[null,null,"Fungicides (drop down menu)",null,null,"(Enter Below)",null,"(Enter Below)",null,null,null,"Fungicides (drop down menu)",null,null,"(Enter Below)",null,"(Enter Below)",null,null,null,null,"Fungicides (drop down menu)",null,null,"(Enter Below)",null,"(Enter Below)",null,null,null,"Fungicides (drop down menu)",null,null,"(Enter Below)",null,"(Enter Below)"]
[null,null,"None",{"$f":"VLOOKUP(C55,Fungicides,6,FALSE)","v":"None"},{"$f":"VLOOKUP($C55,Fungicides,4,FALSE)","v":"None"},0,{"$f":"VLOOKUP(C55,Fungicides,3,FALSE)","v":1},0,{"$f":"VLOOKUP(C55,Fungicides,2,FALSE)","v":0},{"$f":"H55/G55*F55","v":0},null,"None",{"$f":"VLOOKUP(L55,Fungicides,6,FALSE)","v":"None"},{"$f":"VLOOKUP($L55,Fungicides,4,FALSE)","v":"None"},0,{"$f":"VLOOKUP(L55,Fungicides,3,FALSE)","v":1},0,{"$f":"VLOOKUP(L55,Fungicides,2,FALSE)","v":0},{"$f":"Q55/P55*O55","v":0},null,null,"None",{"$f":"VLOOKUP(V55,Fungicides,6,FALSE)","v":"None"},{"$f":"VLOOKUP($C55,Fungicides,4,FALSE)","v":"None"},0,{"$f":"VLOOKUP(V55,Fungicides,3,FALSE)","v":1},0,{"$f":"VLOOKUP(V55,Fungicides,2,FALSE)","v":0},{"$f":"AA55/Z55*Y55","v":0},null,"None",{"$f":"VLOOKUP(AE55,Fungicides,6,FALSE)","v":"None"},{"$f":"VLOOKUP($C55,Fungicides,4,FALSE)","v":"None"},0,{"$f":"VLOOKUP(AE55,Fungicides,3,FALSE)","v":1},0,{"$f":"VLOOKUP(AE55,Fungicides,2,FALSE)","v":0},{"$f":"AJ55/AI55*AH55","v":0}]
[null,null,"None",{"$f":"VLOOKUP(C56,Fungicides,6,FALSE)","v":"None"},{"$f":"VLOOKUP($C56,Fungicides,4,FALSE)","v":"None"},0,{"$f":"VLOOKUP(C56,Fungicides,3,FALSE)","v":1},0,{"$f":"VLOOKUP(C56,Fungicides,2,FALSE)","v":0},{"$f":"H56/G56*F56","v":0},null,"None",{"$f":"VLOOKUP(L56,Fungicides,6,FALSE)","v":"None"},{"$f":"VLOOKUP($L56,Fungicides,4,FALSE)","v":"None"},0,{"$f":"VLOOKUP(L56,Fungicides,3,FALSE)","v":1},0,{"$f":"VLOOKUP(L56,Fungicides,2,FALSE)","v":0},{"$f":"Q56/P56*O56","v":0},null,null,"None",{"$f":"VLOOKUP(V56,Fungicides,6,FALSE)","v":"None"},{"$f":"VLOOKUP($C56,Fungicides,4,FALSE)","v":"None"},0,{"$f":"VLOOKUP(V56,Fungicides,3,FALSE)","v":1},0,{"$f":"VLOOKUP(V56,Fungicides,2,FALSE)","v":0},{"$f":"AA56/Z56*Y56","v":0},null,"None",{"$f":"VLOOKUP(AE56,Fungicides,6,FALSE)","v":"None"},{"$f":"VLOOKUP($C56,Fungicides,4,FALSE)","v":"None"},0,{"$f":"VLOOKUP(AE56,Fungicides,3,FALSE)","v":1},0,{"$f":"VLOOKUP(AE56,Fungicides,2,FALSE)","v":0},{"$f":"AJ56/AI56*AH56","v":0}]
[null,null,"None",{"$f":"VLOOKUP(C57,Fungicides,6,FALSE)","v":"None"},{"$f":"VLOOKUP($C57,Fungicides,4,FALSE)","v":"None"},0,{"$f":"VLOOKUP(C57,Fungicides,3,FALSE)","v":1},0,{"$f":"VLOOKUP(C57,Fungicides,2,FALSE)","v":0},0,null,"None",{"$f":"VLOOKUP(L57,Fungicides,6,FALSE)","v":"None"},{"$f":"VLOOKUP($L57,Fungicides,4,FALSE)","v":"None"},0,{"$f":"VLOOKUP(L57,Fungicides,3,FALSE)","v":1},0,{"$f":"VLOOKUP(L57,Fungicides,2,FALSE)","v":0},0,null,null,"None",{"$f":"VLOOKUP(V57,Fungicides,6,FALSE)","v":"None"},{"$f":"VLOOKUP($C57,Fungicides,4,FALSE)","v":"None"},0,{"$f":"VLOOKUP(V57,Fungicides,3,FALSE)","v":1},0,{"$f":"VLOOKUP(V57,Fungicides,2,FALSE)","v":0},0,null,"None",{"$f":"VLOOKUP(AE57,Fungicides,6,FALSE)","v":"None"},{"$f":"VLOOKUP($C57,Fungicides,4,FALSE)","v":"None"},0,{"$f":"VLOOKUP(AE57,Fungicides,3,FALSE)","v":1},0,{"$f":"VLOOKUP(AE57,Fungicides,2,FALSE)","v":0},0]
[]
[null,null,"Adjuvants (drop down menu)",null,null,"(Enter Below)",null,"(Enter Below)",null,null,null,"Adjuvants (drop down menu)",null,null,"(Enter Below)",null,"(Enter Below)",null,null,null,null,"Adjuvants (drop down menu)",null,null,"(Enter Below)",null,"(Enter Below)",null,null,null,"Adjuvants (drop down menu)",null,null,"(Enter Below)",null,"(Enter Below)"]
[null,null,"None",null,{"$f":"VLOOKUP($C60,Adjuvants,4,FALSE)","v":"None"},0,{"$f":"VLOOKUP(C60,Adjuvants,3,FALSE)","v":1},0,{"$f":"VLOOKUP(C60,Adjuvants,2,FALSE)","v":0},{"$f":"H60/G60*F60","v":0},null,"None",null,{"$f":"VLOOKUP($L60,Adjuvants,4,FALSE)","v":"None"},0,{"$f":"VLOOKUP(L60,Adjuvants,3,FALSE)","v":1},0,{"$f":"VLOOKUP(L60,Adjuvants,2,FALSE)","v":0},{"$f":"Q60/P60*O60","v":0},null,null,"None",null,{"$f":"VLOOKUP($C60,Adjuvants,4,FALSE)","v":"None"},0,{"$f":"VLOOKUP(V60,Adjuvants,3,FALSE)","v":1},0,{"$f":"VLOOKUP(V60,Adjuvants,2,FALSE)","v":0},{"$f":"AA60/Z60*Y60","v":0},null,"None",null,{"$f":"VLOOKUP($C60,Adjuvants,4,FALSE)","v":"None"},0,{"$f":"VLOOKUP(AE60,Adjuvants,3,FALSE)","v":1},0,{"$f":"VLOOKUP(AE60,Adjuvants,2,FALSE)","v":0},{"$f":"AJ60/AI60*AH60","v":0}]
[null,null,"None",null,{"$f":"VLOOKUP($C61,Adjuvants,4,FALSE)","v":"None"},0,{"$f":"VLOOKUP(C61,Adjuvants,3,FALSE)","v":1},0,{"$f":"VLOOKUP(C61,Adjuvants,2,FALSE)","v":0},{"$f":"H61/G61*F61","v":0},null,"None",null,{"$f":"VLOOKUP($L61,Adjuvants,4,FALSE)","v":"None"},0,{"$f":"VLOOKUP(L61,Adjuvants,3,FALSE)","v":1},0,{"$f":"VLOOKUP(L61,Adjuvants,2,FALSE)","v":0},{"$f":"Q61/P61*O61","v":0},null,null,"None",null,{"$f":"VLOOKUP($C61,Adjuvants,4,FALSE)","v":"None"},0,{"$f":"VLOOKUP(V61,Adjuvants,3,FALSE)","v":1},0,{"$f":"VLOOKUP(V61,Adjuvants,2,FALSE)","v":0},{"$f":"AA61/Z61*Y61","v":0},null,"None",null,{"$f":"VLOOKUP($C61,Adjuvants,4,FALSE)","v":"None"},0,{"$f":"VLOOKUP(AE61,Adjuvants,3,FALSE)","v":1},0,{"$f":"VLOOKUP(AE61,Adjuvants,2,FALSE)","v":0},{"$f":"AJ61/AI61*AH61","v":0}]
[null,null,"None",null,{"$f":"VLOOKUP($C62,Adjuvants,4,FALSE)","v":"None"},0,{"$f":"VLOOKUP(C62,Adjuvants,3,FALSE)","v":1},0,{"$f":"VLOOKUP(C62,Adjuvants,2,FALSE)","v":0},0,null,"None",null,{"$f":"VLOOKUP($L62,Adjuvants,4,FALSE)","v":"None"},0,{"$f":"VLOOKUP(L62,Adjuvants,3,FALSE)","v":1},0,{"$f":"VLOOKUP(L62,Adjuvants,2,FALSE)","v":0},0,null,null,"None",null,{"$f":"VLOOKUP($C62,Adjuvants,4,FALSE)","v":"None"},0,{"$f":"VLOOKUP(V62,Adjuvants,3,FALSE)","v":1},0,{"$f":"VLOOKUP(V62,Adjuvants,2,FALSE)","v":0},0,null,"None",null,{"$f":"VLOOKUP($C62,Adjuvants,4,FALSE)","v":"None"},0,{"$f":"VLOOKUP(AE62,Adjuvants,3,FALSE)","v":1},0,{"$f":"VLOOKUP(AE62,Adjuvants,2,FALSE)","v":0},0]
[null,null,"None",null,{"$f":"VLOOKUP($C63,Adjuvants,4,FALSE)","v":"None"},0,{"$f":"VLOOKUP(C63,Adjuvants,3,FALSE)","v":1},0,{"$f":"VLOOKUP(C63,Adjuvants,2,FALSE)","v":0},0,null,"None",null,{"$f":"VLOOKUP($L63,Adjuvants,4,FALSE)","v":"None"},0,{"$f":"VLOOKUP(L63,Adjuvants,3,FALSE)","v":1},0,{"$f":"VLOOKUP(L63,Adjuvants,2,FALSE)","v":0},0,null,null,"None",null,{"$f":"VLOOKUP($C63,Adjuvants,4,FALSE)","v":"None"},0,{"$f":"VLOOKUP(V63,Adjuvants,3,FALSE)","v":1},0,{"$f":"VLOOKUP(V63,Adjuvants,2,FALSE)","v":0},0,null,"None",null,{"$f":"VLOOKUP($C63,Adjuvants,4,FALSE)","v":"None"},0,{"$f":"VLOOKUP(AE63,Adjuvants,3,FALSE)","v":1},0,{"$f":"VLOOKUP(AE63,Adjuvants,2,FALSE)","v":0},0]
[null,null,"None",null,{"$f":"VLOOKUP($C64,Adjuvants,4,FALSE)","v":"None"},0,{"$f":"VLOOKUP(C64,Adjuvants,3,FALSE)","v":1},0,{"$f":"VLOOKUP(C64,Adjuvants,2,FALSE)","v":0},0,null,"None",null,{"$f":"VLOOKUP($L64,Adjuvants,4,FALSE)","v":"None"},0,{"$f":"VLOOKUP(L64,Adjuvants,3,FALSE)","v":1},0,{"$f":"VLOOKUP(L64,Adjuvants,2,FALSE)","v":0},0,null,null,"None",null,{"$f":"VLOOKUP($C64,Adjuvants,4,FALSE)","v":"None"},0,{"$f":"VLOOKUP(V64,Adjuvants,3,FALSE)","v":1},0,{"$f":"VLOOKUP(V64,Adjuvants,2,FALSE)","v":0},0,null,"None",null,{"$f":"VLOOKUP($C64,Adjuvants,4,FALSE)","v":"None"},0,{"$f":"VLOOKUP(AE64,Adjuvants,3,FALSE)","v":1},0,{"$f":"VLOOKUP(AE64,Adjuvants,2,FALSE)","v":0},0]
[]
[null,null,"Fungicide Cost/Acre",null,null,null,null,null,null,{"$f":"SUM(J55:J64)","v":0},null,"Fungicide Cost/Acre",null,null,null,null,null,null,{"$f":"SUM(S55:S64)","v":0},null,null,"Fungicide Cost/Acre",null,null,null,null,null,null,{"$f":"SUM(AC55:AC64)","v":0},null,"Fungicide Cost/Acre",null,null,null,null,null,null,{"$f":"SUM(AL55:AL64)","v":0}]
[]
[null,null,"1st Application of Insecticides",null,null,null,null,null,null,null,null,"2nd Application of Insecticides",null,null,null,null,null,null,null,null,null,"1st Application of Insecticides",null,null,null,null,null,null,null,null,"2nd Application of Insecticides"]
[null,null,"Brand","Active Ingredient(s)","Purchase Units","Package Price (Gals, Lbs, etc.)","Units/Pkg","Rate/Acre","Rate Units","Cost",null,"Brand","Active Ingredient(s)","Purchase Units","Package Price (Gals, Lbs, etc.)","Units/Pkg","Rate/Acre","Rate Units","Cost",null,null,"Brand","Active Ingredient(s)","Purchase Units","Package Price (Gals, Lbs, etc.)","Units/Pkg","Rate/Acre","Rate Units","Cost",null,"Brand","Active Ingredient(s)","Purchase Units","Package Price (Gals, Lbs, etc.)","Units/Pkg","Rate/Acre","Rate Units","Cost"]
[null,null,"Insecticides (drop down menu)",null,null,"(Enter Below)",null,"(Enter Below)",null,null,null,"Insecticides (drop down menu)",null,null,"(Enter Below)",null,"(Enter Below)",null,null,null,null,"Insecticides (drop down menu)",null,null,"(Enter Below)",null,"(Enter Below)",null,null,null,"Insecticides (drop down menu)",null,null,"(Enter Below)",null,"(Enter Below)"]
[null,null,"None",{"$f":"VLOOKUP(C71,Insecticides,6,FALSE)","v":"None"},{"$f":"VLOOKUP(#REF!,Insecticides,4,FALSE)","v":{"$error":"#REF!"}},0,{"$f":"VLOOKUP(C71,Insecticides,3,FALSE)","v":1},0,{"$f":"VLOOKUP(C71,Insecticides,2,FALSE)","v":0},{"$f":"H71/G71*F71","v":0},null,"None",{"$f":"VLOOKUP(L71,Insecticides,6,FALSE)","v":"None"},{"$f":"VLOOKUP(#REF!,Insecticides,4,FALSE)","v":{"$error":"#REF!"}},0,{"$f":"VLOOKUP(L71,Insecticides,3,FALSE)","v":1},0,{"$f":"VLOOKUP(L71,Insecticides,2,FALSE)","v":0},{"$f":"Q71/P71*O71","v":0},null,null,"None",{"$f":"VLOOKUP(V71,Insecticides,6,FALSE)","v":"None"},{"$f":"VLOOKUP(#REF!,Insecticides,4,FALSE)","v":{"$error":"#REF!"}},0,{"$f":"VLOOKUP(V71,Insecticides,3,FALSE)","v":1},0,{"$f":"VLOOKUP(V71,Insecticides,2,FALSE)","v":0},{"$f":"AA71/Z71*Y71","v":0},null,"None",{"$f":"VLOOKUP(AE71,Insecticides,6,FALSE)","v":"None"},{"$f":"VLOOKUP(#REF!,Insecticides,4,FALSE)","v":{"$error":"#REF!"}},0,{"$f":"VLOOKUP(AE71,Insecticides,3,FALSE)","v":1},0,{"$f":"VLOOKUP(AE71,Insecticides,2,FALSE)","v":0},{"$f":"AJ71/AI71*AH71","v":0}]
[null,null,"None",{"$f":"VLOOKUP(C72,Insecticides,6,FALSE)","v":"None"},{"$f":"VLOOKUP(#REF!,Insecticides,4,FALSE)","v":{"$error":"#REF!"}},0,{"$f":"VLOOKUP(C72,Insecticides,3,FALSE)","v":1},0,{"$f":"VLOOKUP(C72,Insecticides,2,FALSE)","v":0},{"$f":"H72/G72*F72","v":0},null,"None",{"$f":"VLOOKUP(L72,Insecticides,6,FALSE)","v":"None"},{"$f":"VLOOKUP(#REF!,Insecticides,4,FALSE)","v":{"$error":"#REF!"}},0,{"$f":"VLOOKUP(L72,Insecticides,3,FALSE)","v":1},0,{"$f":"VLOOKUP(L72,Insecticides,2,FALSE)","v":0},{"$f":"Q72/P72*O72","v":0},null,null,"None",{"$f":"VLOOKUP(V72,Insecticides,6,FALSE)","v":"None"},{"$f":"VLOOKUP(#REF!,Insecticides,4,FALSE)","v":{"$error":"#REF!"}},0,{"$f":"VLOOKUP(V72,Insecticides,3,FALSE)","v":1},0,{"$f":"VLOOKUP(V72,Insecticides,2,FALSE)","v":0},{"$f":"AA72/Z72*Y72","v":0},null,"None",{"$f":"VLOOKUP(AE72,Insecticides,6,FALSE)","v":"None"},{"$f":"VLOOKUP(#REF!,Insecticides,4,FALSE)","v":{"$error":"#REF!"}},0,{"$f":"VLOOKUP(AE72,Insecticides,3,FALSE)","v":1},0,{"$f":"VLOOKUP(AE72,Insecticides,2,FALSE)","v":0},{"$f":"AJ72/AI72*AH72","v":0}]
[null,null,"None",{"$f":"VLOOKUP(C73,Insecticides,6,FALSE)","v":"None"},{"$f":"VLOOKUP(#REF!,Insecticides,4,FALSE)","v":{"$error":"#REF!"}},0,{"$f":"VLOOKUP(C73,Insecticides,3,FALSE)","v":1},0,{"$f":"VLOOKUP(C73,Insecticides,2,FALSE)","v":0},0,null,"None",{"$f":"VLOOKUP(L73,Insecticides,6,FALSE)","v":"None"},{"$f":"VLOOKUP(#REF!,Insecticides,4,FALSE)","v":{"$error":"#REF!"}},0,{"$f":"VLOOKUP(L73,Insecticides,3,FALSE)","v":1},0,{"$f":"VLOOKUP(L73,Insecticides,2,FALSE)","v":0},0,null,null,"None",{"$f":"VLOOKUP(V73,Insecticides,6,FALSE)","v":"None"},{"$f":"VLOOKUP(#REF!,Insecticides,4,FALSE)","v":{"$error":"#REF!"}},0,{"$f":"VLOOKUP(V73,Insecticides,3,FALSE)","v":1},0,{"$f":"VLOOKUP(V73,Insecticides,2,FALSE)","v":0},0,null,"None",{"$f":"VLOOKUP(AE73,Insecticides,6,FALSE)","v":"None"},{"$f":"VLOOKUP(#REF!,Insecticides,4,FALSE)","v":{"$error":"#REF!"}},0,{"$f":"VLOOKUP(AE73,Insecticides,3,FALSE)","v":1},0,{"$f":"VLOOKUP(AE73,Insecticides,2,FALSE)","v":0},0]
[]
[null,null,"Adjuvants (drop down menu)",null,null,"(Enter Below)",null,"(Enter Below)",null,null,null,"Adjuvants (drop down menu)",null,null,"(Enter Below)",null,"(Enter Below)",null,null,null,null,"Adjuvants (drop down menu)",null,null,"(Enter Below)",null,"(Enter Below)",null,null,null,"Adjuvants (drop down menu)",null,null,"(Enter Below)",null,"(Enter Below)"]
[null,null,"None",null,{"$f":"VLOOKUP(#REF!,Adjuvants,4,FALSE)","v":{"$error":"#REF!"}},0,{"$f":"VLOOKUP(C76,Adjuvants,3,FALSE)","v":1},0,{"$f":"VLOOKUP(C76,Adjuvants,2,FALSE)","v":0},{"$f":"H76/G76*F76","v":0},null,"None",null,{"$f":"VLOOKUP(#REF!,Adjuvants,4,FALSE)","v":{"$error":"#REF!"}},0,{"$f":"VLOOKUP(L76,Adjuvants,3,FALSE)","v":1},0,{"$f":"VLOOKUP(L76,Adjuvants,2,FALSE)","v":0},{"$f":"Q76/P76*O76","v":0},null,null,"None",null,{"$f":"VLOOKUP(#REF!,Adjuvants,4,FALSE)","v":{"$error":"#REF!"}},0,{"$f":"VLOOKUP(V76,Adjuvants,3,FALSE)","v":1},0,{"$f":"VLOOKUP(V76,Adjuvants,2,FALSE)","v":0},{"$f":"AA76/Z76*Y76","v":0},null,"None",null,{"$f":"VLOOKUP(#REF!,Adjuvants,4,FALSE)","v":{"$error":"#REF!"}},0,{"$f":"VLOOKUP(AE76,Adjuvants,3,FALSE)","v":1},0,{"$f":"VLOOKUP(AE76,Adjuvants,2,FALSE)","v":0},{"$f":"AJ76/AI76*AH76","v":0}]
[null,null,"None",null,{"$f":"VLOOKUP(#REF!,Adjuvants,4,FALSE)","v":{"$error":"#REF!"}},0,{"$f":"VLOOKUP(C77,Adjuvants,3,FALSE)","v":1},0,{"$f":"VLOOKUP(C77,Adjuvants,2,FALSE)","v":0},{"$f":"H77/G77*F77","v":0},null,"None",null,{"$f":"VLOOKUP(#REF!,Adjuvants,4,FALSE)","v":{"$error":"#REF!"}},0,{"$f":"VLOOKUP(L77,Adjuvants,3,FALSE)","v":1},0,{"$f":"VLOOKUP(L77,Adjuvants,2,FALSE)","v":0},{"$f":"Q77/P77*O77","v":0},null,null,"None",null,{"$f":"VLOOKUP(#REF!,Adjuvants,4,FALSE)","v":{"$error":"#REF!"}},0,{"$f":"VLOOKUP(V77,Adjuvants,3,FALSE)","v":1},0,{"$f":"VLOOKUP(V77,Adjuvants,2,FALSE)","v":0},{"$f":"AA77/Z77*Y77","v":0},null,"None",null,{"$f":"VLOOKUP(#REF!,Adjuvants,4,FALSE)","v":{"$error":"#REF!"}},0,{"$f":"VLOOKUP(AE77,Adjuvants,3,FALSE)","v":1},0,{"$f":"VLOOKUP(AE77,Adjuvants,2,FALSE)","v":0},{"$f":"AJ77/AI77*AH77","v":0}]
[null,null,"None",null,{"$f":"VLOOKUP(#REF!,Adjuvants,4,FALSE)","v":{"$error":"#REF!"}},0,{"$f":"VLOOKUP(C78,Adjuvants,3,FALSE)","v":1},0,{"$f":"VLOOKUP(C78,Adjuvants,2,FALSE)","v":0},0,null,"None",null,{"$f":"VLOOKUP(#REF!,Adjuvants,4,FALSE)","v":{"$error":"#REF!"}},0,{"$f":"VLOOKUP(L78,Adjuvants,3,FALSE)","v":1},0,{"$f":"VLOOKUP(L78,Adjuvants,2,FALSE)","v":0},0,null,null,"None",null,{"$f":"VLOOKUP(#REF!,Adjuvants,4,FALSE)","v":{"$error":"#REF!"}},0,{"$f":"VLOOKUP(V78,Adjuvants,3,FALSE)","v":1},0,{"$f":"VLOOKUP(V78,Adjuvants,2,FALSE)","v":0},0,null,"None",null,{"$f":"VLOOKUP(#REF!,Adjuvants,4,FALSE)","v":{"$error":"#REF!"}},0,{"$f":"VLOOKUP(AE78,Adjuvants,3,FALSE)","v":1},0,{"$f":"VLOOKUP(AE78,Adjuvants,2,FALSE)","v":0},0]
[null,null,"None",null,{"$f":"VLOOKUP(#REF!,Adjuvants,4,FALSE)","v":{"$error":"#REF!"}},0,{"$f":"VLOOKUP(C79,Adjuvants,3,FALSE)","v":1},0,{"$f":"VLOOKUP(C79,Adjuvants,2,FALSE)","v":0},0,null,"None",null,{"$f":"VLOOKUP(#REF!,Adjuvants,4,FALSE)","v":{"$error":"#REF!"}},0,{"$f":"VLOOKUP(L79,Adjuvants,3,FALSE)","v":1},0,{"$f":"VLOOKUP(L79,Adjuvants,2,FALSE)","v":0},0,null,null,"None",null,{"$f":"VLOOKUP(#REF!,Adjuvants,4,FALSE)","v":{"$error":"#REF!"}},0,{"$f":"VLOOKUP(V79,Adjuvants,3,FALSE)","v":1},0,{"$f":"VLOOKUP(V79,Adjuvants,2,FALSE)","v":0},0,null,"None",null,{"$f":"VLOOKUP(#REF!,Adjuvants,4,FALSE)","v":{"$error":"#REF!"}},0,{"$f":"VLOOKUP(AE79,Adjuvants,3,FALSE)","v":1},0,{"$f":"VLOOKUP(AE79,Adjuvants,2,FALSE)","v":0},0]
[null,null,"None",null,{"$f":"VLOOKUP(#REF!,Adjuvants,4,FALSE)","v":{"$error":"#REF!"}},0,{"$f":"VLOOKUP(C80,Adjuvants,3,FALSE)","v":1},0,{"$f":"VLOOKUP(C80,Adjuvants,2,FALSE)","v":0},0,null,"None",null,{"$f":"VLOOKUP(#REF!,Adjuvants,4,FALSE)","v":{"$error":"#REF!"}},0,{"$f":"VLOOKUP(L80,Adjuvants,3,FALSE)","v":1},0,{"$f":"VLOOKUP(L80,Adjuvants,2,FALSE)","v":0},0,null,null,"None",null,{"$f":"VLOOKUP(#REF!,Adjuvants,4,FALSE)","v":{"$error":"#REF!"}},0,{"$f":"VLOOKUP(V80,Adjuvants,3,FALSE)","v":1},0,{"$f":"VLOOKUP(V80,Adjuvants,2,FALSE)","v":0},0,null,"None",null,{"$f":"VLOOKUP(#REF!,Adjuvants,4,FALSE)","v":{"$error":"#REF!"}},0,{"$f":"VLOOKUP(AE80,Adjuvants,3,FALSE)","v":1},0,{"$f":"VLOOKUP(AE80,Adjuvants,2,FALSE)","v":0},0]
[]
[null,null,"Insecticide Cost/Acre",null,null,null,null,null,null,{"$f":"SUM(J71:J80)","v":0},null,"Insecticide Cost/Acre",null,null,null,null,null,null,{"$f":"SUM(S71:S80)","v":0},null,null,"Insecticide Cost/Acre",null,null,null,null,null,null,{"$f":"SUM(AC71:AC80)","v":0},null,"Insecticide Cost/Acre",null,null,null,null,null,null,{"$f":"SUM(AL71:AL80)","v":0}]
[]
[null,null,null,null,null,null,null,null,null,null,null,"Summary Cost/Acre (All Chemistry)",null,null,null,null,null,null,null,null,null,null,null,null,null,null,null,null,null,null,"Summary Cost/Acre (All Chemistry)"]
[]
[]
[null,null,null,null,null,null,null,null,null,null,null,"Fungicide Total Cost/Acre",null,null,null,null,null,null,{"$f":"J66+S66","v":0},null,null,null,null,null,null,null,null,null,null,null,"Fungicide Total Cost/Acre",null,null,null,null,null,null,{"$f":"AC66+AL66","v":0}]
[null,null,{"$f":"C42","v":"Plan Year"},null,null,null,null,null,null,null,null,null,null,null,null,null,null,null,null,null,null,{"$f":"C42","v":"Plan Year"}]
[null,null,{"$f":"C43","v":"Farm Name"},null,null,null,null,null,null,null,null,"Insecticide Total Cost/Acre",null,null,null,null,null,null,{"$f":"J82+S82","v":0},null,null,{"$f":"C43","v":"Farm Name"},null,null,null,null,null,null,null,null,"Insecticide Total Cost/Acre",null,null,null,null,null,null,{"$f":"AC82+AL82","v":0}]
[null,null,{"$f":"C44","v":"Farm Tract"},null,null,null,null,null,null,null,null,null,null,null,null,null,null,null,null,null,null,{"$f":"C44","v":"Farm Tract"}]
[null,null,"Farm Number",null,null,null,null,null,null,null,null,"Total Herbicide Cost/Acre",null,null,null,null,null,null,{"$f":"S48","v":0},null,null,"Farm Number",null,null,null,null,null,null,null,null,"Total Herbicide Cost/Acre",null,null,null,null,null,null,{"$f":"AL48","v":0}]
[]
[null,null,null,null,null,null,null,null,null,null,null,"Total Pesticide Cost/Acre (Herbicide, Fungicide, & Insecticide)",null,null,null,null,null,null,{"$f":"S89+S87+S91","v":0},null,null,null,null,null,null,null,null,null,null,null,"Total Pesticide Cost/Acre (Herbicide, Fungicide, & Insecticide)",null,null,null,null,null,null,{"$f":"AL89+AL87+AL91","v":0}]

{"sheet":"Pesticide Plan (Vegetable 2)","index":2,"n_rows":93,"n_cols":38,"rows_kept":93,"cut":false,"hidden":false,"merged":[[0,0,0,1],[67,2,67,9],[67,11,67,18],[67,21,67,28],[67,30,67,37],[83,11,84,18],[83,30,84,37],[50,2,50,18],[50,21,50,37],[51,2,51,9],[51,11,51,18],[51,21,51,28],[51,30,51,37],[22,2,22,9],[22,11,22,18],[22,21,22,28],[22,30,22,37],[40,11,41,18],[40,30,41,37],[3,2,3,9],[3,11,3,18],[3,21,3,28],[3,30,3,37],[21,2,21,18],[21,21,21,37],[0,2,0,18],[0,21,0,37],[1,2,1,18],[1,21,1,37],[2,2,2,18],[2,21,2,37]]}
["Drop Down Menu --->",null,"Select Crop",null,null,null,null,null,null,null,null,null,null,null,null,null,null,null,null,null,null,{"$f":"C1","v":"Select Crop"}]
[null,null,"Comparison Plan #1",null,null,null,null,null,null,null,null,null,null,null,null,null,null,null,null,null,null,"Comparison Plan #2"]
[null,null,"Burndown/Pre-Plant/Early Post Emergence Herbicides",null,null,null,null,null,null,null,null,null,null,null,null,null,null,null,null,null,null,"Burndown/Pre-Plant/Early Post Emergence Herbicides"]
[null,null,"1st Application of Burndown/Pre-Plant/Early Post Emergencen Herbicides",null,null,null,null,null,null,null,null,"2nd Application of Burndown/Pre-Plant/Early Post Emergence Herbicides",null,null,null,null,null,null,null,null,null,"1st Application of Burndown/Pre-Plant/Early Post Emergencen Herbicides",null,null,null,null,null,null,null,null,"2nd Application of Burndown/Pre-Plant/Early Post Emergence Herbicides"]
[null,null,"Brand","Site of Action","Purchase Units","Package Price (Gals, Lbs, etc.)","Units/Pkg","Rate/Acre","Rate Units","Cost",null,"Brand","Site of Action","Purchase Units","Package Price (Gals, Lbs, etc.)","Units/Pkg","Rate/Acre","Rate Units","Cost",null,null,"Brand","Site of Action","Purchase Units","Package Price (Gals, Lbs, etc.)","Units/Pkg","Rate/Acre","Rate Units","Cost",null,"Brand","Site of Action","Purchase Units","Package Price (Gals, Lbs, etc.)","Units/Pkg","Rate/Acre","Rate Units","Cost"]
[null,null,"Herbicides (drop down menu)",null,null,"(Enter Below)",null,"(Enter Below)",null,null,null,"Herbicides (drop down menu)",null,null,"(Enter Below)",null,"(Enter Below)",null,null,null,null,"Herbicides (drop down menu)",null,null,"(Enter Below)",null,"(Enter Below)",null,null,null,"Herbicides (drop down menu)",null,null,"(Enter Below)",null,"(Enter Below)"]
[null,null,"None",{"$f":"VLOOKUP($C7,PreChemicals,6,FALSE)","v":0},{"$f":"VLOOKUP($C7,PreChemicals,4,FALSE)","v":"None"},0,{"$f":"VLOOKUP(C7,PreChemicals,3,FALSE)","v":1},0,{"$f":"VLOOKUP(C7,PreChemicals,2,FALSE)","v":0},{"$f":"H7/G7*F7","v":0},null,"None",{"$f":"VLOOKUP($L7,PreChemicals,6,FALSE)","v":0},{"$f":"VLOOKUP($L7,PreChemicals,4,FALSE)","v":"None"},0,{"$f":"VLOOKUP(L7,PreChemicals,3,FALSE)","v":1},0,{"$f":"VLOOKUP(L7,PreChemicals,2,FALSE)","v":0},{"$f":"Q7/P7*O7","v":0},null,null,"None",{"$f":"VLOOKUP($C7,PreChemicals,6,FALSE)","v":0},{"$f":"VLOOKUP($C7,PreChemicals,4,FALSE)","v":"None"},0,{"$f":"VLOOKUP(V7,PreChemicals,3,FALSE)","v":1},0,{"$f":"VLOOKUP(V7,PreChemicals,2,FALSE)","v":0},{"$f":"AA7/Z7*Y7","v":0},null,"None",0,0,0,{"$f":"VLOOKUP(AE7,PreChemicals,3,FALSE)","v":1},0,{"$f":"VLOOKUP(AE7,PreChemicals,2,FALSE)","v":0},{"$f":"AJ7/AI7*AH7","v":0}]
[null,null,"None",{"$f":"VLOOKUP($C8,PreChemicals,6,FALSE)","v":0},{"$f":"VLOOKUP($C8,PreChemicals,4,FALSE)","v":"None"},0,{"$f":"VLOOKUP(C8,PreChemicals,3,FALSE)","v":1},0,{"$f":"VLOOKUP(C8,PreChemicals,2,FALSE)","v":0},{"$f":"H8/G8*F8","v":0},null,"None",{"$f":"VLOOKUP($L8,PreChemicals,6,FALSE)","v":0},{"$f":"VLOOKUP($L8,PreChemicals,4,FALSE)","v":"None"},0,{"$f":"VLOOKUP(L8,PreChemicals,3,FALSE)","v":1},0,{"$f":"VLOOKUP(L8,PreChemicals,2,FALSE)","v":0},{"$f":"Q8/P8*O8","v":0},null,null,"None",{"$f":"VLOOKUP($C8,PreChemicals,6,FALSE)","v":0},{"$f":"VLOOKUP($C8,PreChemicals,4,FALSE)","v":"None"},0,{"$f":"VLOOKUP(V8,PreChemicals,3,FALSE)","v":1},0,{"$f":"VLOOKUP(V8,PreChemicals,2,FALSE)","v":0},{"$f":"AA8/Z8*Y8","v":0},null,"None",0,0,0,{"$f":"VLOOKUP(AE8,PreChemicals,3,FALSE)","v":1},0,{"$f":"VLOOKUP(AE8,PreChemicals,2,FALSE)","v":0},{"$f":"AJ8/AI8*AH8","v":0}]
[null,null,"None",{"$f":"VLOOKUP($C9,PreChemicals,6,FALSE)","v":0},{"$f":"VLOOKUP($C9,PreChemicals,4,FALSE)","v":"None"},0,{"$f":"VLOOKUP(C9,PreChemicals,3,FALSE)","v":1},0,{"$f":"VLOOKUP(C9,PreChemicals,2,FALSE)","v":0},0,null,"None",{"$f":"VLOOKUP($L9,PreChemicals,6,FALSE)","v":0},{"$f":"VLOOKUP($L9,PreChemicals,4,FALSE)","v":"None"},0,{"$f":"VLOOKUP(L9,PreChemicals,3,FALSE)","v":1},0,{"$f":"VLOOKUP(L9,PreChemicals,2,FALSE)","v":0},0,null,null,"None",{"$f":"VLOOKUP($C9,PreChemicals,6,FALSE)","v":0},{"$f":"VLOOKUP($C9,PreChemicals,4,FALSE)","v":"None"},0,{"$f":"VLOOKUP(V9,PreChemicals,3,FALSE)","v":1},0,{"$f":"VLOOKUP(V9,PreChemicals,2,FALSE)","v":0},0,null,"None",0,0,0,{"$f":"VLOOKUP(AE9,PreChemicals,3,FALSE)","v":1},0,{"$f":"VLOOKUP(AE9,PreChemicals,2,FALSE)","v":0},0]
[null,null,"None",{"$f":"VLOOKUP($C10,PreChemicals,6,FALSE)","v":0},{"$f":"VLOOKUP($C10,PreChemicals,4,FALSE)","v":"None"},0,{"$f":"VLOOKUP(C10,PreChemicals,3,FALSE)","v":1},0,{"$f":"VLOOKUP(C10,PreChemicals,2,FALSE)","v":0},0,null,"None",{"$f":"VLOOKUP($L10,PreChemicals,6,FALSE)","v":0},{"$f":"VLOOKUP($L10,PreChemicals,4,FALSE)","v":"None"},0,{"$f":"VLOOKUP(L10,PreChemicals,3,FALSE)","v":1},0,{"$f":"VLOOKUP(L10,PreChemicals,2,FALSE)","v":0},0,null,null,"None",{"$f":"VLOOKUP($C10,PreChemicals,6,FALSE)","v":0},{"$f":"VLOOKUP($C10,PreChemicals,4,FALSE)","v":"None"},0,{"$f":"VLOOKUP(V10,PreChemicals,3,FALSE)","v":1},0,{"$f":"VLOOKUP(V10,PreChemicals,2,FALSE)","v":0},0,null,"None",0,0,0,{"$f":"VLOOKUP(AE10,PreChemicals,3,FALSE)","v":1},0,{"$f":"VLOOKUP(AE10,PreChemicals,2,FALSE)","v":0},0]
[null,null,"None",{"$f":"VLOOKUP($C11,PreChemicals,6,FALSE)","v":0},{"$f":"VLOOKUP($C11,PreChemicals,4,FALSE)","v":"None"},0,{"$f":"VLOOKUP(C11,PreChemicals,3,FALSE)","v":1},0,{"$f":"VLOOKUP(C11,PreChemicals,2,FALSE)","v":0},0,null,"None",{"$f":"VLOOKUP($L11,PreChemicals,6,FALSE)","v":0},{"$f":"VLOOKUP($L11,PreChemicals,4,FALSE)","v":"None"},0,{"$f":"VLOOKUP(L11,PreChemicals,3,FALSE)","v":1},0,{"$f":"VLOOKUP(L11,PreChemicals,2,FALSE)","v":0},0,null,null,"None",{"$f":"VLOOKUP($C11,PreChemicals,6,FALSE)","v":0},{"$f":"VLOOKUP($C11,PreChemicals,4,FALSE)","v":"None"},0,{"$f":"VLOOKUP(V11,PreChemicals,3,FALSE)","v":1},0,{"$f":"VLOOKUP(V11,PreChemicals,2,FALSE)","v":0},0,null,"None",0,0,0,{"$f":"VLOOKUP(AE11,PreChemicals,3,FALSE)","v":1},0,{"$f":"VLOOKUP(AE11,PreChemicals,2,FALSE)","v":0},0]
[]
[null,null,"Adjuvants (drop down menu)",null,null,"(Enter Below)",null,"(Enter Below)",null,null,null,"Adjuvants (drop down menu)",null,null,"(Enter Below)",null,"(Enter Below)",null,null,null,null,"Adjuvants (drop down menu)",null,null,"(Enter Below)",null,"(Enter Below)",null,null,null,"Adjuvants (drop down menu)",null,null,"(Enter Below)",null,"(Enter Below)"]
[null,null,"None",null,{"$f":"VLOOKUP($C14,Adjuvants,4,FALSE)","v":"None"},0,{"$f":"VLOOKUP(C14,Adjuvants,3,FALSE)","v":1},0,{"$f":"VLOOKUP(C14,Adjuvants,2,FALSE)","v":0},{"$f":"H14/G14*F14","v":0},null,"None",null,{"$f":"VLOOKUP($L14,Adjuvants,4,FALSE)","v":"None"},0,{"$f":"VLOOKUP(L14,Adjuvants,3,FALSE)","v":1},0,{"$f":"VLOOKUP(L14,Adjuvants,2,FALSE)","v":0},{"$f":"Q14/P14*O14","v":0},null,null,"None",null,{"$f":"VLOOKUP($C14,Adjuvants,4,FALSE)","v":"None"},0,{"$f":"VLOOKUP(V14,Adjuvants,3,FALSE)","v":1},0,{"$f":"VLOOKUP(V14,Adjuvants,2,FALSE)","v":0},{"$f":"AA14/Z14*Y14","v":0},null,"None",null,{"$f":"VLOOKUP($L14,Adjuvants,4,FALSE)","v":"None"},0,{"$f":"VLOOKUP(AE14,Adjuvants,3,FALSE)","v":1},0,{"$f":"VLOOKUP(AE14,Adjuvants,2,FALSE)","v":0},{"$f":"AJ14/AI14*AH14","v":0}]
[null,null,"None",null,{"$f":"VLOOKUP($C15,Adjuvants,4,FALSE)","v":"None"},0,{"$f":"VLOOKUP(C15,Adjuvants,3,FALSE)","v":1},0,{"$f":"VLOOKUP(C15,Adjuvants,2,FALSE)","v":0},{"$f":"H15/G15*F15","v":0},null,"None",null,{"$f":"VLOOKUP($L15,Adjuvants,4,FALSE)","v":"None"},0,{"$f":"VLOOKUP(L15,Adjuvants,3,FALSE)","v":1},0,{"$f":"VLOOKUP(L15,Adjuvants,2,FALSE)","v":0},{"$f":"Q15/P15*O15","v":0},null,null,"None",null,{"$f":"VLOOKUP($C15,Adjuvants,4,FALSE)","v":"None"},0,{"$f":"VLOOKUP(V15,Adjuvants,3,FALSE)","v":1},0,{"$f":"VLOOKUP(V15,Adjuvants,2,FALSE)","v":0},{"$f":"AA15/Z15*Y15","v":0},null,"None",null,{"$f":"VLOOKUP($L15,Adjuvants,4,FALSE)","v":"None"},0,{"$f":"VLOOKUP(AE15,Adjuvants,3,FALSE)","v":1},0,{"$f":"VLOOKUP(AE15,Adjuvants,2,FALSE)","v":0},{"$f":"AJ15/AI15*AH15","v":0}]
[null,null,"None",null,{"$f":"VLOOKUP($C16,Adjuvants,4,FALSE)","v":"None"},0,{"$f":"VLOOKUP(C16,Adjuvants,3,FALSE)","v":1},0,{"$f":"VLOOKUP(C16,Adjuvants,2,FALSE)","v":0},0,null,"None",null,{"$f":"VLOOKUP($L16,Adjuvants,4,FALSE)","v":"None"},0,{"$f":"VLOOKUP(L16,Adjuvants,3,FALSE)","v":1},0,{"$f":"VLOOKUP(L16,Adjuvants,2,FALSE)","v":0},0,null,null,"None",null,{"$f":"VLOOKUP($C16,Adjuvants,4,FALSE)","v":"None"},0,{"$f":"VLOOKUP(V16,Adjuvants,3,FALSE)","v":1},0,{"$f":"VLOOKUP(V16,Adjuvants,2,FALSE)","v":0},0,null,"None",null,{"$f":"VLOOKUP($L16,Adjuvants,4,FALSE)","v":"None"},0,{"$f":"VLOOKUP(AE16,Adjuvants,3,FALSE)","v":1},0,{"$f":"VLOOKUP(AE16,Adjuvants,2,FALSE)","v":0},0]
[null,null,"None",null,{"$f":"VLOOKUP($C17,Adjuvants,4,FALSE)","v":"None"},0,{"$f":"VLOOKUP(C17,Adjuvants,3,FALSE)","v":1},0,{"$f":"VLOOKUP(C17,Adjuvants,2,FALSE)","v":0},0,null,"None",null,{"$f":"VLOOKUP($L17,Adjuvants,4,FALSE)","v":"None"},0,{"$f":"VLOOKUP(L17,Adjuvants,3,FALSE)","v":1},0,{"$f":"VLOOKUP(L17,Adjuvants,2,FALSE)","v":0},0,null,null,"None",null,{"$f":"VLOOKUP($C17,Adjuvants,4,FALSE)","v":"None"},0,{"$f":"VLOOKUP(V17,Adjuvants,3,FALSE)","v":1},0,{"$f":"VLOOKUP(V17,Adjuvants,2,FALSE)","v":0},0,null,"None",null,{"$f":"VLOOKUP($L17,Adjuvants,4,FALSE)","v":"None"},0,{"$f":"VLOOKUP(AE17,Adjuvants,3,FALSE)","v":1},0,{"$f":"VLOOKUP(AE17,Adjuvants,2,FALSE)","v":0},0]
[null,null,"None",null,{"$f":"VLOOKUP($C18,Adjuvants,4,FALSE)","v":"None"},0,{"$f":"VLOOKUP(C18,Adjuvants,3,FALSE)","v":1},0,{"$f":"VLOOKUP(C18,Adjuvants,2,FALSE)","v":0},0,null,"None",null,{"$f":"VLOOKUP($L18,Adjuvants,4,FALSE)","v":"None"},0,{"$f":"VLOOKUP(L18,Adjuvants,3,FALSE)","v":1},0,{"$f":"VLOOKUP(L18,Adjuvants,2,FALSE)","v":0},0,null,null,"None",null,{"$f":"VLOOKUP($C18,Adjuvants,4,FALSE)","v":"None"},0,{"$f":"VLOOKUP(V18,Adjuvants,3,FALSE)","v":1},0,{"$f":"VLOOKUP(V18,Adjuvants,2,FALSE)","v":0},0,null,"None",null,{"$f":"VLOOKUP($L18,Adjuvants,4,FALSE)","v":"None"},0,{"$f":"VLOOKUP(AE18,Adjuvants,3,FALSE)","v":1},0,{"$f":"VLOOKUP(AE18,Adjuvants,2,FALSE)","v":0},0]
[]
[null,null,"1st Application Pre-plan/Pre-Emergence Herbicide Cost/Acre",null,null,null,null,null,null,{"$f":"SUM(J7:J18)","v":0},null,"2nd Application Pre-plan/Pre-Emergence Herbicide Cost/Acre",null,null,null,null,null,null,{"$f":"SUM(S7:S18)","v":0},null,null,"1st Application Pre-plan/Pre-Emergence Herbicide Cost/Acre",null,null,null,null,null,null,{"$f":"SUM(AC7:AC18)","v":0},null,"2nd Application Pre-plan/Pre-Emergence Herbicide Cost/Acre",null,null,null,null,null,null,{"$f":"SUM(AL7:AL18)","v":0}]
[]
[null,null,"Post-Emergence Herbicides",null,null,null,null,null,null,null,null,null,null,null,null,null,null,null,null,null,null,"Post-Emergence Herbicides"]
[null,null,"1st Application of Post-Emergence Herbicides",null,null,null,null,null,null,null,null,"2nd Application of Post-Emergence Herbicides",null,null,null,null,null,null,null,null,null,"1st Application of Post-Emergence Herbicides",null,null,null,null,null,null,null,null,"2nd Application of Post-Emergence Herbicides"]
[null,null,"Brand","Site of Action","Purchase Units","Package Price (Gals, Lbs, etc.)","Units/Pkg","Rate/Acre","Rate Units","Cost",null,"Brand","Site of Action","Purchase Units","Package Price (Gals, Lbs, etc.)","Units/Pkg","Rate/Acre","Rate Units","Cost",null,null,"Brand","Site of Action","Purchase Units","Package Price (Gals, Lbs, etc.)","Units/Pkg","Rate/Acre","Rate Units","Cost",null,"Brand","Site of Action","Purchase Units","Package Price (Gals, Lbs, etc.)","Units/Pkg","Rate/Acre","Rate Units","Cost"]
[null,null,"Herbicides (drop down menu)",null,null,"(Enter Below)",null,"(Enter Below)",null,null,null,"Herbicides (drop down menu)",null,null,"(Enter Below)",null,"(Enter Below)",null,null,null,null,"Herbicides (drop down menu)",null,null,"(Enter Below)",null,"(Enter Below)",null,null,null,"Herbicides (drop down menu)",null,null,"(Enter Below)",null,"(Enter Below)"]
[null,null,"None",{"$f":"VLOOKUP($C26,PostChemicals,6,FALSE)","v":0},{"$f":"VLOOKUP($C26,PostChemicals,4,FALSE)","v":"None"},0,{"$f":"VLOOKUP(C26,PostChemicals,3,FALSE)","v":1},0,{"$f":"VLOOKUP(C26,PostChemicals,2,FALSE)","v":0},{"$f":"H26/G26*F26","v":0},null,"None",{"$f":"VLOOKUP($L26,PostChemicals,6,FALSE)","v":0},{"$f":"VLOOKUP($L26,PostChemicals,4,FALSE)","v":"None"},0,{"$f":"VLOOKUP(L26,PostChemicals,3,FALSE)","v":1},0,{"$f":"VLOOKUP(L26,PostChemicals,2,FALSE)","v":0},{"$f":"Q26/P26*O26","v":0},null,null,"None",{"$f":"VLOOKUP($C26,PostChemicals,6,FALSE)","v":0},{"$f":"VLOOKUP($C26,PostChemicals,4,FALSE)","v":"None"},0,{"$f":"VLOOKUP(V26,PostChemicals,3,FALSE)","v":1},0,{"$f":"VLOOKUP(V26,PostChemicals,2,FALSE)","v":0},{"$f":"AA26/Z26*Y26","v":0},null,"None",{"$f":"VLOOKUP($L26,PostChemicals,6,FALSE)","v":0},{"$f":"VLOOKUP($L26,PostChemicals,4,FALSE)","v":"None"},0,{"$f":"VLOOKUP(AE26,PostChemicals,3,FALSE)","v":1},0,{"$f":"VLOOKUP(AE26,PostChemicals,2,FALSE)","v":0},{"$f":"AJ26/AI26*AH26","v":0}]
[null,null,"None",{"$f":"VLOOKUP($C27,PostChemicals,6,FALSE)","v":0},{"$f":"VLOOKUP($C27,PostChemicals,4,FALSE)","v":"None"},0,{"$f":"VLOOKUP(C27,PostChemicals,3,FALSE)","v":1},0,{"$f":"VLOOKUP(C27,PostChemicals,2,FALSE)","v":0},{"$f":"H27/G27*F27","v":0},null,"None",{"$f":"VLOOKUP($L27,PostChemicals,6,FALSE)","v":0},{"$f":"VLOOKUP($L27,PostChemicals,4,FALSE)","v":"None"},0,{"$f":"VLOOKUP(L27,PostChemicals,3,FALSE)","v":1},0,{"$f":"VLOOKUP(L27,PostChemicals,2,FALSE)","v":0},{"$f":"Q27/P27*O27","v":0},null,null,"None",{"$f":"VLOOKUP($C27,PostChemicals,6,FALSE)","v":0},{"$f":"VLOOKUP($C27,PostChemicals,4,FALSE)","v":"None"},0,{"$f":"VLOOKUP(V27,PostChemicals,3,FALSE)","v":1},0,{"$f":"VLOOKUP(V27,PostChemicals,2,FALSE)","v":0},{"$f":"AA27/Z27*Y27","v":0},null,"None",{"$f":"VLOOKUP($L27,PostChemicals,6,FALSE)","v":0},{"$f":"VLOOKUP($L27,PostChemicals,4,FALSE)","v":"None"},0,{"$f":"VLOOKUP(AE27,PostChemicals,3,FALSE)","v":1},0,{"$f":"VLOOKUP(AE27,PostChemicals,2,FALSE)","v":0},{"$f":"AJ27/AI27*AH27","v":0}]
[null,null,"None",{"$f":"VLOOKUP($C28,PostChemicals,6,FALSE)","v":0},{"$f":"VLOOKUP($C28,PostChemicals,4,FALSE)","v":"None"},0,{"$f":"VLOOKUP(C28,PostChemicals,3,FALSE)","v":1},0,{"$f":"VLOOKUP(C28,PostChemicals,2,FALSE)","v":0},0,null,"None",{"$f":"VLOOKUP($L28,PostChemicals,6,FALSE)","v":0},{"$f":"VLOOKUP($L28,PostChemicals,4,FALSE)","v":"None"},0,{"$f":"VLOOKUP(L28,PostChemicals,3,FALSE)","v":1},0,{"$f":"VLOOKUP(L28,PostChemicals,2,FALSE)","v":0},0,null,null,"None",{"$f":"VLOOKUP($C28,PostChemicals,6,FALSE)","v":0},{"$f":"VLOOKUP($C28,PostChemicals,4,FALSE)","v":"None"},0,{"$f":"VLOOKUP(V28,PostChemicals,3,FALSE)","v":1},0,{"$f":"VLOOKUP(V28,PostChemicals,2,FALSE)","v":0},0,null,"None",{"$f":"VLOOKUP($L28,PostChemicals,6,FALSE)","v":0},{"$f":"VLOOKUP($L28,PostChemicals,4,FALSE)","v":"None"},0,{"$f":"VLOOKUP(AE28,PostChemicals,3,FALSE)","v":1},0,{"$f":"VLOOKUP(AE28,PostChemicals,2,FALSE)","v":0},0]
[null,null,"None",{"$f":"VLOOKUP($C29,PostChemicals,6,FALSE)","v":0},{"$f":"VLOOKUP($C29,PostChemicals,4,FALSE)","v":"None"},0,{"$f":"VLOOKUP(C29,PostChemicals,3,FALSE)","v":1},0,{"$f":"VLOOKUP(C29,PostChemicals,2,FALSE)","v":0},0,null,"None",{"$f":"VLOOKUP($L29,PostChemicals,6,FALSE)","v":0},{"$f":"VLOOKUP($L29,PostChemicals,4,FALSE)","v":"None"},0,{"$f":"VLOOKUP(L29,PostChemicals,3,FALSE)","v":1},0,{"$f":"VLOOKUP(L29,PostChemicals,2,FALSE)","v":0},0,null,null,"None",{"$f":"VLOOKUP($C29,PostChemicals,6,FALSE)","v":0},{"$f":"VLOOKUP($C29,PostChemicals,4,FALSE)","v":"None"},0,{"$f":"VLOOKUP(V29,PostChemicals,3,FALSE)","v":1},0,{"$f":"VLOOKUP(V29,PostChemicals,2,FALSE)","v":0},0,null,"None",{"$f":"VLOOKUP($L29,PostChemicals,6,FALSE)","v":0},{"$f":"VLOOKUP($L29,PostChemicals,4,FALSE)","v":"None"},0,{"$f":"VLOOKUP(AE29,PostChemicals,3,FALSE)","v":1},0,{"$f":"VLOOKUP(AE29,PostChemicals,2,FALSE)","v":0},0]
[null,null,"None",{"$f":"VLOOKUP($C30,PostChemicals,6,FALSE)","v":0},{"$f":"VLOOKUP($C30,PostChemicals,4,FALSE)","v":"None"},0,{"$f":"VLOOKUP(C30,PostChemicals,3,FALSE)","v":1},0,{"$f":"VLOOKUP(C30,PostChemicals,2,FALSE)","v":0},0,null,"None",{"$f":"VLOOKUP($L30,PostChemicals,6,FALSE)","v":0},{"$f":"VLOOKUP($L30,PostChemicals,4,FALSE)","v":"None"},0,{"$f":"VLOOKUP(L30,PostChemicals,3,FALSE)","v":1},0,{"$f":"VLOOKUP(L30,PostChemicals,2,FALSE)","v":0},0,null,null,"None",{"$f":"VLOOKUP($C30,PostChemicals,6,FALSE)","v":0},{"$f":"VLOOKUP($C30,PostChemicals,4,FALSE)","v":"None"},0,{"$f":"VLOOKUP(V30,PostChemicals,3,FALSE)","v":1},0,{"$f":"VLOOKUP(V30,PostChemicals,2,FALSE)","v":0},0,null,"None",{"$f":"VLOOKUP($L30,PostChemicals,6,FALSE)","v":0},{"$f":"VLOOKUP($L30,PostChemicals,4,FALSE)","v":"None"},0,{"$f":"VLOOKUP(AE30,PostChemicals,3,FALSE)","v":1},0,{"$f":"VLOOKUP(AE30,PostChemicals,2,FALSE)","v":0},0]
[]
[null,null,"Adjuvants (drop down menu)",null,null,"(Enter Below)",null,"(Enter Below)",null,null,null,"Adjuvants (drop down menu)",null,null,"(Enter Below)",null,"(Enter Below)",null,null,null,null,"Adjuvants (drop down menu)",null,null,"(Enter Below)",null,"(Enter Below)",null,null,null,"Adjuvants (drop down menu)",null,null,"(Enter Below)",null,"(Enter Below)"]
[null,null,"None",null,{"$f":"VLOOKUP($C33,Adjuvants,4,FALSE)","v":"None"},0,{"$f":"VLOOKUP(C33,Adjuvants,3,FALSE)","v":1},0,{"$f":"VLOOKUP(C33,Adjuvants,2,FALSE)","v":0},{"$f":"H33/G33*F33","v":0},null,"None",null,{"$f":"VLOOKUP($L33,Adjuvants,4,FALSE)","v":"None"},0,{"$f":"VLOOKUP(L33,Adjuvants,3,FALSE)","v":1},0,{"$f":"VLOOKUP(L33,Adjuvants,2,FALSE)","v":0},{"$f":"Q33/P33*O33","v":0},null,null,"None",null,{"$f":"VLOOKUP($C33,Adjuvants,4,FALSE)","v":"None"},0,{"$f":"VLOOKUP(V33,Adjuvants,3,FALSE)","v":1},0,{"$f":"VLOOKUP(V33,Adjuvants,2,FALSE)","v":0},{"$f":"AA33/Z33*Y33","v":0},null,"None",null,{"$f":"VLOOKUP($L33,Adjuvants,4,FALSE)","v":"None"},0,{"$f":"VLOOKUP(AE33,Adjuvants,3,FALSE)","v":1},0,{"$f":"VLOOKUP(AE33,Adjuvants,2,FALSE)","v":0},{"$f":"AJ33/AI33*AH33","v":0}]
[null,null,"None",null,{"$f":"VLOOKUP($C34,Adjuvants,4,FALSE)","v":"None"},0,{"$f":"VLOOKUP(C34,Adjuvants,3,FALSE)","v":1},0,{"$f":"VLOOKUP(C34,Adjuvants,2,FALSE)","v":0},{"$f":"H34/G34*F34","v":0},null,"None",null,{"$f":"VLOOKUP($L34,Adjuvants,4,FALSE)","v":"None"},0,{"$f":"VLOOKUP(L34,Adjuvants,3,FALSE)","v":1},0,{"$f":"VLOOKUP(L34,Adjuvants,2,FALSE)","v":0},{"$f":"Q34/P34*O34","v":0},null,null,"None",null,{"$f":"VLOOKUP($C34,Adjuvants,4,FALSE)","v":"None"},0,{"$f":"VLOOKUP(V34,Adjuvants,3,FALSE)","v":1},0,{"$f":"VLOOKUP(V34,Adjuvants,2,FALSE)","v":0},{"$f":"AA34/Z34*Y34","v":0},null,"None",null,{"$f":"VLOOKUP($L34,Adjuvants,4,FALSE)","v":"None"},0,{"$f":"VLOOKUP(AE34,Adjuvants,3,FALSE)","v":1},0,{"$f":"VLOOKUP(AE34,Adjuvants,2,FALSE)","v":0},{"$f":"AJ34/AI34*AH34","v":0}]
[null,null,"None",null,{"$f":"VLOOKUP($C35,Adjuvants,4,FALSE)","v":"None"},0,{"$f":"VLOOKUP(C35,Adjuvants,3,FALSE)","v":1},0,{"$f":"VLOOKUP(C35,Adjuvants,2,FALSE)","v":0},0,null,"None",null,{"$f":"VLOOKUP($L35,Adjuvants,4,FALSE)","v":"None"},0,{"$f":"VLOOKUP(L35,Adjuvants,3,FALSE)","v":1},0,{"$f":"VLOOKUP(L35,Adjuvants,2,FALSE)","v":0},0,null,null,"None",null,{"$f":"VLOOKUP($C35,Adjuvants,4,FALSE)","v":"None"},0,{"$f":"VLOOKUP(V35,Adjuvants,3,FALSE)","v":1},0,{"$f":"VLOOKUP(V35,Adjuvants,2,FALSE)","v":0},0,null,"None",null,{"$f":"VLOOKUP($L35,Adjuvants,4,FALSE)","v":"None"},0,{"$f":"VLOOKUP(AE35,Adjuvants,3,FALSE)","v":1},0,{"$f":"VLOOKUP(AE35,Adjuvants,2,FALSE)","v":0},0]
[null,null,"None",null,{"$f":"VLOOKUP($C36,Adjuvants,4,FALSE)","v":"None"},0,{"$f":"VLOOKUP(C36,Adjuvants,3,FALSE)","v":1},0,{"$f":"VLOOKUP(C36,Adjuvants,2,FALSE)","v":0},0,null,"None",null,{"$f":"VLOOKUP($L36,Adjuvants,4,FALSE)","v":"None"},0,{"$f":"VLOOKUP(L36,Adjuvants,3,FALSE)","v":1},0,{"$f":"VLOOKUP(L36,Adjuvants,2,FALSE)","v":0},0,null,null,"None",null,{"$f":"VLOOKUP($C36,Adjuvants,4,FALSE)","v":"None"},0,{"$f":"VLOOKUP(V36,Adjuvants,3,FALSE)","v":1},0,{"$f":"VLOOKUP(V36,Adjuvants,2,FALSE)","v":0},0,null,"None",null,{"$f":"VLOOKUP($L36,Adjuvants,4,FALSE)","v":"None"},0,{"$f":"VLOOKUP(AE36,Adjuvants,3,FALSE)","v":1},0,{"$f":"VLOOKUP(AE36,Adjuvants,2,FALSE)","v":0},0]
[null,null,"None",null,{"$f":"VLOOKUP($C37,Adjuvants,4,FALSE)","v":"None"},0,{"$f":"VLOOKUP(C37,Adjuvants,3,FALSE)","v":1},0,{"$f":"VLOOKUP(C37,Adjuvants,2,FALSE)","v":0},0,null,"None",null,{"$f":"VLOOKUP($L37,Adjuvants,4,FALSE)","v":"None"},0,{"$f":"VLOOKUP(L37,Adjuvants,3,FALSE)","v":1},0,{"$f":"VLOOKUP(L37,Adjuvants,2,FALSE)","v":0},0,null,null,"None",null,{"$f":"VLOOKUP($C37,Adjuvants,4,FALSE)","v":"None"},0,{"$f":"VLOOKUP(V37,Adjuvants,3,FALSE)","v":1},0,{"$f":"VLOOKUP(V37,Adjuvants,2,FALSE)","v":0},0,null,"None",null,{"$f":"VLOOKUP($L37,Adjuvants,4,FALSE)","v":"None"},0,{"$f":"VLOOKUP(AE37,Adjuvants,3,FALSE)","v":1},0,{"$f":"VLOOKUP(AE37,Adjuvants,2,FALSE)","v":0},0]
[]
[null,null,"1st Application of Post-Emergence Herbicides Cost/Acre",null,null,null,null,null,null,{"$f":"SUM(J26:J37)","v":0},null,"2nd Application of Post-Emergence Herbicides Cost/Acre",null,null,null,null,null,null,{"$f":"SUM(S26:S37)","v":0},null,null,"1st Application of Post-Emergence Herbicides Cost/Acre",null,null,null,null,null,null,{"$f":"SUM(AC26:AC37)","v":0},null,"2nd Application of Post-Emergence Herbicides Cost/Acre",null,null,null,null,null,null,{"$f":"SUM(AL26:AL37)","v":0}]
[]
[null,null,null,null,null,null,null,null,null,null,null,"Summary Cost/Acre (Herbicides Only)",null,null,null,null,null,null,null,null,null,null,null,null,null,null,null,null,null,null,"Summary Cost/Acre (Herbicides Only)"]
[null,null,"Plan Year",null,null,null,null,null,null,null,null,null,null,null,null,null,null,null,null,null,null,{"$f":"C42","v":"Plan Year"}]
[null,null,"Farm Name",null,null,null,null,null,null,null,null,null,null,null,null,null,null,null,null,null,null,{"$f":"C43","v":"Farm Name"}]
[null,null,"Farm Tract",null,null,null,null,null,null,null,null,"Pre-plant/Pre-emergence/Burndown Total Cost/Acre",null,null,null,null,null,null,{"$f":"J20+S20","v":0},null,null,{"$f":"C44","v":"Farm Tract"},null,null,null,null,null,null,null,null,"Pre-plant/Pre-emergence/Burndown Total Cost/Acre",null,null,null,null,null,null,{"$f":"AC20+AL20","v":0}]
[null,null,"Farm Number",null,null,null,null,null,null,null,null,null,null,null,null,null,null,null,null,null,null,"Farm Number"]
[null,null,null,null,null,null,null,null,null,null,null,"Post-emergence Total Cost/Acre",null,null,null,null,null,null,{"$f":"J39+S39","v":0},null,null,null,null,null,null,null,null,null,null,null,"Post-emergence Total Cost/Acre",null,null,null,null,null,null,{"$f":"AC39+AL39","v":0}]
[]
[null,null,null,null,null,null,null,null,null,null,null,"Total Herbicide Cost/Acre",null,null,null,null,null,null,{"$f":"S39+J39+S20+J20","v":0},null,null,null,null,null,null,null,null,null,null,null,"Total Herbicide Cost/Acre",null,null,null,null,null,null,{"$f":"AL39+AC39+AL20+AC20","v":0}]
[]
[]
[null,null,"Fungicide & Insecticide Chemicals",null,null,null,null,null,null,null,null,null,null,null,null,null,null,null,null,null,null,"Fungicide & Insecticide Chemicals"]
[null,null,"1st Application of Fungicides",null,null,null,null,null,null,null,null,"2nd Application of Fungicides",null,null,null,null,null,null,null,null,null,"None",null,null,null,null,null,null,null,null,"2nd Application of Fungicides"]
[null,null,"Brand","Active Ingredient(s)","Purchase Units","Package Price (Gals, Lbs, etc.)","Units/Pkg","Rate/Acre","Rate Units","Cost",null,"Brand","Active Ingredient(s)","Purchase Units","Package Price (Gals, Lbs, etc.)","Units/Pkg","Rate/Acre","Rate Units","Cost",null,null,"Brand","Active Ingredient(s)","Purchase Units","Package Price (Gals, Lbs, etc.)","Units/Pkg","Rate/Acre","Rate Units","Cost",null,"Brand","Active Ingredient(s)","Purchase Units","Package Price (Gals, Lbs, etc.)","Units/Pkg","Rate/Acre","Rate Units","Cost"]
[null,null,"Fungicides (drop down menu)",null,null,"(Enter Below)",null,"(Enter Below)",null,null,null,"Fungicides (drop down menu)",null,null,"(Enter Below)",null,"(Enter Below)",null,null,null,null,"Fungicides (drop down menu)",null,null,"(Enter Below)",null,"(Enter Below)",null,null,null,"Fungicides (drop down menu)",null,null,"(Enter Below)",null,"(Enter Below)"]
[null,null,"None",{"$f":"VLOOKUP(C55,Fungicides,6,FALSE)","v":"None"},{"$f":"VLOOKUP($C55,Fungicides,4,FALSE)","v":"None"},0,{"$f":"VLOOKUP(C55,Fungicides,3,FALSE)","v":1},0,{"$f":"VLOOKUP(C55,Fungicides,2,FALSE)","v":0},{"$f":"H55/G55*F55","v":0},null,"None",{"$f":"VLOOKUP(L55,Fungicides,6,FALSE)","v":"None"},{"$f":"VLOOKUP($L55,Fungicides,4,FALSE)","v":"None"},0,{"$f":"VLOOKUP(L55,Fungicides,3,FALSE)","v":1},0,{"$f":"VLOOKUP(L55,Fungicides,2,FALSE)","v":0},{"$f":"Q55/P55*O55","v":0},null,null,"None",{"$f":"VLOOKUP(V55,Fungicides,6,FALSE)","v":"None"},{"$f":"VLOOKUP($C55,Fungicides,4,FALSE)","v":"None"},0,{"$f":"VLOOKUP(V55,Fungicides,3,FALSE)","v":1},0,{"$f":"VLOOKUP(V55,Fungicides,2,FALSE)","v":0},{"$f":"AA55/Z55*Y55","v":0},null,"None",{"$f":"VLOOKUP(AE55,Fungicides,6,FALSE)","v":"None"},{"$f":"VLOOKUP($C55,Fungicides,4,FALSE)","v":"None"},0,{"$f":"VLOOKUP(AE55,Fungicides,3,FALSE)","v":1},0,{"$f":"VLOOKUP(AE55,Fungicides,2,FALSE)","v":0},{"$f":"AJ55/AI55*AH55","v":0}]
[null,null,"None",{"$f":"VLOOKUP(C56,Fungicides,6,FALSE)","v":"None"},{"$f":"VLOOKUP($C56,Fungicides,4,FALSE)","v":"None"},0,{"$f":"VLOOKUP(C56,Fungicides,3,FALSE)","v":1},0,{"$f":"VLOOKUP(C56,Fungicides,2,FALSE)","v":0},{"$f":"H56/G56*F56","v":0},null,"None",{"$f":"VLOOKUP(L56,Fungicides,6,FALSE)","v":"None"},{"$f":"VLOOKUP($L56,Fungicides,4,FALSE)","v":"None"},0,{"$f":"VLOOKUP(L56,Fungicides,3,FALSE)","v":1},0,{"$f":"VLOOKUP(L56,Fungicides,2,FALSE)","v":0},{"$f":"Q56/P56*O56","v":0},null,null,"None",{"$f":"VLOOKUP(V56,Fungicides,6,FALSE)","v":"None"},{"$f":"VLOOKUP($C56,Fungicides,4,FALSE)","v":"None"},0,{"$f":"VLOOKUP(V56,Fungicides,3,FALSE)","v":1},0,{"$f":"VLOOKUP(V56,Fungicides,2,FALSE)","v":0},{"$f":"AA56/Z56*Y56","v":0},null,"None",{"$f":"VLOOKUP(AE56,Fungicides,6,FALSE)","v":"None"},{"$f":"VLOOKUP($C56,Fungicides,4,FALSE)","v":"None"},0,{"$f":"VLOOKUP(AE56,Fungicides,3,FALSE)","v":1},0,{"$f":"VLOOKUP(AE56,Fungicides,2,FALSE)","v":0},{"$f":"AJ56/AI56*AH56","v":0}]
[null,null,"None",{"$f":"VLOOKUP(C57,Fungicides,6,FALSE)","v":"None"},{"$f":"VLOOKUP($C57,Fungicides,4,FALSE)","v":"None"},0,{"$f":"VLOOKUP(C57,Fungicides,3,FALSE)","v":1},0,{"$f":"VLOOKUP(C57,Fungicides,2,FALSE)","v":0},0,null,"None",{"$f":"VLOOKUP(L57,Fungicides,6,FALSE)","v":"None"},{"$f":"VLOOKUP($L57,Fungicides,4,FALSE)","v":"None"},0,{"$f":"VLOOKUP(L57,Fungicides,3,FALSE)","v":1},0,{"$f":"VLOOKUP(L57,Fungicides,2,FALSE)","v":0},0,null,null,"None",{"$f":"VLOOKUP(V57,Fungicides,6,FALSE)","v":"None"},{"$f":"VLOOKUP($C57,Fungicides,4,FALSE)","v":"None"},0,{"$f":"VLOOKUP(V57,Fungicides,3,FALSE)","v":1},0,{"$f":"VLOOKUP(V57,Fungicides,2,FALSE)","v":0},0,null,"None",{"$f":"VLOOKUP(AE57,Fungicides,6,FALSE)","v":"None"},{"$f":"VLOOKUP($C57,Fungicides,4,FALSE)","v":"None"},0,{"$f":"VLOOKUP(AE57,Fungicides,3,FALSE)","v":1},0,{"$f":"VLOOKUP(AE57,Fungicides,2,FALSE)","v":0},0]
[]
[null,null,"Adjuvants (drop down menu)",null,null,"(Enter Below)",null,"(Enter Below)",null,null,null,"Adjuvants (drop down menu)",null,null,"(Enter Below)",null,"(Enter Below)",null,null,null,null,"Adjuvants (drop down menu)",null,null,"(Enter Below)",null,"(Enter Below)",null,null,null,"Adjuvants (drop down menu)",null,null,"(Enter Below)",null,"(Enter Below)"]
[null,null,"None",null,{"$f":"VLOOKUP($C60,Adjuvants,4,FALSE)","v":"None"},0,{"$f":"VLOOKUP(C60,Adjuvants,3,FALSE)","v":1},0,{"$f":"VLOOKUP(C60,Adjuvants,2,FALSE)","v":0},{"$f":"H60/G60*F60","v":0},null,"None",null,{"$f":"VLOOKUP($L60,Adjuvants,4,FALSE)","v":"None"},0,{"$f":"VLOOKUP(L60,Adjuvants,3,FALSE)","v":1},0,{"$f":"VLOOKUP(L60,Adjuvants,2,FALSE)","v":0},{"$f":"Q60/P60*O60","v":0},null,null,"None",null,{"$f":"VLOOKUP($C60,Adjuvants,4,FALSE)","v":"None"},0,{"$f":"VLOOKUP(V60,Adjuvants,3,FALSE)","v":1},0,{"$f":"VLOOKUP(V60,Adjuvants,2,FALSE)","v":0},{"$f":"AA60/Z60*Y60","v":0},null,"None",null,{"$f":"VLOOKUP($C60,Adjuvants,4,FALSE)","v":"None"},0,{"$f":"VLOOKUP(AE60,Adjuvants,3,FALSE)","v":1},0,{"$f":"VLOOKUP(AE60,Adjuvants,2,FALSE)","v":0},{"$f":"AJ60/AI60*AH60","v":0}]
[null,null,"None",null,{"$f":"VLOOKUP($C61,Adjuvants,4,FALSE)","v":"None"},0,{"$f":"VLOOKUP(C61,Adjuvants,3,FALSE)","v":1},0,{"$f":"VLOOKUP(C61,Adjuvants,2,FALSE)","v":0},{"$f":"H61/G61*F61","v":0},null,"None",null,{"$f":"VLOOKUP($L61,Adjuvants,4,FALSE)","v":"None"},0,{"$f":"VLOOKUP(L61,Adjuvants,3,FALSE)","v":1},0,{"$f":"VLOOKUP(L61,Adjuvants,2,FALSE)","v":0},{"$f":"Q61/P61*O61","v":0},null,null,"None",null,{"$f":"VLOOKUP($C61,Adjuvants,4,FALSE)","v":"None"},0,{"$f":"VLOOKUP(V61,Adjuvants,3,FALSE)","v":1},0,{"$f":"VLOOKUP(V61,Adjuvants,2,FALSE)","v":0},{"$f":"AA61/Z61*Y61","v":0},null,"None",null,{"$f":"VLOOKUP($C61,Adjuvants,4,FALSE)","v":"None"},0,{"$f":"VLOOKUP(AE61,Adjuvants,3,FALSE)","v":1},0,{"$f":"VLOOKUP(AE61,Adjuvants,2,FALSE)","v":0},{"$f":"AJ61/AI61*AH61","v":0}]
[null,null,"None",null,{"$f":"VLOOKUP($C62,Adjuvants,4,FALSE)","v":"None"},0,{"$f":"VLOOKUP(C62,Adjuvants,3,FALSE)","v":1},0,{"$f":"VLOOKUP(C62,Adjuvants,2,FALSE)","v":0},0,null,"None",null,{"$f":"VLOOKUP($L62,Adjuvants,4,FALSE)","v":"None"},0,{"$f":"VLOOKUP(L62,Adjuvants,3,FALSE)","v":1},0,{"$f":"VLOOKUP(L62,Adjuvants,2,FALSE)","v":0},0,null,null,"None",null,{"$f":"VLOOKUP($C62,Adjuvants,4,FALSE)","v":"None"},0,{"$f":"VLOOKUP(V62,Adjuvants,3,FALSE)","v":1},0,{"$f":"VLOOKUP(V62,Adjuvants,2,FALSE)","v":0},0,null,"None",null,{"$f":"VLOOKUP($C62,Adjuvants,4,FALSE)","v":"None"},0,{"$f":"VLOOKUP(AE62,Adjuvants,3,FALSE)","v":1},0,{"$f":"VLOOKUP(AE62,Adjuvants,2,FALSE)","v":0},0]
[null,null,"None",null,{"$f":"VLOOKUP($C63,Adjuvants,4,FALSE)","v":"None"},0,{"$f":"VLOOKUP(C63,Adjuvants,3,FALSE)","v":1},0,{"$f":"VLOOKUP(C63,Adjuvants,2,FALSE)","v":0},0,null,"None",null,{"$f":"VLOOKUP($L63,Adjuvants,4,FALSE)","v":"None"},0,{"$f":"VLOOKUP(L63,Adjuvants,3,FALSE)","v":1},0,{"$f":"VLOOKUP(L63,Adjuvants,2,FALSE)","v":0},0,null,null,"None",null,{"$f":"VLOOKUP($C63,Adjuvants,4,FALSE)","v":"None"},0,{"$f":"VLOOKUP(V63,Adjuvants,3,FALSE)","v":1},0,{"$f":"VLOOKUP(V63,Adjuvants,2,FALSE)","v":0},0,null,"None",null,{"$f":"VLOOKUP($C63,Adjuvants,4,FALSE)","v":"None"},0,{"$f":"VLOOKUP(AE63,Adjuvants,3,FALSE)","v":1},0,{"$f":"VLOOKUP(AE63,Adjuvants,2,FALSE)","v":0},0]
[null,null,"None",null,{"$f":"VLOOKUP($C64,Adjuvants,4,FALSE)","v":"None"},0,{"$f":"VLOOKUP(C64,Adjuvants,3,FALSE)","v":1},0,{"$f":"VLOOKUP(C64,Adjuvants,2,FALSE)","v":0},0,null,"None",null,{"$f":"VLOOKUP($L64,Adjuvants,4,FALSE)","v":"None"},0,{"$f":"VLOOKUP(L64,Adjuvants,3,FALSE)","v":1},0,{"$f":"VLOOKUP(L64,Adjuvants,2,FALSE)","v":0},0,null,null,"None",null,{"$f":"VLOOKUP($C64,Adjuvants,4,FALSE)","v":"None"},0,{"$f":"VLOOKUP(V64,Adjuvants,3,FALSE)","v":1},0,{"$f":"VLOOKUP(V64,Adjuvants,2,FALSE)","v":0},0,null,"None",null,{"$f":"VLOOKUP($C64,Adjuvants,4,FALSE)","v":"None"},0,{"$f":"VLOOKUP(AE64,Adjuvants,3,FALSE)","v":1},0,{"$f":"VLOOKUP(AE64,Adjuvants,2,FALSE)","v":0},0]
[]
[null,null,"Fungicide Cost/Acre",null,null,null,null,null,null,{"$f":"SUM(J55:J64)","v":0},null,"Fungicide Cost/Acre",null,null,null,null,null,null,{"$f":"SUM(S55:S64)","v":0},null,null,"Fungicide Cost/Acre",null,null,null,null,null,null,{"$f":"SUM(AC55:AC64)","v":0},null,"Fungicide Cost/Acre",null,null,null,null,null,null,{"$f":"SUM(AL55:AL64)","v":0}]
[]
[null,null,"1st Application of Insecticides",null,null,null,null,null,null,null,null,"2nd Application of Insecticides",null,null,null,null,null,null,null,null,null,"1st Application of Insecticides",null,null,null,null,null,null,null,null,"2nd Application of Insecticides"]
[null,null,"Brand","Active Ingredient(s)","Purchase Units","Package Price (Gals, Lbs, etc.)","Units/Pkg","Rate/Acre","Rate Units","Cost",null,"Brand","Active Ingredient(s)","Purchase Units","Package Price (Gals, Lbs, etc.)","Units/Pkg","Rate/Acre","Rate Units","Cost",null,null,"Brand","Active Ingredient(s)","Purchase Units","Package Price (Gals, Lbs, etc.)","Units/Pkg","Rate/Acre","Rate Units","Cost",null,"Brand","Active Ingredient(s)","Purchase Units","Package Price (Gals, Lbs, etc.)","Units/Pkg","Rate/Acre","Rate Units","Cost"]
[null,null,"Insecticides (drop down menu)",null,null,"(Enter Below)",null,"(Enter Below)",null,null,null,"Insecticides (drop down menu)",null,null,"(Enter Below)",null,"(Enter Below)",null,null,null,null,"Insecticides (drop down menu)",null,null,"(Enter Below)",null,"(Enter Below)",null,null,null,"Insecticides (drop down menu)",null,null,"(Enter Below)",null,"(Enter Below)"]
[null,null,"None",{"$f":"VLOOKUP(C71,Insecticides,6,FALSE)","v":"None"},{"$f":"VLOOKUP(#REF!,Insecticides,4,FALSE)","v":{"$error":"#REF!"}},0,{"$f":"VLOOKUP(C71,Insecticides,3,FALSE)","v":1},0,{"$f":"VLOOKUP(C71,Insecticides,2,FALSE)","v":0},{"$f":"H71/G71*F71","v":0},null,"None",{"$f":"VLOOKUP(L71,Insecticides,6,FALSE)","v":"None"},{"$f":"VLOOKUP(#REF!,Insecticides,4,FALSE)","v":{"$error":"#REF!"}},0,{"$f":"VLOOKUP(L71,Insecticides,3,FALSE)","v":1},0,{"$f":"VLOOKUP(L71,Insecticides,2,FALSE)","v":0},{"$f":"Q71/P71*O71","v":0},null,null,"None",{"$f":"VLOOKUP(V71,Insecticides,6,FALSE)","v":"None"},{"$f":"VLOOKUP(#REF!,Insecticides,4,FALSE)","v":{"$error":"#REF!"}},0,{"$f":"VLOOKUP(V71,Insecticides,3,FALSE)","v":1},0,{"$f":"VLOOKUP(V71,Insecticides,2,FALSE)","v":0},{"$f":"AA71/Z71*Y71","v":0},null,"None",{"$f":"VLOOKUP(AE71,Insecticides,6,FALSE)","v":"None"},{"$f":"VLOOKUP(#REF!,Insecticides,4,FALSE)","v":{"$error":"#REF!"}},0,{"$f":"VLOOKUP(AE71,Insecticides,3,FALSE)","v":1},0,{"$f":"VLOOKUP(AE71,Insecticides,2,FALSE)","v":0},{"$f":"AJ71/AI71*AH71","v":0}]
[null,null,"None",{"$f":"VLOOKUP(C72,Insecticides,6,FALSE)","v":"None"},{"$f":"VLOOKUP(#REF!,Insecticides,4,FALSE)","v":{"$error":"#REF!"}},0,{"$f":"VLOOKUP(C72,Insecticides,3,FALSE)","v":1},0,{"$f":"VLOOKUP(C72,Insecticides,2,FALSE)","v":0},{"$f":"H72/G72*F72","v":0},null,"None",{"$f":"VLOOKUP(L72,Insecticides,6,FALSE)","v":"None"},{"$f":"VLOOKUP(#REF!,Insecticides,4,FALSE)","v":{"$error":"#REF!"}},0,{"$f":"VLOOKUP(L72,Insecticides,3,FALSE)","v":1},0,{"$f":"VLOOKUP(L72,Insecticides,2,FALSE)","v":0},{"$f":"Q72/P72*O72","v":0},null,null,"None",{"$f":"VLOOKUP(V72,Insecticides,6,FALSE)","v":"None"},{"$f":"VLOOKUP(#REF!,Insecticides,4,FALSE)","v":{"$error":"#REF!"}},0,{"$f":"VLOOKUP(V72,Insecticides,3,FALSE)","v":1},0,{"$f":"VLOOKUP(V72,Insecticides,2,FALSE)","v":0},{"$f":"AA72/Z72*Y72","v":0},null,"None",{"$f":"VLOOKUP(AE72,Insecticides,6,FALSE)","v":"None"},{"$f":"VLOOKUP(#REF!,Insecticides,4,FALSE)","v":{"$error":"#REF!"}},0,{"$f":"VLOOKUP(AE72,Insecticides,3,FALSE)","v":1},0,{"$f":"VLOOKUP(AE72,Insecticides,2,FALSE)","v":0},{"$f":"AJ72/AI72*AH72","v":0}]
[null,null,"None",{"$f":"VLOOKUP(C73,Insecticides,6,FALSE)","v":"None"},{"$f":"VLOOKUP(#REF!,Insecticides,4,FALSE)","v":{"$error":"#REF!"}},0,{"$f":"VLOOKUP(C73,Insecticides,3,FALSE)","v":1},0,{"$f":"VLOOKUP(C73,Insecticides,2,FALSE)","v":0},0,null,"None",{"$f":"VLOOKUP(L73,Insecticides,6,FALSE)","v":"None"},{"$f":"VLOOKUP(#REF!,Insecticides,4,FALSE)","v":{"$error":"#REF!"}},0,{"$f":"VLOOKUP(L73,Insecticides,3,FALSE)","v":1},0,{"$f":"VLOOKUP(L73,Insecticides,2,FALSE)","v":0},0,null,null,"None",{"$f":"VLOOKUP(V73,Insecticides,6,FALSE)","v":"None"},{"$f":"VLOOKUP(#REF!,Insecticides,4,FALSE)","v":{"$error":"#REF!"}},0,{"$f":"VLOOKUP(V73,Insecticides,3,FALSE)","v":1},0,{"$f":"VLOOKUP(V73,Insecticides,2,FALSE)","v":0},0,null,"None",{"$f":"VLOOKUP(AE73,Insecticides,6,FALSE)","v":"None"},{"$f":"VLOOKUP(#REF!,Insecticides,4,FALSE)","v":{"$error":"#REF!"}},0,{"$f":"VLOOKUP(AE73,Insecticides,3,FALSE)","v":1},0,{"$f":"VLOOKUP(AE73,Insecticides,2,FALSE)","v":0},0]
[]
[null,null,"Adjuvants (drop down menu)",null,null,"(Enter Below)",null,"(Enter Below)",null,null,null,"Adjuvants (drop down menu)",null,null,"(Enter Below)",null,"(Enter Below)",null,null,null,null,"Adjuvants (drop down menu)",null,null,"(Enter Below)",null,"(Enter Below)",null,null,null,"Adjuvants (drop down menu)",null,null,"(Enter Below)",null,"(Enter Below)"]
[null,null,"None",null,{"$f":"VLOOKUP(#REF!,Adjuvants,4,FALSE)","v":{"$error":"#REF!"}},0,{"$f":"VLOOKUP(C76,Adjuvants,3,FALSE)","v":1},0,{"$f":"VLOOKUP(C76,Adjuvants,2,FALSE)","v":0},{"$f":"H76/G76*F76","v":0},null,"None",null,{"$f":"VLOOKUP(#REF!,Adjuvants,4,FALSE)","v":{"$error":"#REF!"}},0,{"$f":"VLOOKUP(L76,Adjuvants,3,FALSE)","v":1},0,{"$f":"VLOOKUP(L76,Adjuvants,2,FALSE)","v":0},{"$f":"Q76/P76*O76","v":0},null,null,"None",null,{"$f":"VLOOKUP(#REF!,Adjuvants,4,FALSE)","v":{"$error":"#REF!"}},0,{"$f":"VLOOKUP(V76,Adjuvants,3,FALSE)","v":1},0,{"$f":"VLOOKUP(V76,Adjuvants,2,FALSE)","v":0},{"$f":"AA76/Z76*Y76","v":0},null,"None",null,{"$f":"VLOOKUP(#REF!,Adjuvants,4,FALSE)","v":{"$error":"#REF!"}},0,{"$f":"VLOOKUP(AE76,Adjuvants,3,FALSE)","v":1},0,{"$f":"VLOOKUP(AE76,Adjuvants,2,FALSE)","v":0},{"$f":"AJ76/AI76*AH76","v":0}]
[null,null,"None",null,{"$f":"VLOOKUP(#REF!,Adjuvants,4,FALSE)","v":{"$error":"#REF!"}},0,{"$f":"VLOOKUP(C77,Adjuvants,3,FALSE)","v":1},0,{"$f":"VLOOKUP(C77,Adjuvants,2,FALSE)","v":0},{"$f":"H77/G77*F77","v":0},null,"None",null,{"$f":"VLOOKUP(#REF!,Adjuvants,4,FALSE)","v":{"$error":"#REF!"}},0,{"$f":"VLOOKUP(L77,Adjuvants,3,FALSE)","v":1},0,{"$f":"VLOOKUP(L77,Adjuvants,2,FALSE)","v":0},{"$f":"Q77/P77*O77","v":0},null,null,"None",null,{"$f":"VLOOKUP(#REF!,Adjuvants,4,FALSE)","v":{"$error":"#REF!"}},0,{"$f":"VLOOKUP(V77,Adjuvants,3,FALSE)","v":1},0,{"$f":"VLOOKUP(V77,Adjuvants,2,FALSE)","v":0},{"$f":"AA77/Z77*Y77","v":0},null,"None",null,{"$f":"VLOOKUP(#REF!,Adjuvants,4,FALSE)","v":{"$error":"#REF!"}},0,{"$f":"VLOOKUP(AE77,Adjuvants,3,FALSE)","v":1},0,{"$f":"VLOOKUP(AE77,Adjuvants,2,FALSE)","v":0},{"$f":"AJ77/AI77*AH77","v":0}]
[null,null,"None",null,{"$f":"VLOOKUP(#REF!,Adjuvants,4,FALSE)","v":{"$error":"#REF!"}},0,{"$f":"VLOOKUP(C78,Adjuvants,3,FALSE)","v":1},0,{"$f":"VLOOKUP(C78,Adjuvants,2,FALSE)","v":0},0,null,"None",null,{"$f":"VLOOKUP(#REF!,Adjuvants,4,FALSE)","v":{"$error":"#REF!"}},0,{"$f":"VLOOKUP(L78,Adjuvants,3,FALSE)","v":1},0,{"$f":"VLOOKUP(L78,Adjuvants,2,FALSE)","v":0},0,null,null,"None",null,{"$f":"VLOOKUP(#REF!,Adjuvants,4,FALSE)","v":{"$error":"#REF!"}},0,{"$f":"VLOOKUP(V78,Adjuvants,3,FALSE)","v":1},0,{"$f":"VLOOKUP(V78,Adjuvants,2,FALSE)","v":0},0,null,"None",null,{"$f":"VLOOKUP(#REF!,Adjuvants,4,FALSE)","v":{"$error":"#REF!"}},0,{"$f":"VLOOKUP(AE78,Adjuvants,3,FALSE)","v":1},0,{"$f":"VLOOKUP(AE78,Adjuvants,2,FALSE)","v":0},0]
[null,null,"None",null,{"$f":"VLOOKUP(#REF!,Adjuvants,4,FALSE)","v":{"$error":"#REF!"}},0,{"$f":"VLOOKUP(C79,Adjuvants,3,FALSE)","v":1},0,{"$f":"VLOOKUP(C79,Adjuvants,2,FALSE)","v":0},0,null,"None",null,{"$f":"VLOOKUP(#REF!,Adjuvants,4,FALSE)","v":{"$error":"#REF!"}},0,{"$f":"VLOOKUP(L79,Adjuvants,3,FALSE)","v":1},0,{"$f":"VLOOKUP(L79,Adjuvants,2,FALSE)","v":0},0,null,null,"None",null,{"$f":"VLOOKUP(#REF!,Adjuvants,4,FALSE)","v":{"$error":"#REF!"}},0,{"$f":"VLOOKUP(V79,Adjuvants,3,FALSE)","v":1},0,{"$f":"VLOOKUP(V79,Adjuvants,2,FALSE)","v":0},0,null,"None",null,{"$f":"VLOOKUP(#REF!,Adjuvants,4,FALSE)","v":{"$error":"#REF!"}},0,{"$f":"VLOOKUP(AE79,Adjuvants,3,FALSE)","v":1},0,{"$f":"VLOOKUP(AE79,Adjuvants,2,FALSE)","v":0},0]
[null,null,"None",null,{"$f":"VLOOKUP(#REF!,Adjuvants,4,FALSE)","v":{"$error":"#REF!"}},0,{"$f":"VLOOKUP(C80,Adjuvants,3,FALSE)","v":1},0,{"$f":"VLOOKUP(C80,Adjuvants,2,FALSE)","v":0},0,null,"None",null,{"$f":"VLOOKUP(#REF!,Adjuvants,4,FALSE)","v":{"$error":"#REF!"}},0,{"$f":"VLOOKUP(L80,Adjuvants,3,FALSE)","v":1},0,{"$f":"VLOOKUP(L80,Adjuvants,2,FALSE)","v":0},0,null,null,"None",null,{"$f":"VLOOKUP(#REF!,Adjuvants,4,FALSE)","v":{"$error":"#REF!"}},0,{"$f":"VLOOKUP(V80,Adjuvants,3,FALSE)","v":1},0,{"$f":"VLOOKUP(V80,Adjuvants,2,FALSE)","v":0},0,null,"None",null,{"$f":"VLOOKUP(#REF!,Adjuvants,4,FALSE)","v":{"$error":"#REF!"}},0,{"$f":"VLOOKUP(AE80,Adjuvants,3,FALSE)","v":1},0,{"$f":"VLOOKUP(AE80,Adjuvants,2,FALSE)","v":0},0]
[]
[null,null,"Insecticide Cost/Acre",null,null,null,null,null,null,{"$f":"SUM(J71:J80)","v":0},null,"Insecticide Cost/Acre",null,null,null,null,null,null,{"$f":"SUM(S71:S80)","v":0},null,null,"Insecticide Cost/Acre",null,null,null,null,null,null,{"$f":"SUM(AC71:AC80)","v":0},null,"Insecticide Cost/Acre",null,null,null,null,null,null,{"$f":"SUM(AL71:AL80)","v":0}]
[]
[null,null,null,null,null,null,null,null,null,null,null,"Summary Cost/Acre (All Chemistry)",null,null,null,null,null,null,null,null,null,null,null,null,null,null,null,null,null,null,"Summary Cost/Acre (All Chemistry)"]
[]
[]
[null,null,null,null,null,null,null,null,null,null,null,"Fungicide Total Cost/Acre",null,null,null,null,null,null,{"$f":"J66+S66","v":0},null,null,null,null,null,null,null,null,null,null,null,"Fungicide Total Cost/Acre",null,null,null,null,null,null,{"$f":"AC66+AL66","v":0}]
[null,null,{"$f":"C42","v":"Plan Year"},null,null,null,null,null,null,null,null,null,null,null,null,null,null,null,null,null,null,{"$f":"C42","v":"Plan Year"}]
[null,null,{"$f":"C43","v":"Farm Name"},null,null,null,null,null,null,null,null,"Insecticide Total Cost/Acre",null,null,null,null,null,null,{"$f":"J82+S82","v":0},null,null,{"$f":"C43","v":"Farm Name"},null,null,null,null,null,null,null,null,"Insecticide Total Cost/Acre",null,null,null,null,null,null,{"$f":"AC82+AL82","v":0}]
[null,null,{"$f":"C44","v":"Farm Tract"},null,null,null,null,null,null,null,null,null,null,null,null,null,null,null,null,null,null,{"$f":"C44","v":"Farm Tract"}]
[null,null,"Farm Number",null,null,null,null,null,null,null,null,"Total Herbicide Cost/Acre",null,null,null,null,null,null,{"$f":"S48","v":0},null,null,"Farm Number",null,null,null,null,null,null,null,null,"Total Herbicide Cost/Acre",null,null,null,null,null,null,{"$f":"AL48","v":0}]
[]
[null,null,null,null,null,null,null,null,null,null,null,"Total Pesticide Cost/Acre (Herbicide, Fungicide, & Insecticide)",null,null,null,null,null,null,{"$f":"S89+S87+S91","v":0},null,null,null,null,null,null,null,null,null,null,null,"Total Pesticide Cost/Acre (Herbicide, Fungicide, & Insecticide)",null,null,null,null,null,null,{"$f":"AL89+AL87+AL91","v":0}]

{"sheet":"Pesticide Plan (Vegetable 3)","index":3,"n_rows":93,"n_cols":38,"rows_kept":93,"cut":false,"hidden":false,"merged":[[0,0,0,1],[67,2,67,9],[67,11,67,18],[67,21,67,28],[67,30,67,37],[83,11,84,18],[83,30,84,37],[50,2,50,18],[50,21,50,37],[51,2,51,9],[51,11,51,18],[51,21,51,28],[51,30,51,37],[22,2,22,9],[22,11,22,18],[22,21,22,28],[22,30,22,37],[40,11,41,18],[40,30,41,37],[3,2,3,9],[3,11,3,18],[3,21,3,28],[3,30,3,37],[21,2,21,18],[21,21,21,37],[0,2,0,18],[0,21,0,37],[1,2,1,18],[1,21,1,37],[2,2,2,18],[2,21,2,37]]}
["Drop Down Menu --->",null,"Select Crop",null,null,null,null,null,null,null,null,null,null,null,null,null,null,null,null,null,null,{"$f":"C1","v":"Select Crop"}]
[null,null,"Comparison Plan #1",null,null,null,null,null,null,null,null,null,null,null,null,null,null,null,null,null,null,"Comparison Plan #2"]
[null,null,"Burndown/Pre-Plant/Early Post Emergence Herbicides",null,null,null,null,null,null,null,null,null,null,null,null,null,null,null,null,null,null,"Burndown/Pre-Plant/Early Post Emergence Herbicides"]
[null,null,"1st Application of Burndown/Pre-Plant/Early Post Emergencen Herbicides",null,null,null,null,null,null,null,null,"2nd Application of Burndown/Pre-Plant/Early Post Emergence Herbicides",null,null,null,null,null,null,null,null,null,"1st Application of Burndown/Pre-Plant/Early Post Emergencen Herbicides",null,null,null,null,null,null,null,null,"2nd Application of Burndown/Pre-Plant/Early Post Emergence Herbicides"]
[null,null,"Brand","Site of Action","Purchase Units","Package Price (Gals, Lbs, etc.)","Units/Pkg","Rate/Acre","Rate Units","Cost",null,"Brand","Site of Action","Purchase Units","Package Price (Gals, Lbs, etc.)","Units/Pkg","Rate/Acre","Rate Units","Cost",null,null,"Brand","Site of Action","Purchase Units","Package Price (Gals, Lbs, etc.)","Units/Pkg","Rate/Acre","Rate Units","Cost",null,"Brand","Site of Action","Purchase Units","Package Price (Gals, Lbs, etc.)","Units/Pkg","Rate/Acre","Rate Units","Cost"]
[null,null,"Herbicides (drop down menu)",null,null,"(Enter Below)",null,"(Enter Below)",null,null,null,"Herbicides (drop down menu)",null,null,"(Enter Below)",null,"(Enter Below)",null,null,null,null,"Herbicides (drop down menu)",null,null,"(Enter Below)",null,"(Enter Below)",null,null,null,"Herbicides (drop down menu)",null,null,"(Enter Below)",null,"(Enter Below)"]
[null,null,"None",{"$f":"VLOOKUP($C7,PreChemicals,6,FALSE)","v":0},{"$f":"VLOOKUP($C7,PreChemicals,4,FALSE)","v":"None"},0,{"$f":"VLOOKUP(C7,PreChemicals,3,FALSE)","v":1},0,{"$f":"VLOOKUP(C7,PreChemicals,2,FALSE)","v":0},{"$f":"H7/G7*F7","v":0},null,"None",{"$f":"VLOOKUP($L7,PreChemicals,6,FALSE)","v":0},{"$f":"VLOOKUP($L7,PreChemicals,4,FALSE)","v":"None"},0,{"$f":"VLOOKUP(L7,PreChemicals,3,FALSE)","v":1},0,{"$f":"VLOOKUP(L7,PreChemicals,2,FALSE)","v":0},{"$f":"Q7/P7*O7","v":0},null,null,"None",{"$f":"VLOOKUP($C7,PreChemicals,6,FALSE)","v":0},{"$f":"VLOOKUP($C7,PreChemicals,4,FALSE)","v":"None"},0,{"$f":"VLOOKUP(V7,PreChemicals,3,FALSE)","v":1},0,{"$f":"VLOOKUP(V7,PreChemicals,2,FALSE)","v":0},{"$f":"AA7/Z7*Y7","v":0},null,"None",0,0,0,{"$f":"VLOOKUP(AE7,PreChemicals,3,FALSE)","v":1},0,{"$f":"VLOOKUP(AE7,PreChemicals,2,FALSE)","v":0},{"$f":"AJ7/AI7*AH7","v":0}]
[null,null,"None",{"$f":"VLOOKUP($C8,PreChemicals,6,FALSE)","v":0},{"$f":"VLOOKUP($C8,PreChemicals,4,FALSE)","v":"None"},0,{"$f":"VLOOKUP(C8,PreChemicals,3,FALSE)","v":1},0,{"$f":"VLOOKUP(C8,PreChemicals,2,FALSE)","v":0},{"$f":"H8/G8*F8","v":0},null,"None",{"$f":"VLOOKUP($L8,PreChemicals,6,FALSE)","v":0},{"$f":"VLOOKUP($L8,PreChemicals,4,FALSE)","v":"None"},0,{"$f":"VLOOKUP(L8,PreChemicals,3,FALSE)","v":1},0,{"$f":"VLOOKUP(L8,PreChemicals,2,FALSE)","v":0},{"$f":"Q8/P8*O8","v":0},null,null,"None",{"$f":"VLOOKUP($C8,PreChemicals,6,FALSE)","v":0},{"$f":"VLOOKUP($C8,PreChemicals,4,FALSE)","v":"None"},0,{"$f":"VLOOKUP(V8,PreChemicals,3,FALSE)","v":1},0,{"$f":"VLOOKUP(V8,PreChemicals,2,FALSE)","v":0},{"$f":"AA8/Z8*Y8","v":0},null,"None",0,0,0,{"$f":"VLOOKUP(AE8,PreChemicals,3,FALSE)","v":1},0,{"$f":"VLOOKUP(AE8,PreChemicals,2,FALSE)","v":0},{"$f":"AJ8/AI8*AH8","v":0}]
[null,null,"None",{"$f":"VLOOKUP($C9,PreChemicals,6,FALSE)","v":0},{"$f":"VLOOKUP($C9,PreChemicals,4,FALSE)","v":"None"},0,{"$f":"VLOOKUP(C9,PreChemicals,3,FALSE)","v":1},0,{"$f":"VLOOKUP(C9,PreChemicals,2,FALSE)","v":0},0,null,"None",{"$f":"VLOOKUP($L9,PreChemicals,6,FALSE)","v":0},{"$f":"VLOOKUP($L9,PreChemicals,4,FALSE)","v":"None"},0,{"$f":"VLOOKUP(L9,PreChemicals,3,FALSE)","v":1},0,{"$f":"VLOOKUP(L9,PreChemicals,2,FALSE)","v":0},0,null,null,"None",{"$f":"VLOOKUP($C9,PreChemicals,6,FALSE)","v":0},{"$f":"VLOOKUP($C9,PreChemicals,4,FALSE)","v":"None"},0,{"$f":"VLOOKUP(V9,PreChemicals,3,FALSE)","v":1},0,{"$f":"VLOOKUP(V9,PreChemicals,2,FALSE)","v":0},0,null,"None",0,0,0,{"$f":"VLOOKUP(AE9,PreChemicals,3,FALSE)","v":1},0,{"$f":"VLOOKUP(AE9,PreChemicals,2,FALSE)","v":0},0]
[null,null,"None",{"$f":"VLOOKUP($C10,PreChemicals,6,FALSE)","v":0},{"$f":"VLOOKUP($C10,PreChemicals,4,FALSE)","v":"None"},0,{"$f":"VLOOKUP(C10,PreChemicals,3,FALSE)","v":1},0,{"$f":"VLOOKUP(C10,PreChemicals,2,FALSE)","v":0},0,null,"None",{"$f":"VLOOKUP($L10,PreChemicals,6,FALSE)","v":0},{"$f":"VLOOKUP($L10,PreChemicals,4,FALSE)","v":"None"},0,{"$f":"VLOOKUP(L10,PreChemicals,3,FALSE)","v":1},0,{"$f":"VLOOKUP(L10,PreChemicals,2,FALSE)","v":0},0,null,null,"None",{"$f":"VLOOKUP($C10,PreChemicals,6,FALSE)","v":0},{"$f":"VLOOKUP($C10,PreChemicals,4,FALSE)","v":"None"},0,{"$f":"VLOOKUP(V10,PreChemicals,3,FALSE)","v":1},0,{"$f":"VLOOKUP(V10,PreChemicals,2,FALSE)","v":0},0,null,"None",0,0,0,{"$f":"VLOOKUP(AE10,PreChemicals,3,FALSE)","v":1},0,{"$f":"VLOOKUP(AE10,PreChemicals,2,FALSE)","v":0},0]
[null,null,"None",{"$f":"VLOOKUP($C11,PreChemicals,6,FALSE)","v":0},{"$f":"VLOOKUP($C11,PreChemicals,4,FALSE)","v":"None"},0,{"$f":"VLOOKUP(C11,PreChemicals,3,FALSE)","v":1},0,{"$f":"VLOOKUP(C11,PreChemicals,2,FALSE)","v":0},0,null,"None",{"$f":"VLOOKUP($L11,PreChemicals,6,FALSE)","v":0},{"$f":"VLOOKUP($L11,PreChemicals,4,FALSE)","v":"None"},0,{"$f":"VLOOKUP(L11,PreChemicals,3,FALSE)","v":1},0,{"$f":"VLOOKUP(L11,PreChemicals,2,FALSE)","v":0},0,null,null,"None",{"$f":"VLOOKUP($C11,PreChemicals,6,FALSE)","v":0},{"$f":"VLOOKUP($C11,PreChemicals,4,FALSE)","v":"None"},0,{"$f":"VLOOKUP(V11,PreChemicals,3,FALSE)","v":1},0,{"$f":"VLOOKUP(V11,PreChemicals,2,FALSE)","v":0},0,null,"None",0,0,0,{"$f":"VLOOKUP(AE11,PreChemicals,3,FALSE)","v":1},0,{"$f":"VLOOKUP(AE11,PreChemicals,2,FALSE)","v":0},0]
[]
[null,null,"Adjuvants (drop down menu)",null,null,"(Enter Below)",null,"(Enter Below)",null,null,null,"Adjuvants (drop down menu)",null,null,"(Enter Below)",null,"(Enter Below)",null,null,null,null,"Adjuvants (drop down menu)",null,null,"(Enter Below)",null,"(Enter Below)",null,null,null,"Adjuvants (drop down menu)",null,null,"(Enter Below)",null,"(Enter Below)"]
[null,null,"None",null,{"$f":"VLOOKUP($C14,Adjuvants,4,FALSE)","v":"None"},0,{"$f":"VLOOKUP(C14,Adjuvants,3,FALSE)","v":1},0,{"$f":"VLOOKUP(C14,Adjuvants,2,FALSE)","v":0},{"$f":"H14/G14*F14","v":0},null,"None",null,{"$f":"VLOOKUP($L14,Adjuvants,4,FALSE)","v":"None"},0,{"$f":"VLOOKUP(L14,Adjuvants,3,FALSE)","v":1},0,{"$f":"VLOOKUP(L14,Adjuvants,2,FALSE)","v":0},{"$f":"Q14/P14*O14","v":0},null,null,"None",null,{"$f":"VLOOKUP($C14,Adjuvants,4,FALSE)","v":"None"},0,{"$f":"VLOOKUP(V14,Adjuvants,3,FALSE)","v":1},0,{"$f":"VLOOKUP(V14,Adjuvants,2,FALSE)","v":0},{"$f":"AA14/Z14*Y14","v":0},null,"None",null,{"$f":"VLOOKUP($L14,Adjuvants,4,FALSE)","v":"None"},0,{"$f":"VLOOKUP(AE14,Adjuvants,3,FALSE)","v":1},0,{"$f":"VLOOKUP(AE14,Adjuvants,2,FALSE)","v":0},{"$f":"AJ14/AI14*AH14","v":0}]
[null,null,"None",null,{"$f":"VLOOKUP($C15,Adjuvants,4,FALSE)","v":"None"},0,{"$f":"VLOOKUP(C15,Adjuvants,3,FALSE)","v":1},0,{"$f":"VLOOKUP(C15,Adjuvants,2,FALSE)","v":0},{"$f":"H15/G15*F15","v":0},null,"None",null,{"$f":"VLOOKUP($L15,Adjuvants,4,FALSE)","v":"None"},0,{"$f":"VLOOKUP(L15,Adjuvants,3,FALSE)","v":1},0,{"$f":"VLOOKUP(L15,Adjuvants,2,FALSE)","v":0},{"$f":"Q15/P15*O15","v":0},null,null,"None",null,{"$f":"VLOOKUP($C15,Adjuvants,4,FALSE)","v":"None"},0,{"$f":"VLOOKUP(V15,Adjuvants,3,FALSE)","v":1},0,{"$f":"VLOOKUP(V15,Adjuvants,2,FALSE)","v":0},{"$f":"AA15/Z15*Y15","v":0},null,"None",null,{"$f":"VLOOKUP($L15,Adjuvants,4,FALSE)","v":"None"},0,{"$f":"VLOOKUP(AE15,Adjuvants,3,FALSE)","v":1},0,{"$f":"VLOOKUP(AE15,Adjuvants,2,FALSE)","v":0},{"$f":"AJ15/AI15*AH15","v":0}]
[null,null,"None",null,{"$f":"VLOOKUP($C16,Adjuvants,4,FALSE)","v":"None"},0,{"$f":"VLOOKUP(C16,Adjuvants,3,FALSE)","v":1},0,{"$f":"VLOOKUP(C16,Adjuvants,2,FALSE)","v":0},0,null,"None",null,{"$f":"VLOOKUP($L16,Adjuvants,4,FALSE)","v":"None"},0,{"$f":"VLOOKUP(L16,Adjuvants,3,FALSE)","v":1},0,{"$f":"VLOOKUP(L16,Adjuvants,2,FALSE)","v":0},0,null,null,"None",null,{"$f":"VLOOKUP($C16,Adjuvants,4,FALSE)","v":"None"},0,{"$f":"VLOOKUP(V16,Adjuvants,3,FALSE)","v":1},0,{"$f":"VLOOKUP(V16,Adjuvants,2,FALSE)","v":0},0,null,"None",null,{"$f":"VLOOKUP($L16,Adjuvants,4,FALSE)","v":"None"},0,{"$f":"VLOOKUP(AE16,Adjuvants,3,FALSE)","v":1},0,{"$f":"VLOOKUP(AE16,Adjuvants,2,FALSE)","v":0},0]
[null,null,"None",null,{"$f":"VLOOKUP($C17,Adjuvants,4,FALSE)","v":"None"},0,{"$f":"VLOOKUP(C17,Adjuvants,3,FALSE)","v":1},0,{"$f":"VLOOKUP(C17,Adjuvants,2,FALSE)","v":0},0,null,"None",null,{"$f":"VLOOKUP($L17,Adjuvants,4,FALSE)","v":"None"},0,{"$f":"VLOOKUP(L17,Adjuvants,3,FALSE)","v":1},0,{"$f":"VLOOKUP(L17,Adjuvants,2,FALSE)","v":0},0,null,null,"None",null,{"$f":"VLOOKUP($C17,Adjuvants,4,FALSE)","v":"None"},0,{"$f":"VLOOKUP(V17,Adjuvants,3,FALSE)","v":1},0,{"$f":"VLOOKUP(V17,Adjuvants,2,FALSE)","v":0},0,null,"None",null,{"$f":"VLOOKUP($L17,Adjuvants,4,FALSE)","v":"None"},0,{"$f":"VLOOKUP(AE17,Adjuvants,3,FALSE)","v":1},0,{"$f":"VLOOKUP(AE17,Adjuvants,2,FALSE)","v":0},0]
[null,null,"None",null,{"$f":"VLOOKUP($C18,Adjuvants,4,FALSE)","v":"None"},0,{"$f":"VLOOKUP(C18,Adjuvants,3,FALSE)","v":1},0,{"$f":"VLOOKUP(C18,Adjuvants,2,FALSE)","v":0},0,null,"None",null,{"$f":"VLOOKUP($L18,Adjuvants,4,FALSE)","v":"None"},0,{"$f":"VLOOKUP(L18,Adjuvants,3,FALSE)","v":1},0,{"$f":"VLOOKUP(L18,Adjuvants,2,FALSE)","v":0},0,null,null,"None",null,{"$f":"VLOOKUP($C18,Adjuvants,4,FALSE)","v":"None"},0,{"$f":"VLOOKUP(V18,Adjuvants,3,FALSE)","v":1},0,{"$f":"VLOOKUP(V18,Adjuvants,2,FALSE)","v":0},0,null,"None",null,{"$f":"VLOOKUP($L18,Adjuvants,4,FALSE)","v":"None"},0,{"$f":"VLOOKUP(AE18,Adjuvants,3,FALSE)","v":1},0,{"$f":"VLOOKUP(AE18,Adjuvants,2,FALSE)","v":0},0]
[]
[null,null,"1st Application Pre-plan/Pre-Emergence Herbicide Cost/Acre",null,null,null,null,null,null,{"$f":"SUM(J7:J18)","v":0},null,"2nd Application Pre-plan/Pre-Emergence Herbicide Cost/Acre",null,null,null,null,null,null,{"$f":"SUM(S7:S18)","v":0},null,null,"1st Application Pre-plan/Pre-Emergence Herbicide Cost/Acre",null,null,null,null,null,null,{"$f":"SUM(AC7:AC18)","v":0},null,"2nd Application Pre-plan/Pre-Emergence Herbicide Cost/Acre",null,null,null,null,null,null,{"$f":"SUM(AL7:AL18)","v":0}]
[]
[null,null,"Post-Emergence Herbicides",null,null,null,null,null,null,null,null,null,null,null,null,null,null,null,null,null,null,"Post-Emergence Herbicides"]
[null,null,"1st Application of Post-Emergence Herbicides",null,null,null,null,null,null,null,null,"2nd Application of Post-Emergence Herbicides",null,null,null,null,null,null,null,null,null,"1st Application of Post-Emergence Herbicides",null,null,null,null,null,null,null,null,"2nd Application of Post-Emergence Herbicides"]
[null,null,"Brand","Site of Action","Purchase Units","Package Price (Gals, Lbs, etc.)","Units/Pkg","Rate/Acre","Rate Units","Cost",null,"Brand","Site of Action","Purchase Units","Package Price (Gals, Lbs, etc.)","Units/Pkg","Rate/Acre","Rate Units","Cost",null,null,"Brand","Site of Action","Purchase Units","Package Price (Gals, Lbs, etc.)","Units/Pkg","Rate/Acre","Rate Units","Cost",null,"Brand","Site of Action","Purchase Units","Package Price (Gals, Lbs, etc.)","Units/Pkg","Rate/Acre","Rate Units","Cost"]
[null,null,"Herbicides (drop down menu)",null,null,"(Enter Below)",null,"(Enter Below)",null,null,null,"Herbicides (drop down menu)",null,null,"(Enter Below)",null,"(Enter Below)",null,null,null,null,"Herbicides (drop down menu)",null,null,"(Enter Below)",null,"(Enter Below)",null,null,null,"Herbicides (drop down menu)",null,null,"(Enter Below)",null,"(Enter Below)"]
[null,null,"None",{"$f":"VLOOKUP($C26,PostChemicals,6,FALSE)","v":0},{"$f":"VLOOKUP($C26,PostChemicals,4,FALSE)","v":"None"},0,{"$f":"VLOOKUP(C26,PostChemicals,3,FALSE)","v":1},0,{"$f":"VLOOKUP(C26,PostChemicals,2,FALSE)","v":0},{"$f":"H26/G26*F26","v":0},null,"None",{"$f":"VLOOKUP($L26,PostChemicals,6,FALSE)","v":0},{"$f":"VLOOKUP($L26,PostChemicals,4,FALSE)","v":"None"},0,{"$f":"VLOOKUP(L26,PostChemicals,3,FALSE)","v":1},0,{"$f":"VLOOKUP(L26,PostChemicals,2,FALSE)","v":0},{"$f":"Q26/P26*O26","v":0},null,null,"None",{"$f":"VLOOKUP($C26,PostChemicals,6,FALSE)","v":0},{"$f":"VLOOKUP($C26,PostChemicals,4,FALSE)","v":"None"},0,{"$f":"VLOOKUP(V26,PostChemicals,3,FALSE)","v":1},0,{"$f":"VLOOKUP(V26,PostChemicals,2,FALSE)","v":0},{"$f":"AA26/Z26*Y26","v":0},null,"None",{"$f":"VLOOKUP($L26,PostChemicals,6,FALSE)","v":0},{"$f":"VLOOKUP($L26,PostChemicals,4,FALSE)","v":"None"},0,{"$f":"VLOOKUP(AE26,PostChemicals,3,FALSE)","v":1},0,{"$f":"VLOOKUP(AE26,PostChemicals,2,FALSE)","v":0},{"$f":"AJ26/AI26*AH26","v":0}]
[null,null,"None",{"$f":"VLOOKUP($C27,PostChemicals,6,FALSE)","v":0},{"$f":"VLOOKUP($C27,PostChemicals,4,FALSE)","v":"None"},0,{"$f":"VLOOKUP(C27,PostChemicals,3,FALSE)","v":1},0,{"$f":"VLOOKUP(C27,PostChemicals,2,FALSE)","v":0},{"$f":"H27/G27*F27","v":0},null,"None",{"$f":"VLOOKUP($L27,PostChemicals,6,FALSE)","v":0},{"$f":"VLOOKUP($L27,PostChemicals,4,FALSE)","v":"None"},0,{"$f":"VLOOKUP(L27,PostChemicals,3,FALSE)","v":1},0,{"$f":"VLOOKUP(L27,PostChemicals,2,FALSE)","v":0},{"$f":"Q27/P27*O27","v":0},null,null,"None",{"$f":"VLOOKUP($C27,PostChemicals,6,FALSE)","v":0},{"$f":"VLOOKUP($C27,PostChemicals,4,FALSE)","v":"None"},0,{"$f":"VLOOKUP(V27,PostChemicals,3,FALSE)","v":1},0,{"$f":"VLOOKUP(V27,PostChemicals,2,FALSE)","v":0},{"$f":"AA27/Z27*Y27","v":0},null,"None",{"$f":"VLOOKUP($L27,PostChemicals,6,FALSE)","v":0},{"$f":"VLOOKUP($L27,PostChemicals,4,FALSE)","v":"None"},0,{"$f":"VLOOKUP(AE27,PostChemicals,3,FALSE)","v":1},0,{"$f":"VLOOKUP(AE27,PostChemicals,2,FALSE)","v":0},{"$f":"AJ27/AI27*AH27","v":0}]
[null,null,"None",{"$f":"VLOOKUP($C28,PostChemicals,6,FALSE)","v":0},{"$f":"VLOOKUP($C28,PostChemicals,4,FALSE)","v":"None"},0,{"$f":"VLOOKUP(C28,PostChemicals,3,FALSE)","v":1},0,{"$f":"VLOOKUP(C28,PostChemicals,2,FALSE)","v":0},0,null,"None",{"$f":"VLOOKUP($L28,PostChemicals,6,FALSE)","v":0},{"$f":"VLOOKUP($L28,PostChemicals,4,FALSE)","v":"None"},0,{"$f":"VLOOKUP(L28,PostChemicals,3,FALSE)","v":1},0,{"$f":"VLOOKUP(L28,PostChemicals,2,FALSE)","v":0},0,null,null,"None",{"$f":"VLOOKUP($C28,PostChemicals,6,FALSE)","v":0},{"$f":"VLOOKUP($C28,PostChemicals,4,FALSE)","v":"None"},0,{"$f":"VLOOKUP(V28,PostChemicals,3,FALSE)","v":1},0,{"$f":"VLOOKUP(V28,PostChemicals,2,FALSE)","v":0},0,null,"None",{"$f":"VLOOKUP($L28,PostChemicals,6,FALSE)","v":0},{"$f":"VLOOKUP($L28,PostChemicals,4,FALSE)","v":"None"},0,{"$f":"VLOOKUP(AE28,PostChemicals,3,FALSE)","v":1},0,{"$f":"VLOOKUP(AE28,PostChemicals,2,FALSE)","v":0},0]
[null,null,"None",{"$f":"VLOOKUP($C29,PostChemicals,6,FALSE)","v":0},{"$f":"VLOOKUP($C29,PostChemicals,4,FALSE)","v":"None"},0,{"$f":"VLOOKUP(C29,PostChemicals,3,FALSE)","v":1},0,{"$f":"VLOOKUP(C29,PostChemicals,2,FALSE)","v":0},0,null,"None",{"$f":"VLOOKUP($L29,PostChemicals,6,FALSE)","v":0},{"$f":"VLOOKUP($L29,PostChemicals,4,FALSE)","v":"None"},0,{"$f":"VLOOKUP(L29,PostChemicals,3,FALSE)","v":1},0,{"$f":"VLOOKUP(L29,PostChemicals,2,FALSE)","v":0},0,null,null,"None",{"$f":"VLOOKUP($C29,PostChemicals,6,FALSE)","v":0},{"$f":"VLOOKUP($C29,PostChemicals,4,FALSE)","v":"None"},0,{"$f":"VLOOKUP(V29,PostChemicals,3,FALSE)","v":1},0,{"$f":"VLOOKUP(V29,PostChemicals,2,FALSE)","v":0},0,null,"None",{"$f":"VLOOKUP($L29,PostChemicals,6,FALSE)","v":0},{"$f":"VLOOKUP($L29,PostChemicals,4,FALSE)","v":"None"},0,{"$f":"VLOOKUP(AE29,PostChemicals,3,FALSE)","v":1},0,{"$f":"VLOOKUP(AE29,PostChemicals,2,FALSE)","v":0},0]
[null,null,"None",{"$f":"VLOOKUP($C30,PostChemicals,6,FALSE)","v":0},{"$f":"VLOOKUP($C30,PostChemicals,4,FALSE)","v":"None"},0,{"$f":"VLOOKUP(C30,PostChemicals,3,FALSE)","v":1},0,{"$f":"VLOOKUP(C30,PostChemicals,2,FALSE)","v":0},0,null,"None",{"$f":"VLOOKUP($L30,PostChemicals,6,FALSE)","v":0},{"$f":"VLOOKUP($L30,PostChemicals,4,FALSE)","v":"None"},0,{"$f":"VLOOKUP(L30,PostChemicals,3,FALSE)","v":1},0,{"$f":"VLOOKUP(L30,PostChemicals,2,FALSE)","v":0},0,null,null,"None",{"$f":"VLOOKUP($C30,PostChemicals,6,FALSE)","v":0},{"$f":"VLOOKUP($C30,PostChemicals,4,FALSE)","v":"None"},0,{"$f":"VLOOKUP(V30,PostChemicals,3,FALSE)","v":1},0,{"$f":"VLOOKUP(V30,PostChemicals,2,FALSE)","v":0},0,null,"None",{"$f":"VLOOKUP($L30,PostChemicals,6,FALSE)","v":0},{"$f":"VLOOKUP($L30,PostChemicals,4,FALSE)","v":"None"},0,{"$f":"VLOOKUP(AE30,PostChemicals,3,FALSE)","v":1},0,{"$f":"VLOOKUP(AE30,PostChemicals,2,FALSE)","v":0},0]
[]
[null,null,"Adjuvants (drop down menu)",null,null,"(Enter Below)",null,"(Enter Below)",null,null,null,"Adjuvants (drop down menu)",null,null,"(Enter Below)",null,"(Enter Below)",null,null,null,null,"Adjuvants (drop down menu)",null,null,"(Enter Below)",null,"(Enter Below)",null,null,null,"Adjuvants (drop down menu)",null,null,"(Enter Below)",null,"(Enter Below)"]
[null,null,"None",null,{"$f":"VLOOKUP($C33,Adjuvants,4,FALSE)","v":"None"},0,{"$f":"VLOOKUP(C33,Adjuvants,3,FALSE)","v":1},0,{"$f":"VLOOKUP(C33,Adjuvants,2,FALSE)","v":0},{"$f":"H33/G33*F33","v":0},null,"None",null,{"$f":"VLOOKUP($L33,Adjuvants,4,FALSE)","v":"None"},0,{"$f":"VLOOKUP(L33,Adjuvants,3,FALSE)","v":1},0,{"$f":"VLOOKUP(L33,Adjuvants,2,FALSE)","v":0},{"$f":"Q33/P33*O33","v":0},null,null,"None",null,{"$f":"VLOOKUP($C33,Adjuvants,4,FALSE)","v":"None"},0,{"$f":"VLOOKUP(V33,Adjuvants,3,FALSE)","v":1},0,{"$f":"VLOOKUP(V33,Adjuvants,2,FALSE)","v":0},{"$f":"AA33/Z33*Y33","v":0},null,"None",null,{"$f":"VLOOKUP($L33,Adjuvants,4,FALSE)","v":"None"},0,{"$f":"VLOOKUP(AE33,Adjuvants,3,FALSE)","v":1},0,{"$f":"VLOOKUP(AE33,Adjuvants,2,FALSE)","v":0},{"$f":"AJ33/AI33*AH33","v":0}]
[null,null,"None",null,{"$f":"VLOOKUP($C34,Adjuvants,4,FALSE)","v":"None"},0,{"$f":"VLOOKUP(C34,Adjuvants,3,FALSE)","v":1},0,{"$f":"VLOOKUP(C34,Adjuvants,2,FALSE)","v":0},{"$f":"H34/G34*F34","v":0},null,"None",null,{"$f":"VLOOKUP($L34,Adjuvants,4,FALSE)","v":"None"},0,{"$f":"VLOOKUP(L34,Adjuvants,3,FALSE)","v":1},0,{"$f":"VLOOKUP(L34,Adjuvants,2,FALSE)","v":0},{"$f":"Q34/P34*O34","v":0},null,null,"None",null,{"$f":"VLOOKUP($C34,Adjuvants,4,FALSE)","v":"None"},0,{"$f":"VLOOKUP(V34,Adjuvants,3,FALSE)","v":1},0,{"$f":"VLOOKUP(V34,Adjuvants,2,FALSE)","v":0},{"$f":"AA34/Z34*Y34","v":0},null,"None",null,{"$f":"VLOOKUP($L34,Adjuvants,4,FALSE)","v":"None"},0,{"$f":"VLOOKUP(AE34,Adjuvants,3,FALSE)","v":1},0,{"$f":"VLOOKUP(AE34,Adjuvants,2,FALSE)","v":0},{"$f":"AJ34/AI34*AH34","v":0}]
[null,null,"None",null,{"$f":"VLOOKUP($C35,Adjuvants,4,FALSE)","v":"None"},0,{"$f":"VLOOKUP(C35,Adjuvants,3,FALSE)","v":1},0,{"$f":"VLOOKUP(C35,Adjuvants,2,FALSE)","v":0},0,null,"None",null,{"$f":"VLOOKUP($L35,Adjuvants,4,FALSE)","v":"None"},0,{"$f":"VLOOKUP(L35,Adjuvants,3,FALSE)","v":1},0,{"$f":"VLOOKUP(L35,Adjuvants,2,FALSE)","v":0},0,null,null,"None",null,{"$f":"VLOOKUP($C35,Adjuvants,4,FALSE)","v":"None"},0,{"$f":"VLOOKUP(V35,Adjuvants,3,FALSE)","v":1},0,{"$f":"VLOOKUP(V35,Adjuvants,2,FALSE)","v":0},0,null,"None",null,{"$f":"VLOOKUP($L35,Adjuvants,4,FALSE)","v":"None"},0,{"$f":"VLOOKUP(AE35,Adjuvants,3,FALSE)","v":1},0,{"$f":"VLOOKUP(AE35,Adjuvants,2,FALSE)","v":0},0]
[null,null,"None",null,{"$f":"VLOOKUP($C36,Adjuvants,4,FALSE)","v":"None"},0,{"$f":"VLOOKUP(C36,Adjuvants,3,FALSE)","v":1},0,{"$f":"VLOOKUP(C36,Adjuvants,2,FALSE)","v":0},0,null,"None",null,{"$f":"VLOOKUP($L36,Adjuvants,4,FALSE)","v":"None"},0,{"$f":"VLOOKUP(L36,Adjuvants,3,FALSE)","v":1},0,{"$f":"VLOOKUP(L36,Adjuvants,2,FALSE)","v":0},0,null,null,"None",null,{"$f":"VLOOKUP($C36,Adjuvants,4,FALSE)","v":"None"},0,{"$f":"VLOOKUP(V36,Adjuvants,3,FALSE)","v":1},0,{"$f":"VLOOKUP(V36,Adjuvants,2,FALSE)","v":0},0,null,"None",null,{"$f":"VLOOKUP($L36,Adjuvants,4,FALSE)","v":"None"},0,{"$f":"VLOOKUP(AE36,Adjuvants,3,FALSE)","v":1},0,{"$f":"VLOOKUP(AE36,Adjuvants,2,FALSE)","v":0},0]
[null,null,"None",null,{"$f":"VLOOKUP($C37,Adjuvants,4,FALSE)","v":"None"},0,{"$f":"VLOOKUP(C37,Adjuvants,3,FALSE)","v":1},0,{"$f":"VLOOKUP(C37,Adjuvants,2,FALSE)","v":0},0,null,"None",null,{"$f":"VLOOKUP($L37,Adjuvants,4,FALSE)","v":"None"},0,{"$f":"VLOOKUP(L37,Adjuvants,3,FALSE)","v":1},0,{"$f":"VLOOKUP(L37,Adjuvants,2,FALSE)","v":0},0,null,null,"None",null,{"$f":"VLOOKUP($C37,Adjuvants,4,FALSE)","v":"None"},0,{"$f":"VLOOKUP(V37,Adjuvants,3,FALSE)","v":1},0,{"$f":"VLOOKUP(V37,Adjuvants,2,FALSE)","v":0},0,null,"None",null,{"$f":"VLOOKUP($L37,Adjuvants,4,FALSE)","v":"None"},0,{"$f":"VLOOKUP(AE37,Adjuvants,3,FALSE)","v":1},0,{"$f":"VLOOKUP(AE37,Adjuvants,2,FALSE)","v":0},0]
[]
[null,null,"1st Application of Post-Emergence Herbicides Cost/Acre",null,null,null,null,null,null,{"$f":"SUM(J26:J37)","v":0},null,"2nd Application of Post-Emergence Herbicides Cost/Acre",null,null,null,null,null,null,{"$f":"SUM(S26:S37)","v":0},null,null,"1st Application of Post-Emergence Herbicides Cost/Acre",null,null,null,null,null,null,{"$f":"SUM(AC26:AC37)","v":0},null,"2nd Application of Post-Emergence Herbicides Cost/Acre",null,null,null,null,null,null,{"$f":"SUM(AL26:AL37)","v":0}]
[]
[null,null,null,null,null,null,null,null,null,null,null,"Summary Cost/Acre (Herbicides Only)",null,null,null,null,null,null,null,null,null,null,null,null,null,null,null,null,null,null,"Summary Cost/Acre (Herbicides Only)"]
[null,null,"Plan Year",null,null,null,null,null,null,null,null,null,null,null,null,null,null,null,null,null,null,{"$f":"C42","v":"Plan Year"}]
[null,null,"Farm Name",null,null,null,null,null,null,null,null,null,null,null,null,null,null,null,null,null,null,{"$f":"C43","v":"Farm Name"}]
[null,null,"Farm Tract",null,null,null,null,null,null,null,null,"Pre-plant/Pre-emergence/Burndown Total Cost/Acre",null,null,null,null,null,null,{"$f":"J20+S20","v":0},null,null,{"$f":"C44","v":"Farm Tract"},null,null,null,null,null,null,null,null,"Pre-plant/Pre-emergence/Burndown Total Cost/Acre",null,null,null,null,null,null,{"$f":"AC20+AL20","v":0}]
[null,null,"Farm Number",null,null,null,null,null,null,null,null,null,null,null,null,null,null,null,null,null,null,"Farm Number"]
[null,null,null,null,null,null,null,null,null,null,null,"Post-emergence Total Cost/Acre",null,null,null,null,null,null,{"$f":"J39+S39","v":0},null,null,null,null,null,null,null,null,null,null,null,"Post-emergence Total Cost/Acre",null,null,null,null,null,null,{"$f":"AC39+AL39","v":0}]
[]
[null,null,null,null,null,null,null,null,null,null,null,"Total Herbicide Cost/Acre",null,null,null,null,null,null,{"$f":"S39+J39+S20+J20","v":0},null,null,null,null,null,null,null,null,null,null,null,"Total Herbicide Cost/Acre",null,null,null,null,null,null,{"$f":"AL39+AC39+AL20+AC20","v":0}]
[]
[]
[null,null,"Fungicide & Insecticide Chemicals",null,null,null,null,null,null,null,null,null,null,null,null,null,null,null,null,null,null,"Fungicide & Insecticide Chemicals"]
[null,null,"1st Application of Fungicides",null,null,null,null,null,null,null,null,"2nd Application of Fungicides",null,null,null,null,null,null,null,null,null,"None",null,null,null,null,null,null,null,null,"2nd Application of Fungicides"]
[null,null,"Brand","Active Ingredient(s)","Purchase Units","Package Price (Gals, Lbs, etc.)","Units/Pkg","Rate/Acre","Rate Units","Cost",null,"Brand","Active Ingredient(s)","Purchase Units","Package Price (Gals, Lbs, etc.)","Units/Pkg","Rate/Acre","Rate Units","Cost",null,null,"Brand","Active Ingredient(s)","Purchase Units","Package Price (Gals, Lbs, etc.)","Units/Pkg","Rate/Acre","Rate Units","Cost",null,"Brand","Active Ingredient(s)","Purchase Units","Package Price (Gals, Lbs, etc.)","Units/Pkg","Rate/Acre","Rate Units","Cost"]
[null,null,"Fungicides (drop down menu)",null,null,"(Enter Below)",null,"(Enter Below)",null,null,null,"Fungicides (drop down menu)",null,null,"(Enter Below)",null,"(Enter Below)",null,null,null,null,"Fungicides (drop down menu)",null,null,"(Enter Below)",null,"(Enter Below)",null,null,null,"Fungicides (drop down menu)",null,null,"(Enter Below)",null,"(Enter Below)"]
[null,null,"None",{"$f":"VLOOKUP(C55,Fungicides,6,FALSE)","v":"None"},{"$f":"VLOOKUP($C55,Fungicides,4,FALSE)","v":"None"},0,{"$f":"VLOOKUP(C55,Fungicides,3,FALSE)","v":1},0,{"$f":"VLOOKUP(C55,Fungicides,2,FALSE)","v":0},{"$f":"H55/G55*F55","v":0},null,"None",{"$f":"VLOOKUP(L55,Fungicides,6,FALSE)","v":"None"},{"$f":"VLOOKUP($L55,Fungicides,4,FALSE)","v":"None"},0,{"$f":"VLOOKUP(L55,Fungicides,3,FALSE)","v":1},0,{"$f":"VLOOKUP(L55,Fungicides,2,FALSE)","v":0},{"$f":"Q55/P55*O55","v":0},null,null,"None",{"$f":"VLOOKUP(V55,Fungicides,6,FALSE)","v":"None"},{"$f":"VLOOKUP($C55,Fungicides,4,FALSE)","v":"None"},0,{"$f":"VLOOKUP(V55,Fungicides,3,FALSE)","v":1},0,{"$f":"VLOOKUP(V55,Fungicides,2,FALSE)","v":0},{"$f":"AA55/Z55*Y55","v":0},null,"None",{"$f":"VLOOKUP(AE55,Fungicides,6,FALSE)","v":"None"},{"$f":"VLOOKUP($C55,Fungicides,4,FALSE)","v":"None"},0,{"$f":"VLOOKUP(AE55,Fungicides,3,FALSE)","v":1},0,{"$f":"VLOOKUP(AE55,Fungicides,2,FALSE)","v":0},{"$f":"AJ55/AI55*AH55","v":0}]
[null,null,"None",{"$f":"VLOOKUP(C56,Fungicides,6,FALSE)","v":"None"},{"$f":"VLOOKUP($C56,Fungicides,4,FALSE)","v":"None"},0,{"$f":"VLOOKUP(C56,Fungicides,3,FALSE)","v":1},0,{"$f":"VLOOKUP(C56,Fungicides,2,FALSE)","v":0},{"$f":"H56/G56*F56","v":0},null,"None",{"$f":"VLOOKUP(L56,Fungicides,6,FALSE)","v":"None"},{"$f":"VLOOKUP($L56,Fungicides,4,FALSE)","v":"None"},0,{"$f":"VLOOKUP(L56,Fungicides,3,FALSE)","v":1},0,{"$f":"VLOOKUP(L56,Fungicides,2,FALSE)","v":0},{"$f":"Q56/P56*O56","v":0},null,null,"None",{"$f":"VLOOKUP(V56,Fungicides,6,FALSE)","v":"None"},{"$f":"VLOOKUP($C56,Fungicides,4,FALSE)","v":"None"},0,{"$f":"VLOOKUP(V56,Fungicides,3,FALSE)","v":1},0,{"$f":"VLOOKUP(V56,Fungicides,2,FALSE)","v":0},{"$f":"AA56/Z56*Y56","v":0},null,"None",{"$f":"VLOOKUP(AE56,Fungicides,6,FALSE)","v":"None"},{"$f":"VLOOKUP($C56,Fungicides,4,FALSE)","v":"None"},0,{"$f":"VLOOKUP(AE56,Fungicides,3,FALSE)","v":1},0,{"$f":"VLOOKUP(AE56,Fungicides,2,FALSE)","v":0},{"$f":"AJ56/AI56*AH56","v":0}]
[null,null,"None",{"$f":"VLOOKUP(C57,Fungicides,6,FALSE)","v":"None"},{"$f":"VLOOKUP($C57,Fungicides,4,FALSE)","v":"None"},0,{"$f":"VLOOKUP(C57,Fungicides,3,FALSE)","v":1},0,{"$f":"VLOOKUP(C57,Fungicides,2,FALSE)","v":0},0,null,"None",{"$f":"VLOOKUP(L57,Fungicides,6,FALSE)","v":"None"},{"$f":"VLOOKUP($L57,Fungicides,4,FALSE)","v":"None"},0,{"$f":"VLOOKUP(L57,Fungicides,3,FALSE)","v":1},0,{"$f":"VLOOKUP(L57,Fungicides,2,FALSE)","v":0},0,null,null,"None",{"$f":"VLOOKUP(V57,Fungicides,6,FALSE)","v":"None"},{"$f":"VLOOKUP($C57,Fungicides,4,FALSE)","v":"None"},0,{"$f":"VLOOKUP(V57,Fungicides,3,FALSE)","v":1},0,{"$f":"VLOOKUP(V57,Fungicides,2,FALSE)","v":0},0,null,"None",{"$f":"VLOOKUP(AE57,Fungicides,6,FALSE)","v":"None"},{"$f":"VLOOKUP($C57,Fungicides,4,FALSE)","v":"None"},0,{"$f":"VLOOKUP(AE57,Fungicides,3,FALSE)","v":1},0,{"$f":"VLOOKUP(AE57,Fungicides,2,FALSE)","v":0},0]
[]
[null,null,"Adjuvants (drop down menu)",null,null,"(Enter Below)",null,"(Enter Below)",null,null,null,"Adjuvants (drop down menu)",null,null,"(Enter Below)",null,"(Enter Below)",null,null,null,null,"Adjuvants (drop down menu)",null,null,"(Enter Below)",null,"(Enter Below)",null,null,null,"Adjuvants (drop down menu)",null,null,"(Enter Below)",null,"(Enter Below)"]
[null,null,"None",null,{"$f":"VLOOKUP($C60,Adjuvants,4,FALSE)","v":"None"},0,{"$f":"VLOOKUP(C60,Adjuvants,3,FALSE)","v":1},0,{"$f":"VLOOKUP(C60,Adjuvants,2,FALSE)","v":0},{"$f":"H60/G60*F60","v":0},null,"None",null,{"$f":"VLOOKUP($L60,Adjuvants,4,FALSE)","v":"None"},0,{"$f":"VLOOKUP(L60,Adjuvants,3,FALSE)","v":1},0,{"$f":"VLOOKUP(L60,Adjuvants,2,FALSE)","v":0},{"$f":"Q60/P60*O60","v":0},null,null,"None",null,{"$f":"VLOOKUP($C60,Adjuvants,4,FALSE)","v":"None"},0,{"$f":"VLOOKUP(V60,Adjuvants,3,FALSE)","v":1},0,{"$f":"VLOOKUP(V60,Adjuvants,2,FALSE)","v":0},{"$f":"AA60/Z60*Y60","v":0},null,"None",null,{"$f":"VLOOKUP($C60,Adjuvants,4,FALSE)","v":"None"},0,{"$f":"VLOOKUP(AE60,Adjuvants,3,FALSE)","v":1},0,{"$f":"VLOOKUP(AE60,Adjuvants,2,FALSE)","v":0},{"$f":"AJ60/AI60*AH60","v":0}]
[null,null,"None",null,{"$f":"VLOOKUP($C61,Adjuvants,4,FALSE)","v":"None"},0,{"$f":"VLOOKUP(C61,Adjuvants,3,FALSE)","v":1},0,{"$f":"VLOOKUP(C61,Adjuvants,2,FALSE)","v":0},{"$f":"H61/G61*F61","v":0},null,"None",null,{"$f":"VLOOKUP($L61,Adjuvants,4,FALSE)","v":"None"},0,{"$f":"VLOOKUP(L61,Adjuvants,3,FALSE)","v":1},0,{"$f":"VLOOKUP(L61,Adjuvants,2,FALSE)","v":0},{"$f":"Q61/P61*O61","v":0},null,null,"None",null,{"$f":"VLOOKUP($C61,Adjuvants,4,FALSE)","v":"None"},0,{"$f":"VLOOKUP(V61,Adjuvants,3,FALSE)","v":1},0,{"$f":"VLOOKUP(V61,Adjuvants,2,FALSE)","v":0},{"$f":"AA61/Z61*Y61","v":0},null,"None",null,{"$f":"VLOOKUP($C61,Adjuvants,4,FALSE)","v":"None"},0,{"$f":"VLOOKUP(AE61,Adjuvants,3,FALSE)","v":1},0,{"$f":"VLOOKUP(AE61,Adjuvants,2,FALSE)","v":0},{"$f":"AJ61/AI61*AH61","v":0}]
[null,null,"None",null,{"$f":"VLOOKUP($C62,Adjuvants,4,FALSE)","v":"None"},0,{"$f":"VLOOKUP(C62,Adjuvants,3,FALSE)","v":1},0,{"$f":"VLOOKUP(C62,Adjuvants,2,FALSE)","v":0},0,null,"None",null,{"$f":"VLOOKUP($L62,Adjuvants,4,FALSE)","v":"None"},0,{"$f":"VLOOKUP(L62,Adjuvants,3,FALSE)","v":1},0,{"$f":"VLOOKUP(L62,Adjuvants,2,FALSE)","v":0},0,null,null,"None",null,{"$f":"VLOOKUP($C62,Adjuvants,4,FALSE)","v":"None"},0,{"$f":"VLOOKUP(V62,Adjuvants,3,FALSE)","v":1},0,{"$f":"VLOOKUP(V62,Adjuvants,2,FALSE)","v":0},0,null,"None",null,{"$f":"VLOOKUP($C62,Adjuvants,4,FALSE)","v":"None"},0,{"$f":"VLOOKUP(AE62,Adjuvants,3,FALSE)","v":1},0,{"$f":"VLOOKUP(AE62,Adjuvants,2,FALSE)","v":0},0]
[null,null,"None",null,{"$f":"VLOOKUP($C63,Adjuvants,4,FALSE)","v":"None"},0,{"$f":"VLOOKUP(C63,Adjuvants,3,FALSE)","v":1},0,{"$f":"VLOOKUP(C63,Adjuvants,2,FALSE)","v":0},0,null,"None",null,{"$f":"VLOOKUP($L63,Adjuvants,4,FALSE)","v":"None"},0,{"$f":"VLOOKUP(L63,Adjuvants,3,FALSE)","v":1},0,{"$f":"VLOOKUP(L63,Adjuvants,2,FALSE)","v":0},0,null,null,"None",null,{"$f":"VLOOKUP($C63,Adjuvants,4,FALSE)","v":"None"},0,{"$f":"VLOOKUP(V63,Adjuvants,3,FALSE)","v":1},0,{"$f":"VLOOKUP(V63,Adjuvants,2,FALSE)","v":0},0,null,"None",null,{"$f":"VLOOKUP($C63,Adjuvants,4,FALSE)","v":"None"},0,{"$f":"VLOOKUP(AE63,Adjuvants,3,FALSE)","v":1},0,{"$f":"VLOOKUP(AE63,Adjuvants,2,FALSE)","v":0},0]
[null,null,"None",null,{"$f":"VLOOKUP($C64,Adjuvants,4,FALSE)","v":"None"},0,{"$f":"VLOOKUP(C64,Adjuvants,3,FALSE)","v":1},0,{"$f":"VLOOKUP(C64,Adjuvants,2,FALSE)","v":0},0,null,"None",null,{"$f":"VLOOKUP($L64,Adjuvants,4,FALSE)","v":"None"},0,{"$f":"VLOOKUP(L64,Adjuvants,3,FALSE)","v":1},0,{"$f":"VLOOKUP(L64,Adjuvants,2,FALSE)","v":0},0,null,null,"None",null,{"$f":"VLOOKUP($C64,Adjuvants,4,FALSE)","v":"None"},0,{"$f":"VLOOKUP(V64,Adjuvants,3,FALSE)","v":1},0,{"$f":"VLOOKUP(V64,Adjuvants,2,FALSE)","v":0},0,null,"None",null,{"$f":"VLOOKUP($C64,Adjuvants,4,FALSE)","v":"None"},0,{"$f":"VLOOKUP(AE64,Adjuvants,3,FALSE)","v":1},0,{"$f":"VLOOKUP(AE64,Adjuvants,2,FALSE)","v":0},0]
[]
[null,null,"Fungicide Cost/Acre",null,null,null,null,null,null,{"$f":"SUM(J55:J64)","v":0},null,"Fungicide Cost/Acre",null,null,null,null,null,null,{"$f":"SUM(S55:S64)","v":0},null,null,"Fungicide Cost/Acre",null,null,null,null,null,null,{"$f":"SUM(AC55:AC64)","v":0},null,"Fungicide Cost/Acre",null,null,null,null,null,null,{"$f":"SUM(AL55:AL64)","v":0}]
[]
[null,null,"1st Application of Insecticides",null,null,null,null,null,null,null,null,"2nd Application of Insecticides",null,null,null,null,null,null,null,null,null,"1st Application of Insecticides",null,null,null,null,null,null,null,null,"2nd Application of Insecticides"]
[null,null,"Brand","Active Ingredient(s)","Purchase Units","Package Price (Gals, Lbs, etc.)","Units/Pkg","Rate/Acre","Rate Units","Cost",null,"Brand","Active Ingredient(s)","Purchase Units","Package Price (Gals, Lbs, etc.)","Units/Pkg","Rate/Acre","Rate Units","Cost",null,null,"Brand","Active Ingredient(s)","Purchase Units","Package Price (Gals, Lbs, etc.)","Units/Pkg","Rate/Acre","Rate Units","Cost",null,"Brand","Active Ingredient(s)","Purchase Units","Package Price (Gals, Lbs, etc.)","Units/Pkg","Rate/Acre","Rate Units","Cost"]
[null,null,"Insecticides (drop down menu)",null,null,"(Enter Below)",null,"(Enter Below)",null,null,null,"Insecticides (drop down menu)",null,null,"(Enter Below)",null,"(Enter Below)",null,null,null,null,"Insecticides (drop down menu)",null,null,"(Enter Below)",null,"(Enter Below)",null,null,null,"Insecticides (drop down menu)",null,null,"(Enter Below)",null,"(Enter Below)"]
[null,null,"None",{"$f":"VLOOKUP(C71,Insecticides,6,FALSE)","v":"None"},{"$f":"VLOOKUP(#REF!,Insecticides,4,FALSE)","v":{"$error":"#REF!"}},0,{"$f":"VLOOKUP(C71,Insecticides,3,FALSE)","v":1},0,{"$f":"VLOOKUP(C71,Insecticides,2,FALSE)","v":0},{"$f":"H71/G71*F71","v":0},null,"None",{"$f":"VLOOKUP(L71,Insecticides,6,FALSE)","v":"None"},{"$f":"VLOOKUP(#REF!,Insecticides,4,FALSE)","v":{"$error":"#REF!"}},0,{"$f":"VLOOKUP(L71,Insecticides,3,FALSE)","v":1},0,{"$f":"VLOOKUP(L71,Insecticides,2,FALSE)","v":0},{"$f":"Q71/P71*O71","v":0},null,null,"None",{"$f":"VLOOKUP(V71,Insecticides,6,FALSE)","v":"None"},{"$f":"VLOOKUP(#REF!,Insecticides,4,FALSE)","v":{"$error":"#REF!"}},0,{"$f":"VLOOKUP(V71,Insecticides,3,FALSE)","v":1},0,{"$f":"VLOOKUP(V71,Insecticides,2,FALSE)","v":0},{"$f":"AA71/Z71*Y71","v":0},null,"None",{"$f":"VLOOKUP(AE71,Insecticides,6,FALSE)","v":"None"},{"$f":"VLOOKUP(#REF!,Insecticides,4,FALSE)","v":{"$error":"#REF!"}},0,{"$f":"VLOOKUP(AE71,Insecticides,3,FALSE)","v":1},0,{"$f":"VLOOKUP(AE71,Insecticides,2,FALSE)","v":0},{"$f":"AJ71/AI71*AH71","v":0}]
[null,null,"None",{"$f":"VLOOKUP(C72,Insecticides,6,FALSE)","v":"None"},{"$f":"VLOOKUP(#REF!,Insecticides,4,FALSE)","v":{"$error":"#REF!"}},0,{"$f":"VLOOKUP(C72,Insecticides,3,FALSE)","v":1},0,{"$f":"VLOOKUP(C72,Insecticides,2,FALSE)","v":0},{"$f":"H72/G72*F72","v":0},null,"None",{"$f":"VLOOKUP(L72,Insecticides,6,FALSE)","v":"None"},{"$f":"VLOOKUP(#REF!,Insecticides,4,FALSE)","v":{"$error":"#REF!"}},0,{"$f":"VLOOKUP(L72,Insecticides,3,FALSE)","v":1},0,{"$f":"VLOOKUP(L72,Insecticides,2,FALSE)","v":0},{"$f":"Q72/P72*O72","v":0},null,null,"None",{"$f":"VLOOKUP(V72,Insecticides,6,FALSE)","v":"None"},{"$f":"VLOOKUP(#REF!,Insecticides,4,FALSE)","v":{"$error":"#REF!"}},0,{"$f":"VLOOKUP(V72,Insecticides,3,FALSE)","v":1},0,{"$f":"VLOOKUP(V72,Insecticides,2,FALSE)","v":0},{"$f":"AA72/Z72*Y72","v":0},null,"None",{"$f":"VLOOKUP(AE72,Insecticides,6,FALSE)","v":"None"},{"$f":"VLOOKUP(#REF!,Insecticides,4,FALSE)","v":{"$error":"#REF!"}},0,{"$f":"VLOOKUP(AE72,Insecticides,3,FALSE)","v":1},0,{"$f":"VLOOKUP(AE72,Insecticides,2,FALSE)","v":0},{"$f":"AJ72/AI72*AH72","v":0}]
[null,null,"None",{"$f":"VLOOKUP(C73,Insecticides,6,FALSE)","v":"None"},{"$f":"VLOOKUP(#REF!,Insecticides,4,FALSE)","v":{"$error":"#REF!"}},0,{"$f":"VLOOKUP(C73,Insecticides,3,FALSE)","v":1},0,{"$f":"VLOOKUP(C73,Insecticides,2,FALSE)","v":0},0,null,"None",{"$f":"VLOOKUP(L73,Insecticides,6,FALSE)","v":"None"},{"$f":"VLOOKUP(#REF!,Insecticides,4,FALSE)","v":{"$error":"#REF!"}},0,{"$f":"VLOOKUP(L73,Insecticides,3,FALSE)","v":1},0,{"$f":"VLOOKUP(L73,Insecticides,2,FALSE)","v":0},0,null,null,"None",{"$f":"VLOOKUP(V73,Insecticides,6,FALSE)","v":"None"},{"$f":"VLOOKUP(#REF!,Insecticides,4,FALSE)","v":{"$error":"#REF!"}},0,{"$f":"VLOOKUP(V73,Insecticides,3,FALSE)","v":1},0,{"$f":"VLOOKUP(V73,Insecticides,2,FALSE)","v":0},0,null,"None",{"$f":"VLOOKUP(AE73,Insecticides,6,FALSE)","v":"None"},{"$f":"VLOOKUP(#REF!,Insecticides,4,FALSE)","v":{"$error":"#REF!"}},0,{"$f":"VLOOKUP(AE73,Insecticides,3,FALSE)","v":1},0,{"$f":"VLOOKUP(AE73,Insecticides,2,FALSE)","v":0},0]
[]
[null,null,"Adjuvants (drop down menu)",null,null,"(Enter Below)",null,"(Enter Below)",null,null,null,"Adjuvants (drop down menu)",null,null,"(Enter Below)",null,"(Enter Below)",null,null,null,null,"Adjuvants (drop down menu)",null,null,"(Enter Below)",null,"(Enter Below)",null,null,null,"Adjuvants (drop down menu)",null,null,"(Enter Below)",null,"(Enter Below)"]
[null,null,"None",null,{"$f":"VLOOKUP(#REF!,Adjuvants,4,FALSE)","v":{"$error":"#REF!"}},0,{"$f":"VLOOKUP(C76,Adjuvants,3,FALSE)","v":1},0,{"$f":"VLOOKUP(C76,Adjuvants,2,FALSE)","v":0},{"$f":"H76/G76*F76","v":0},null,"None",null,{"$f":"VLOOKUP(#REF!,Adjuvants,4,FALSE)","v":{"$error":"#REF!"}},0,{"$f":"VLOOKUP(L76,Adjuvants,3,FALSE)","v":1},0,{"$f":"VLOOKUP(L76,Adjuvants,2,FALSE)","v":0},{"$f":"Q76/P76*O76","v":0},null,null,"None",null,{"$f":"VLOOKUP(#REF!,Adjuvants,4,FALSE)","v":{"$error":"#REF!"}},0,{"$f":"VLOOKUP(V76,Adjuvants,3,FALSE)","v":1},0,{"$f":"VLOOKUP(V76,Adjuvants,2,FALSE)","v":0},{"$f":"AA76/Z76*Y76","v":0},null,"None",null,{"$f":"VLOOKUP(#REF!,Adjuvants,4,FALSE)","v":{"$error":"#REF!"}},0,{"$f":"VLOOKUP(AE76,Adjuvants,3,FALSE)","v":1},0,{"$f":"VLOOKUP(AE76,Adjuvants,2,FALSE)","v":0},{"$f":"AJ76/AI76*AH76","v":0}]
[null,null,"None",null,{"$f":"VLOOKUP(#REF!,Adjuvants,4,FALSE)","v":{"$error":"#REF!"}},0,{"$f":"VLOOKUP(C77,Adjuvants,3,FALSE)","v":1},0,{"$f":"VLOOKUP(C77,Adjuvants,2,FALSE)","v":0},{"$f":"H77/G77*F77","v":0},null,"None",null,{"$f":"VLOOKUP(#REF!,Adjuvants,4,FALSE)","v":{"$error":"#REF!"}},0,{"$f":"VLOOKUP(L77,Adjuvants,3,FALSE)","v":1},0,{"$f":"VLOOKUP(L77,Adjuvants,2,FALSE)","v":0},{"$f":"Q77/P77*O77","v":0},null,null,"None",null,{"$f":"VLOOKUP(#REF!,Adjuvants,4,FALSE)","v":{"$error":"#REF!"}},0,{"$f":"VLOOKUP(V77,Adjuvants,3,FALSE)","v":1},0,{"$f":"VLOOKUP(V77,Adjuvants,2,FALSE)","v":0},{"$f":"AA77/Z77*Y77","v":0},null,"None",null,{"$f":"VLOOKUP(#REF!,Adjuvants,4,FALSE)","v":{"$error":"#REF!"}},0,{"$f":"VLOOKUP(AE77,Adjuvants,3,FALSE)","v":1},0,{"$f":"VLOOKUP(AE77,Adjuvants,2,FALSE)","v":0},{"$f":"AJ77/AI77*AH77","v":0}]
[null,null,"None",null,{"$f":"VLOOKUP(#REF!,Adjuvants,4,FALSE)","v":{"$error":"#REF!"}},0,{"$f":"VLOOKUP(C78,Adjuvants,3,FALSE)","v":1},0,{"$f":"VLOOKUP(C78,Adjuvants,2,FALSE)","v":0},0,null,"None",null,{"$f":"VLOOKUP(#REF!,Adjuvants,4,FALSE)","v":{"$error":"#REF!"}},0,{"$f":"VLOOKUP(L78,Adjuvants,3,FALSE)","v":1},0,{"$f":"VLOOKUP(L78,Adjuvants,2,FALSE)","v":0},0,null,null,"None",null,{"$f":"VLOOKUP(#REF!,Adjuvants,4,FALSE)","v":{"$error":"#REF!"}},0,{"$f":"VLOOKUP(V78,Adjuvants,3,FALSE)","v":1},0,{"$f":"VLOOKUP(V78,Adjuvants,2,FALSE)","v":0},0,null,"None",null,{"$f":"VLOOKUP(#REF!,Adjuvants,4,FALSE)","v":{"$error":"#REF!"}},0,{"$f":"VLOOKUP(AE78,Adjuvants,3,FALSE)","v":1},0,{"$f":"VLOOKUP(AE78,Adjuvants,2,FALSE)","v":0},0]
[null,null,"None",null,{"$f":"VLOOKUP(#REF!,Adjuvants,4,FALSE)","v":{"$error":"#REF!"}},0,{"$f":"VLOOKUP(C79,Adjuvants,3,FALSE)","v":1},0,{"$f":"VLOOKUP(C79,Adjuvants,2,FALSE)","v":0},0,null,"None",null,{"$f":"VLOOKUP(#REF!,Adjuvants,4,FALSE)","v":{"$error":"#REF!"}},0,{"$f":"VLOOKUP(L79,Adjuvants,3,FALSE)","v":1},0,{"$f":"VLOOKUP(L79,Adjuvants,2,FALSE)","v":0},0,null,null,"None",null,{"$f":"VLOOKUP(#REF!,Adjuvants,4,FALSE)","v":{"$error":"#REF!"}},0,{"$f":"VLOOKUP(V79,Adjuvants,3,FALSE)","v":1},0,{"$f":"VLOOKUP(V79,Adjuvants,2,FALSE)","v":0},0,null,"None",null,{"$f":"VLOOKUP(#REF!,Adjuvants,4,FALSE)","v":{"$error":"#REF!"}},0,{"$f":"VLOOKUP(AE79,Adjuvants,3,FALSE)","v":1},0,{"$f":"VLOOKUP(AE79,Adjuvants,2,FALSE)","v":0},0]
[null,null,"None",null,{"$f":"VLOOKUP(#REF!,Adjuvants,4,FALSE)","v":{"$error":"#REF!"}},0,{"$f":"VLOOKUP(C80,Adjuvants,3,FALSE)","v":1},0,{"$f":"VLOOKUP(C80,Adjuvants,2,FALSE)","v":0},0,null,"None",null,{"$f":"VLOOKUP(#REF!,Adjuvants,4,FALSE)","v":{"$error":"#REF!"}},0,{"$f":"VLOOKUP(L80,Adjuvants,3,FALSE)","v":1},0,{"$f":"VLOOKUP(L80,Adjuvants,2,FALSE)","v":0},0,null,null,"None",null,{"$f":"VLOOKUP(#REF!,Adjuvants,4,FALSE)","v":{"$error":"#REF!"}},0,{"$f":"VLOOKUP(V80,Adjuvants,3,FALSE)","v":1},0,{"$f":"VLOOKUP(V80,Adjuvants,2,FALSE)","v":0},0,null,"None",null,{"$f":"VLOOKUP(#REF!,Adjuvants,4,FALSE)","v":{"$error":"#REF!"}},0,{"$f":"VLOOKUP(AE80,Adjuvants,3,FALSE)","v":1},0,{"$f":"VLOOKUP(AE80,Adjuvants,2,FALSE)","v":0},0]
[]
[null,null,"Insecticide Cost/Acre",null,null,null,null,null,null,{"$f":"SUM(J71:J80)","v":0},null,"Insecticide Cost/Acre",null,null,null,null,null,null,{"$f":"SUM(S71:S80)","v":0},null,null,"Insecticide Cost/Acre",null,null,null,null,null,null,{"$f":"SUM(AC71:AC80)","v":0},null,"Insecticide Cost/Acre",null,null,null,null,null,null,{"$f":"SUM(AL71:AL80)","v":0}]
[]
[null,null,null,null,null,null,null,null,null,null,null,"Summary Cost/Acre (All Chemistry)",null,null,null,null,null,null,null,null,null,null,null,null,null,null,null,null,null,null,"Summary Cost/Acre (All Chemistry)"]
[]
[]
[null,null,null,null,null,null,null,null,null,null,null,"Fungicide Total Cost/Acre",null,null,null,null,null,null,{"$f":"J66+S66","v":0},null,null,null,null,null,null,null,null,null,null,null,"Fungicide Total Cost/Acre",null,null,null,null,null,null,{"$f":"AC66+AL66","v":0}]
[null,null,{"$f":"C42","v":"Plan Year"},null,null,null,null,null,null,null,null,null,null,null,null,null,null,null,null,null,null,{"$f":"C42","v":"Plan Year"}]
[null,null,{"$f":"C43","v":"Farm Name"},null,null,null,null,null,null,null,null,"Insecticide Total Cost/Acre",null,null,null,null,null,null,{"$f":"J82+S82","v":0},null,null,{"$f":"C43","v":"Farm Name"},null,null,null,null,null,null,null,null,"Insecticide Total Cost/Acre",null,null,null,null,null,null,{"$f":"AC82+AL82","v":0}]
[null,null,{"$f":"C44","v":"Farm Tract"},null,null,null,null,null,null,null,null,null,null,null,null,null,null,null,null,null,null,{"$f":"C44","v":"Farm Tract"}]
[null,null,"Farm Number",null,null,null,null,null,null,null,null,"Total Herbicide Cost/Acre",null,null,null,null,null,null,{"$f":"S48","v":0},null,null,"Farm Number",null,null,null,null,null,null,null,null,"Total Herbicide Cost/Acre",null,null,null,null,null,null,{"$f":"AL48","v":0}]
[]
[null,null,null,null,null,null,null,null,null,null,null,"Total Pesticide Cost/Acre (Herbicide, Fungicide, & Insecticide)",null,null,null,null,null,null,{"$f":"S89+S87+S91","v":0},null,null,null,null,null,null,null,null,null,null,null,"Total Pesticide Cost/Acre (Herbicide, Fungicide, & Insecticide)",null,null,null,null,null,null,{"$f":"AL89+AL87+AL91","v":0}]

{"sheet":"Adjuvant Help Guide","index":4,"n_rows":35,"n_cols":19,"rows_kept":35,"cut":false,"hidden":false,"merged":[[0,15,0,18],[25,0,25,11],[0,0,0,11],[31,0,31,1]]}
["Adjuvant Help Guide",null,null,null,null,null,null,null,null,null,null,null,null,null,null,"Adjuvants"]
[null,null,null,null,null,null,null,null,null,null,null,null,null,null,null,"Name","App Unit","Rate Unit","Selling Unit"]
["Adjuvant (pounds)","(Enter Below)","(Enter Below)",null,null,null,"Gallons",null,null,null,null,null,null,null,null,"None",null,1,"None"]
[null,"Gallons Per Acre","Gallons in Tank","=Acres/Tank",null,null,128,"ounces",null,null,null,null,null,null,null,"Ammonium Sulfate","lb",16,"Pound"]
[null,20,100,{"$f":"C5/B5","v":5},null,null,4,"qts",null,null,null,null,null,null,null,"Ammonium Sulfate (Liquid)","pt",8,"Gallon"]
[null,null,null,null,null,null,8,"pints",null,null,null,null,null,null,null,"Ammonium Sulfate (Replacement)","pt",8,"Gallon"]
[null,"Rate Per Tank (lb)","Acres/Tank","=Rate/Acre",null,null,null,null,null,null,null,null,null,null,null,"Crop Oil Concentrate","pt",8,"Gallon"]
[null,17,{"$f":"D5","v":5},{"$f":"B8/C8","v":3.4},null,null,"Pounds",null,null,null,null,null,null,null,null,"Drift Agent/Spreader","oz",128,"Gallon"]
[null,null,null,null,null,null,16,"ounces",null,null,null,null,null,null,null,"Methylated Seed Oil (MSO)","qt",4,"Gallon"]
["Adjuvant (ounces)","(Enter Below)","(Enter Below)",null,null,null,null,null,null,null,null,null,null,null,null,"Enter","Enter",0,"Enter"]
[null,"Gallons Per Acre","Gallons in Tank","=Acres/Tank",null,null,null,null,null,null,null,null,null,null,null,"Enter","Enter",0,"Enter"]
[null,15,100,{"$f":"C12/B12","v":6.666666666666667},null,null,"v/v % = ","[(volume of solute)/","(volume of solution)]"," x 100%",null,null,null,null,null,"Enter","Enter",0,"Enter"]
[null,null,null,null,null,null,0.125,100,1.25E-3,0.125,"=","1 pint",null,null,null,"Enter","Enter",0,"Enter"]
[null,"Rate Per Tank (oz)","Acres/Tank","=Rate/Acre",null,null,0.25,100,2.5000000000000001E-3,0.25,"=","1 quart"]
[null,16,{"$f":"D12","v":6.666666666666667},{"$f":"B15/C15","v":2.4},null,null,0.5,100,5.0000000000000001E-3,0.5,"=","2 quarts"]
[null,null,null,null,null,null,1,100,0.01,1,"=","1 gallon"]
["Adjuvant (pints)","(Enter Below)","(Enter Below)"]
["(for quarts, multiply by 2)","Gallons Per Acre","Gallons in Tank","=Acres/Tank"]
[null,20,100,{"$f":"C19/B19","v":5}]
[]
[null,"Rate Per Tank (pt)","Acres/Tank","=Rate/Acre"]
[null,2,{"$f":"D19","v":5},{"$f":"B22/C22","v":0.4}]
[]
[]
[]
["Use the Rate/Acre information on the Chemicals expense Tab"]
[]
[]
[]
["Additional Resources:"]
["For more information on Herbicides, Insecticides, and Fungicides, see the following resources:"]
["Link to the Midwest Vegetable Production Guide"]
["Link to MSU Vegetable Pest Crop Management Bulletin E-2160"]
["Link to MSU Weed Control Guide for Vegetable Crops Bulletin E-433"]
["Link to MSU IPM Center"]

{"sheet":"Chemical List (Vegetables)","index":5,"n_rows":359,"n_cols":15,"rows_kept":359,"cut":false,"hidden":false,"merged":[[1,0,1,5],[101,0,101,5],[202,0,202,5],[247,0,247,5]]}
[1,2,3,4,5,"6"]
["Vegetable Chemicals (Pre)",null,null,null,null,null,null,null,"Example:","Name","App Unit","Rate Unit","Selling Unit","Timing","Site of Action"]
["Name","App Unit","Rate Unit","Selling Unit","Timing","Site of Action",null,null,null,"2,4-D","pt",8,"Gallon","Post",4]
["None",null,1,"None"]
["Accent Q","oz",1,"Ounce",null,2]
["Acuron","qt",4,"Gallon",null,"5/15/27/27"]
["Aim EC","oz",1,"Ounce",null,14]
["Anthem ATZ","pt",8,"Gallon",null,"15/14/5"]
["Anthem Maxx","oz",128,"Gallon",null,"15/14"]
["Armezon Pro","oz",128,"Ounce",null,"15/27"]
["Armezon, Impact","oz",128,"Ounce",null,27]
["Assure II, Targa","oz",128,"Gallon",null,"1"]
["AXXE","oz",128,"Gallon"]
["Infantry 90DF, Cornbelt 90DF","lb",1,"Pound",null,"5"]
["Aatrex 4L, Aatrex Nine-O, Cornbelt 4L, Infantry 4L ","qt",4,"Gallon",null,"5"]
["Balan DF","lb",1,"Pound",null,3]
["Banvel, Clarity","pt",8,"Gallon",null,4]
["Basagran, Bashazon, Broadloom, Biscayne","pt",8,"Gallon",null,6]
["Beacon","oz",1,"Ounce",null,2]
["Betamix","pt",8,"Gallon"]
["Bicep II Magnum, Bicep Lite II Magnum Lexar","qt",4,"Gallon",null,"5/15"]
["Breakfree , Harness, Surpass EC, TopNotch","pt",8,"Gallon",null,15]
["Breakfree ATZ, Breakfree ATZ Lite","qt",4,"Gallon",null,"5/15"]
["Cadet","oz",128,"Quart",null,14]
["Callisto","oz",128,"Gallon",null,"27"]
["Callisto Xtra","oz",128,"Gallon",null,"5/27"]
["Caparol 4L","pt",8,"Gallon",null,5]
["Caravel, Command 3ME","oz",128,"Gallon",null,"13"]
["Casoron 4G","lb",1,"Pound",null,20]
["Chateau SW, Valor SX","oz",1,"Pound",null,14]
["Clethodim 2E, Select Max","oz",128,"Gallon",null,1]
["Commit ATZ, Commit ATZ Lite, Guardsman Max","pt",8,"Gallon",null,"5/15"]
["Curbit EC, Sonalan HFP","pt",8,"Gallon",null,3]
["Dacthal Flowable","pt",8,"Gallon",null,3]
["Defol 5","qt",4,"Gallon"]
["Degree Xtra, Fultime, Harness Extra, \nKeystone","qt",4,"Gallon",null,"5/15"]
["Devrinol DF-XT","lb",1,"Pound",null,15]
["Direx 4L, Karmex DF, Parrot 4L, Parrot DF","qt",4,"Gallon",null,"7"]
["Dominus","gal",1,"Gallon"]
["Dual Magnum, Dual II Magnum, Stalwart C","qt",4,"Gallon",null,"15"]
["Eptam 7E, Eptam 20G","pt",8,"Gallon",null,"15"]
["Ethotron SC, Nortron SC","pt",8,"Gallon",null,8]
["Final-San-O","oz",128,"Gallon"]
["Firestorm, Gramoxone SL, Gramoxone SL 2.0","pt",8,"Gallon",null,"22"]
["Formula 40, Savage, Weedar","pt",8,"Gallon",null,4]
["Fusilade DX","oz",128,"Gallon",null,"1"]
["Goal 2XL, Goal Tender","pt",8,"Gallon",null,"14"]
["GreenFurrow EF 400","oz",128,"Gallon"]
["Glyphosate, Roundup PowerMax, Roundup Ultra, Touchdown","oz",128,"Gallon",null,9]
["HomePlate","oz",128,"Gallon"]
["Hyvar X","lb",1,"Pound",null,"5"]
["Kerb SC","pt",8,"Gallon",null,3]
["Laudis","oz",1,"Ounce",null,27]
["League","oz",1,"Pound",null,"2"]
["Lexar, Lexar EZ, Lumax, Lumax EZ, Stalwart 3W","qt",4,"Gallon",null,"5/27/15"]
["Liberty 280 SL, Rely 280","oz",128,"Gallon",null,10]
["Linex 4L, Lorox DF","lb",1,"Pound",null,"7"]
["Matrix SG","oz",1,"Pound",null,"2"]
["Moxy 2E","pt",8,"Gallon",null,"6"]
["Optill","oz",1,"Pound",null,"1/2"]
["Option","oz",128,"Gallon",null,"2"]
["Outlook","oz",128,"Gallon",null,"15"]
["Permit, Sandea","oz",16,"Pound",null,2]
["Poast","pt",8,"Gallon",null,1]
["Prefar 4E","qt",4,"Gallon",null,8]
["Prowl 3.3 C, Prowl H20, Satellite Hydrocap","pt",8,"Gallon",null,"3"]
["Pursuit","oz",128,"Gallon",null,"2"]
["QuinStar 4L","oz",128,"Gallon",null,"4/26"]
["Raptor","oz",128,"Gallon",null,"2"]
["Reflex","pt",8,"Gallon",null,"14"]
["Reglone","pt",8,"Gallon",null,"22"]
["Revulin Q","oz",128,"Gallon",null,"2/27"]
["Rezult B","pt",8,"Gallon",null,"6"]
["Rezult G","pt",8,"Gallon",null,"1"]
["Ro-Neet","pt",8,"Gallon",null,"8"]
["Scythe","oz",128,"Gallon",null,"17"]
["Sharpen","oz",128,"Gallon",null,"14"]
["ShieldEX","oz",128,"Gallon",null,"27"]
["Sinate","oz",128,"Gallon",null,"10/27"]
["Sinbar WDG","lb",1,"Pound",null,"5"]
["Solicam DF","lb",1,"Pound",null,"12"]
["Spartan 4F, Portfolio 4F, Sufin 4SC, Zeus XC, Zone 4F","oz",128,"Gallon",null,"14"]
["Spartan Advance","oz",128,"Gallon",null,"9/14"]
["Spartan Charge","oz",128,"Gallon",null,"14/14"]
["Spin-Aid","pt",8,"Gallon",null,"5"]
["Spur, Stinger","oz",128,"Gallon",null,4]
["Starane Ultra","pt",8,"Gallon",null,"4"]
["Strategy","pt",8,"Gallon",null,"3/13"]
["Thistrol","pt",8,"Gallon",null,"4"]
["Treflan 4EC, Triflurex HFP","pt",8,"Gallon",null,"3"]
["TriCor DF, TriCor 4F","oz",1,"Pound",null,"5"]
["Ultra Blazer","pt",8,"Gallon",null,"14"]
["Venue","oz",128,"Gallon",null,"14"]
["Zidua","oz",1,"Gallon",null,"15"]
["Enter","Enter",0,"Enter","Enter",0]
["Enter","Enter",0,"Enter","Enter",0]
["Enter","Enter",0,"Enter","Enter",0]
["Enter","Enter",0,"Enter","Enter",0]
["Enter","Enter",0,"Enter","Enter",0]
["Enter","Enter",0,"Enter","Enter",0]
[]
["Vegetable Chemicals (Post)"]
["None",null,1,"None"]
["Accent Q","oz",1,"Ounce",null,2]
["Acuron","qt",4,"Gallon",null,"5/15/27/27"]
["Aim EC","oz",1,"Ounce",null,14]
["Anthem ATZ","pt",8,"Gallon",null,"15/14/5"]
["Anthem Maxx","oz",128,"Gallon",null,"15/14"]
["Armezon Pro","oz",128,"Ounce",null,"15/27"]
["Armezon, Impact","oz",128,"Ounce",null,27]
["Assure II, Targa","oz",128,"Gallon",null,"1"]
["AXXE","oz",128,"Gallon"]
["Infantry 90DF, Cornbelt 90DF","lb",1,"Pound",null,"5"]
["Aatrex 4L, Aatrex Nine-O, Cornbelt 4L, Infantry 4L ","qt",4,"Gallon",null,"5"]
["Balan DF","lb",1,"Pound",null,3]
["Banvel, Clarity","pt",8,"Gallon",null,4]
["Basagran, Bashazon, Broadloom, Biscayne","pt",8,"Gallon",null,6]
["Beacon","oz",1,"Ounce",null,2]
["Betamix","pt",8,"Gallon"]
["Bicep II Magnum, Bicep Lite II Magnum Lexar","qt",4,"Gallon",null,"5/15"]
["Breakfree , Harness, Surpass EC, TopNotch","pt",8,"Gallon",null,15]
["Breakfree ATZ, Breakfree ATZ Lite","qt",4,"Gallon",null,"5/15"]
["Cadet","oz",128,"Quart",null,14]
["Callisto","oz",128,"Gallon",null,"27"]
["Callisto Xtra","oz",128,"Gallon",null,"5/27"]
["Caparol 4L","pt",8,"Gallon",null,5]
["Caravel, Command 3ME","oz",128,"Gallon",null,"13"]
["Casoron 4G","lb",1,"Pound",null,20]
["Chateau SW, Valor SX","oz",1,"Pound",null,14]
["Clethodim 2E, Select Max","oz",128,"Gallon",null,1]
["Commit ATZ, Commit ATZ Lite, Guardsman Max","pt",8,"Gallon",null,"5/15"]
["Curbit EC, Sonalan HFP","pt",8,"Gallon",null,3]
["Dacthal Flowable","pt",8,"Gallon",null,3]
["Defol 5","qt",4,"Gallon"]
["Degree Xtra, Fultime, Harness Extra, \nKeystone","qt",4,"Gallon",null,"5/15"]
["Devrinol DF-XT","lb",1,"Pound",null,15]
["Direx 4L, Karmex DF, Parrot 4L, Parrot DF","qt",4,"Gallon",null,"7"]
["Dominus","gal",1,"Gallon"]
["Dual Magnum, Dual II Magnum, Stalwart C","qt",4,"Gallon",null,"15"]
["Eptam 7E, Eptam 20G","pt",8,"Gallon",null,"15"]
["Ethotron SC, Nortron SC","pt",8,"Gallon",null,8]
["Final-San-O","oz",128,"Gallon"]
["Firestorm, Gramoxone SL, Gramoxone SL 2.0","pt",8,"Gallon",null,"22"]
["Formula 40, Savage, Weedar","pt",8,"Gallon",null,4]
["Fusilade DX","oz",128,"Gallon",null,"1"]
["Goal 2XL, Goal Tender","pt",8,"Gallon",null,"14"]
["GreenFurrow EF 400","oz",128,"Gallon"]
["Glyphosate, Roundup PowerMax, Roundup Ultra, Touchdown","oz",128,"Gallon",null,9]
["HomePlate","oz",128,"Gallon"]
["Hyvar X","lb",1,"Pound",null,"5"]
["Kerb SC","pt",8,"Gallon",null,3]
["Laudis","oz",1,"Ounce",null,27]
["League","oz",1,"Pound",null,"2"]
["Lexar, Lexar EZ, Lumax, Lumax EZ, Stalwart 3W","qt",4,"Gallon",null,"5/27/15"]
["Liberty 280 SL, Rely 280","oz",128,"Gallon",null,10]
["Linex 4L, Lorox DF","lb",1,"Pound",null,"7"]
["Matrix SG","oz",1,"Pound",null,"2"]
["Moxy 2E","pt",8,"Gallon",null,"6"]
["Optill","oz",1,"Pound",null,"1/2"]
["Option","oz",128,"Gallon",null,"2"]
["Outlook","oz",128,"Gallon",null,"15"]
["Permit, Sandea","oz",16,"Pound",null,2]
["Poast","pt",8,"Gallon",null,1]
["Prefar 4E","qt",4,"Gallon",null,8]
["Prowl 3.3 C, Prowl H20, Satellite Hydrocap","pt",8,"Gallon",null,"3"]
["Pursuit","oz",128,"Gallon",null,"2"]
["QuinStar 4L","oz",128,"Gallon",null,"4/26"]
["Raptor","oz",128,"Gallon",null,"2"]
["Reflex","pt",8,"Gallon",null,"14"]
["Reglone","pt",8,"Gallon",null,"22"]
["Revulin Q","oz",128,"Gallon",null,"2/27"]
["Rezult B","pt",8,"Gallon",null,"6"]
["Rezult G","pt",8,"Gallon",null,"1"]
["Ro-Neet","pt",8,"Gallon",null,"8"]
["Scythe","oz",128,"Gallon",null,"17"]
["Sharpen","oz",128,"Gallon",null,"14"]
["ShieldEX","oz",128,"Gallon",null,"27"]
["Sinate","oz",128,"Gallon",null,"10/27"]
["Sinbar WDG","lb",1,"Pound",null,"5"]
["Solicam DF","lb",1,"Pound",null,"12"]
["Spartan 4F, Portfolio 4F, Sufin 4SC, Zeus XC, Zone 4F","oz",128,"Gallon",null,"14"]
["Spartan Advance","oz",128,"Gallon",null,"9/14"]
["Spartan Charge","oz",128,"Gallon",null,"14/14"]
["Spin-Aid","pt",8,"Gallon",null,"5"]
["Spur, Stinger","oz",128,"Gallon",null,4]
["Starane Ultra","pt",8,"Gallon",null,"4"]
["Strategy","pt",8,"Gallon",null,"3/13"]
["Thistrol","pt",8,"Gallon",null,"4"]
["Treflan 4EC, Triflurex HFP","pt",8,"Gallon",null,"3"]
["TriCor DF, TriCor 4F","oz",1,"Pound",null,"5"]
["Ultra Blazer","pt",8,"Gallon",null,"14"]
["Venue","oz",128,"Gallon",null,"14"]
["Zidua","oz",1,"Gallon",null,"15"]
["Enter","Enter",0,"Enter","Enter",0]
["Enter","Enter",0,"Enter","Enter",0]
["Enter","Enter",0,"Enter","Enter",0]
["Enter","Enter",0,"Enter","Enter",0]
["Enter","Enter",0,"Enter","Enter",0]
["Enter","Enter",0,"Enter","Enter",0]
[]
[]
[]
["Vegetable Fungicides"]
["Name","App Unit","Rate Unit","Selling Unit","Timing","Active Ingredient"]
["None",null,1,"None","None","None"]
["Actigard","oz",16,"Pound",null,"acibenzolar-s-methyl"]
["Agri-Mycin","oz",16,"Pound",null,"Streptomycin sulfate"]
["Aprovia Top","oz",128,"Gallon",null,"difenoconazole + benzovindiflupyr"]
["Botran","qt",4,"Gallon",null,"dichloro - nitroaniline"]
["Bravo, Echo, Equus","pt",8,"Gallon",null,"chlorothalonil"]
["Cabrio","oz",16,"Pound",null,"pyraclostrobin"]
["Curzate","oz",16,"Pound",null,"cymoxanil"]
["Dithane, Manzate, Penncozeb","lb",1,"Pound",null,"mancozeb"]
["Elumin","oz",128,"Gallon",null,"ethaboxam"]
["Endura","oz",16,"Pound",null,"boscalid"]
["Fontelis","oz",128,"Gallon",null,"penthiopyrad"]
["Gavel","lb",1,"Pound",null,"mancozeb + zoxamide"]
["Inspire Super","oz",128,"Gallon",null,"difenconazole + cyprodinil"]
["Luna Sensation","oz",128,"Gallon",null,"fluopyram + trifloxystrobin"]
["Luna Tranquility","oz",128,"Gallon",null,"fluopyram + pyrimethanil"]
["Miravis Prime","oz",128,"Gallon",null,"pydiflumeton + fludioxonil"]
["Orondis Gold","oz",128,"Gallon",null,"oxathiapipropilin + mefenoxam"]
["Orondis Opti","pt",8,"Gallon",null,"oxathiapipropilin + chlorothalonil"]
["Orondis Ultra","oz",128,"Gallon",null,"oxathiapipropilin + mandipropamid"]
["Presidio","oz",128,"Gallon",null,"fluopicolide"]
["Previcur Flex","pt",8,"Gallon",null,"propamocarb hydrochloride"]
["Priaxor","oz",128,"Gallon",null,"fluxapyroxad + pyraclostrobin"]
["Quadris","oz",128,"Gallon",null,"azoxystrobin"]
["Quadris Top","oz",128,"Gallon",null,"azoxystrobin + difenconazole"]
["Ranman","oz",128,"Gallon",null,"cyazofamid"]
["Reason","oz",128,"Gallon",null,"fenamidone"]
["Regalia","qt",4,"Gallon",null,"Extract of Reynoutria sachalinensis (P5)"]
["Revus Top","oz",128,"Gallon",null,"mandipropamid + difenconazole"]
["Ridomil Gold","lb",1,"Pound",null,"mefonoxam"]
["Scala","oz",128,"Gallon",null,"pyrimethanil"]
["Switch","oz",16,"Pound",null,"cyprodinil + fludioxanil"]
["Tanos","oz",16,"Pound",null,"cymoxanil + famoxadone"]
["Zampro","oz",128,"Gallon",null,"amitoctradin + dimethomorph"]
["Zing","oz",128,"Gallon",null,"zoxomide + chlorothalonil"]
["Enter","Enter",0,"Enter","Enter","Enter"]
["Enter","Enter",0,"Enter","Enter","Enter"]
["Enter","Enter",0,"Enter","Enter","Enter"]
["Enter","Enter",0,"Enter","Enter","Enter"]
["Enter","Enter",0,"Enter","Enter","Enter"]
["Enter","Enter",0,"Enter","Enter","Enter"]
[]
[]
["Vegetable Insecticides"]
["None",null,1,"None"]
["Insecticide (pint rate)","pt",8,"Gallon"]
["Insecticide (ounce rate)","oz",128,"Gallon"]
["Insecticide (pound rate)","lb",1,"Pound"]
["Insecticide (quart rate)","qt",4,"Gallon"]
[]
["Name","App Unit","Rate Unit","Selling Unit","Timing","Active Ingredient"]
["None",null,1,"None","At planting","None"]
["Acramite 50WS, Floramite","lb",1,"Pound",null,"bifenazate"]
["Actara, Cruiser 5FS, Flagship 25WG, Platinum 25C","oz",16,"Pound",null,"thiamethoxam"]
["Admire Pro, Mantra 60WSP, Marathon 60 WP, Nuprid","oz",128,"Gallon",null,"imidacloprid"]
["Agri-Mek SC, Abba Ultra","oz",128,"Gallon",null,"abamectin"]
["Ammo 2.5EC, Holster, UpCycle 2.5EC","oz",128,"Gallon",null,"cypermethrin"]
["Asana XL, S-FenvaloStar","oz",128,"Gallon",null,"esfenvalerate"]
["Assail 30SG, Assail 70WP, Tristar 8.5SL","oz",16,"Pound",null,"acetamiprid"]
["Athena","oz",128,"Gallon",null,"bifenthrin+ zeta-cypermethrin"]
["Avaunt","oz",16,"Pound",null,"indoxacarb"]
["Aza-Direct, AzaGuard, AzaSol, Azatin O, Azatrol EC, Ecozin Plus 1.2 ME, Neemix, Molt-X","oz",128,"Gallon",null,"azadirachtin"]
["Azera","oz",128,"Gallon",null,"azadirachtin + pyrethrins"]
["Aztec 4.67G, Aztec HC","lb",1,"Pound",null,"tebupirimphos + cyfluthrin"]
["Baythroid XL","oz",128,"Gallon",null,"beta-cyfluthrin"]
["Belay, Poncho","oz",128,"Gallon",null,"clothianidin"]
["Beleaf","oz",16,"Pound",null,"flonicamid"]
["Besiege","oz",128,"Gallon",null,"chlorantraniliprole + lambda-cyhalothrin"]
["Bifenture EC, Brigade WSB, Capture LFR, Discipline 2EC, Sniper","oz",128,"Gallon",null,"bifenthrin"]
["Biobit HP, DiPel DF, DiPel ES, LEAP ES","lb",1,"Pound",null,"bacillus thuringiensis sub. Kurstaki strain ABTS-351"]
["BioCeres WP","lb",1,"Pound",null,"Beauvaria bassiana strain ANT-03"]
["Blackhawk, Entrust, Entrust SC, Regard SC","oz",16,"Pound",null,"spinosad"]
["BotaniGard ES, BotaniGard MAXX, Mycotrol ESO, Mycotrol WPO","qt",4,"Gallon",null,"Beauvaria bassiana strain GHA"]
["Bracket 97, Orthene 97","oz",16,"Pound",null,"acephate"]
["BT NOW","pt",8,"Gallon",null,"bacillus thuringiensis sub. Kurstaki strain EVB-113-19"]
["Captiva","pt",8,"Gallon",null,"capsaicin + garlic oil + canola oil"]
["Carbon Defense, Sil-Matrix","qt",4,"Gallon",null,"potassium silicate"]
["Celite 610, Deadzone","lb",1,"Pound",null,"diatomaceous earth"]
["Closer SC, Transform","oz",16,"Pound",null,"sylfoxaflor"]
["Confirm 2F","oz",128,"Gallon",null,"tebufenozide"]
["Coragen","oz",128,"Gallon",null,"chlorantraniliprole"]
["Counter 20G","oz",16,"Pound",null,"terbufos"]
["Danitol 2.4EC","oz",128,"Gallon",null,"fenpropathrin"]
["Deadline Bullets, Deadline GT, Deadline M-Ps, Durham 3.5G","lb",1,"Pound",null,"metaldehyde"]
["Deliver","lb",1,"Pound",null,"Bacillus thuringiensis sub. Kurstaki strain SA-12"]
["Des-X, KOPA, M-Pede","gal",1,"Gallon",null,"potassium salts of fatty acides"]
["Diazinon AG500","pt",8,"Gallon",null,"diazinon"]
["Diazinon AG600 WBC","oz",128,"Gallon",null,"diazinon"]
["Dimethoate 2.67","pt",8,"Gallon",null,"dimethoate"]
["Dimethoate 4EC / 400 (5lb)","lb",1,"Pound",null,"dimethoate"]
["Dimethoate 4EC / 400 (gal)","pt",8,"Gallon",null,"dimethoate"]
["Distance, Knack","oz",128,"Gallon",null,"pyriproxyfen"]
["Dominus","gal",1,"Gallon",null,"allyl isothiocyanate"]
["Durivo, Voliam Flexi","oz",128,"Gallon",null,"thiamethoxam + chlorantraniliprole"]
["ECOWORKS EC, Rango, TerraNeem EC, Triact 70, Trilogy","pt",8,"Gallon",null,"neem oil"]
["Endigo ZC","oz",128,"Gallon",null,"thiamethoxam + lambda-cyahlothrin"]
["Ethos 3D","oz",128,"Gallon",null,"bifenthrin + bacillus amyloliquefaciens strain D 747"]
["EverGreen Pro, Pyrenone","oz",128,"Gallon",null,"piperonyl butoxide + pyrethrins"]
["Exirel, Verimark","oz",128,"Gallon",null,"cyantraniliprole"]
["Force CS, Force Evo, Force 3G, Force 10G HL","oz",128,"Gallon",null,"tefluthrin"]
["Fulfill","oz",16,"Pound",null,"pymethrozine"]
["Gemstar LC","oz",128,"Gallon",null,"Helicoverpa zea nucleopolyhedrovirus"]
["Gladiator","oz",128,"Gallon",null,"abamectin + zeta-cypermethrin"]
["Grandevo","lb",1,"Pound",null,"Chromobacterium subtsugae strain PRAA4-1"]
["Grizzly Too, Lambda-Cy 1EC, Warrior II","oz",128,"Gallon",null,"lambda-cyhalothrin"]
["Harvanta","oz",128,"Gallon",null,"cyclaniliprole"]
["Helicovex","oz",128,"Gallon",null,"Helicoverpa armigera nucleopolyhedrovirus strain BV-0003"]
["Hero, HERO EW, Steed","oz",128,"Gallon",null,"bifenthrin + zeta cypermethrin"]
["Index, SmartChoice HC","oz",128,"Gallon",null,"chlorethoxyfos + bifenthrin"]
["Intrepid 2F","oz",128,"Gallon",null,"methoxyfenozide"]
["JMS Stylet Oil","qt",4,"Gallon",null,"paraffinic oil"]
["Kanemite 15SC, Shuttle 15SC","oz",128,"Gallon",null,"acequioncyl"]
["K-Pam HL, Sectagon K54","gal",1,"Gallon",null,"metam potassium"]
["Lannate LV, Lannate SP, Nudrin LV, Nudrin SP","pt",8,"Gallon",null,"methomyl"]
["Malathion 5, Malathion 57, Malathion 8","pt",8,"Gallon",null,"malathion"]
["MeloCon WG","lb",1,"Pound",null,"Paecilomyces lilacinus strain 251"]
["Minecto Pro","oz",128,"Gallon",null,"cyantraniliprole + abamectin"]
["Mocap 15G","lb",1,"Pound",null,"ethoprop"]
["Mocap EC","qt",4,"Gallon",null,"ethoprop"]
["Movento, Kontos","oz",128,"Gallon",null,"spirotetramat"]
["Mustang Maxx","oz",128,"Gallon",null,"zeta-cypermethrin"]
["Nealta","oz",128,"Gallon",null,"cyflumetofen"]
["Nimitz","oz",128,"Gallon",null,"fluensulfone"]
["Oberon 2SC","oz",128,"Gallon",null,"spiromesifen"]
["Onager Optek, Hexygon","oz",128,"Gallon",null,"hexythiazox"]
["Perm-UP 25DF, Perm-Up 3.2EC, Pounce 25 WP","oz",128,"Gallon",null,"permethrin"]
["PQZ","oz",128,"Gallon",null,"pyrifluquinazon"]
["Preferal","lb",1,"Pound",null,"Isaria fumosorosea Apopka strain 97"]
["Proclaim","oz",16,"Pound",null,"emamectin benzoate"]
["Purespray Green, SuffOil-X, Tri-Trek","gal",1,"Gallon",null,"mineral oil"]
["Pyganic","oz",128,"Gallon",null,"pyrethrins"]
["Radiant 1SC","oz",128,"Gallon",null,"spinetoram"]
["Regent 4SC","oz",128,"Gallon",null,"fipronil"]
["Safari 20 SG, Scorpion 35SL, Venom 70SG","oz",16,"Pound",null,"dinotefuran"]
["Sefina Inscalis, Versys Inscalis","oz",128,"Gallon",null,"afidopyropen"]
["Sevin 4F, Sevin XLR","qt",4,"Gallon",null,"carbaryl"]
["Sivanto 200, Sivanto Prime","oz",128,"Gallon",null,"flupyradifurone"]
["Sluggo 1B","lb",1,"Pound",null,"iron phosphate"]
["Surround WP","lb",1,"Pound",null,"kaolin clay"]
["Telone C-17, Telone C-35","gal",1,"Gallon",null,"1,3-dichloropropene"]
["Telone II, Telone EC","gal",1,"Gallon",null,"1,3-dichloropropene + chloropicrin"]
["Tepera Plus","oz",128,"Gallon",null,"fluoxastrobin + bifenthrin"]
["Thimet 20G","oz",16,"Pound",null,"phorate"]
["Tombstone (2EC)","oz",128,"Gallon",null,"cyfluthrin"]
["Torac","oz",128,"Gallon",null,"tolfenpyrad"]
["Trigard","oz",16,"Pound",null,"cyromazine"]
["VAPAM HL, Sectagon K42","gal",1,"Gallon",null,"metam sodium"]
["Vydate C-LV, Vydate L","oz",128,"Gallon",null,"oxamyl"]
["XenTari","lb",1,"Pound",null,"Bacillus thuringiensis aizawai strain ABTS-1857"]
["Enter","Enter",0,"Enter","Enter","Enter"]
["Enter","Enter",0,"Enter","Enter","Enter"]
["Enter","Enter",0,"Enter","Enter","Enter"]
["Enter","Enter",0,"Enter","Enter","Enter"]
["Enter","Enter",0,"Enter","Enter","Enter"]
["Enter","Enter",0,"Enter","Enter","Enter"]

{"sheet":"Crop List","index":6,"n_rows":36,"n_cols":1,"rows_kept":36,"cut":false,"hidden":true,"merged":[]}
[]
["Select Crop"]
["Asparagus"]
["Beets, table"]
["Broccoli"]
["Brussels Sprouts"]
["Cabbage"]
["Carrots"]
["Cauliflower"]
["Celery"]
["Cucumber"]
["Eggplant"]
["Endive"]
["Garlic"]
["Lettuce"]
["Muskmelon"]
["Onions (dry)"]
["Onions (green)"]
["Parsley"]
["Parsnips"]
["Peas"]
["Peppers"]
["Potatoes "]
["Pumpkins"]
["Radishes"]
["Rhubarb"]
["Rutabagas"]
["Snap Beans"]
["Spinach"]
["Squash"]
["Sweet Corn"]
["Swiss Chard"]
["Tomatoes"]
["Turnips"]
["Watermelon"]
["Zucchini"]